Workbook

Sheet Hoja1
D1: DISTRIBUCIÓN
B11: ACCP | C11: Caso base | D11: Probabilístico | E11: Min | F11: Max | G11: Distribución
B12: ACCP_V_a_V | C12: 0.979 | D12: =+RANDBETWEEN(E12*10000,F12*10000)/10000 -> 0.7963 | E12: =ACCP_V_a_V*0.75 -> 0.73425 | F12: =IF(ACCP_V_a_V*1.25>1,1,ACCP_V_a_V*1.25) -> 1 | G12: Uniforme | I12: 0.979
B13: ACCP-V_a_SA | C13: 0.016 | D13: 0.0186 | E13: =ACCP_V_a_SA*0.75 -> 0.012 | F13: =ACCP_V_a_SA*1.25 -> 0.02 | G13: Uniforme | I13: 0.016
B14: ACCP_V_a_M | C14: 0.005 | D14: 0.0038 | E14: =ACCP_V_a_M*0.75 -> 0.00375 | F14: =ACCP_V_a_M*1.25 -> 0.00625 | G14: Uniforme | I14: 0.005
B15: ACCP_SA_a_V | C15: 0.71 | D15: 0.6227 | E15: =ACCP_SA_a_V*0.75 -> 0.5325 | F15: =ACCP_SA_a_V*1.25 -> 0.8875 | G15: Uniforme | I15: 0.71
B16: ACCP_SA_a_SA | C16: 0.285 | D16: 0.2998 | E16: =ACCP_SA_a_SA*0.75 -> 0.21375 | F16: =ACCP_SA_a_SA*1.25 -> 0.35625 | G16: Uniforme | I16: 0.285
B17: ACCP_SA_a_M | C17: 0.005 | D17: 0.0043 | E17: =ACCP_SA_a_M*0.75 -> 0.00375 | F17: =ACCP_SA_a_M*1.25 -> 0.00625 | G17: Uniforme | I17: 0.005
B18: ACCP_M_a_M | C18: 1 | D18: 0.8078 | E18: =ACCP_M_a_M*0.75 -> 0.75 | F18: =IF(ACCP_M_a_M*1.25>1,1,ACCP_M_a_M*1.25) -> 1 | G18: Uniforme
B19: EMZ_V_a_V | C19: 0.99484 | D19: 0.9379 | E19: =C19*0.75 -> 0.74613 | F19: =IF(C19*1.25>1,1,C19*1.25) -> 1 | G19: Uniforme
B20: EMZ_V_a_SA | C20: 0.00016 | D20: 0.0002 | E20: 0.00012 | F20: 0.0002 | G20: Uniforme
B21: EMZ_V_a_M | C21: 0.005 | D21: 0.0051 | E21: 0.00375 | F21: 0.00625 | G21: Uniforme
B22: EMZ_SA_a_V | C22: 0.71 | D22: 0.8503 | E22: 0.5325 | F22: 0.8875 | G22: Uniforme
B23: EMZ_SA_a_SA | C23: 0.285 | D23: 0.2335 | E23: 0.21375 | F23: 0.35625 | G23: Uniforme
B24: EMZ_SA_a_M | C24: 0.005 | D24: =+RANDBETWEEN(E24*10000,F24*10000)/10000 -> 0.0055 | E24: 0.00375 | F24: 0.00625 | G24: Uniforme
B25: EMZ_M_a_M | C25: 1 | D25: 0.8256 | E25: 0.75 | F25: 1 | G25: Uniforme
F26: buscar en estudios originales a vere si hay error estandar o intervalo de confianza
B29: Tratamiento 3TC ZDV | C29: Caso base | D29: Probabilístico | E29: Min | F29: Max | G29: Distribución | I29: Caso base
B30: RR | C30: 0.01 | D30: =+RANDBETWEEN(E30*10000,F30*10000)/10000 -> 0.0314 | E30: 0.004 | F30: 0.044 | G30: Uniforme | I30: 0.01
B32: Costos
B34: Estados | C34: Caso base | D34: Probabilístico | E34: Inferior | F34: Superior | G34: Distribución | I34: Caso base | K34: ecnología (medicamentos)Costo promedio año caso tipoEmicizumab 30 mg (Dosis 1,5mg/kg > Calcular peso promedio)$ 300.495.922Feiba Profilaxis 1000 U ( 70 a 100 U/kg en dias alternos)$ 429.156.000Factor VIII (Sangrado leve, Moderado y severo)$ 123.254Feiba Tratamiento 1000 U ( 50 a 100 U/kg por 3 a 7 dias dependiendo de sangrado leve, moderado o severo)$ 1.965.000
B35: c_EMZ_A | C35: 300495922 | D35: =RANDBETWEEN(E35,F35) -> 368257322 | E35: =+C35*(1-25%) -> 225371941.5 | F35: =+C35*(1+25%) -> 375619902.5 | G35: Uniforme
B36: c_EMZ_B | C36: 300619176 | D36: =RANDBETWEEN(E36,F36) -> 370975070 | E36: =+C36*(1-25%) -> 225464382 | F36: =+C36*(1+25%) -> 375773970 | G36: Uniforme
B37: c_ACCP_A | C37: 429156000 | D37: 440878043 | E37: 321867000 | F37: 536445000 | G37: Uniforme
B38: c_ACCP_B | C38: 431121000 | D38: 507535286 | E38: 323340750 | F38: 538901250 | G38: Uniforme
B40: Tratamiento ZDV | C40: Caso base | D40: Probabilístico | E40: Inferior | F40: Superior | G40: Distribución | I40: Caso base
B41: ACCP | C41: 243745674 | D41: =RANDBETWEEN(E41,F41) -> 190200519 | E41: 142251039 | F41: 242266992 | G41: Uniforme | I41: 243745674
B43: Tratamiento 3TC ZDV | C43: Caso base | D43: Probabilístico | E43: Inferior | F43: Superior | G43: Distribución | I43: Caso base
B44: EMZ | C44: 243745674 | D44: =RANDBETWEEN(E44,F44) -> 72318024 | E44: 47664504 | F44: 84622767 | G44: Uniforme | I44: 243745674
C46: Caso base | D46: Probabilístico | E46: Inferior | F46: Superior | G46: Distribución | I46: Caso base
B47: TasaDescuento | C47: 0.05 | D47: =+RANDBETWEEN(E47*10000,F47*10000)/10000 -> 0.0519 | E47: 0 | F47: 0.12 | G47: Uniforme | I47: 0.06
B48: Year_effect | C48: 0 | I48: 2
F49: supuestos del modelo
B50: Beneficios en Salud | C50: Caso base | D50: EMZ | E50: ACCP | F50: probabilidades a expertos | I50: Caso base
B51: Vivo | C51: 1 | D51: 0.7683 | E51: 0.5697 | F51: qalys se puede manejar para ambos | I51: 1
B52: Muerto | C52: 0 | F52: Recomendaciones en cac: capturen calidad de vida cuando estan vivos y tienen sangrado y los que siguen vivos y no siguieron sangrado | I52: 0
C55: Caso base | D55: Probabilístico | E55: Inferior | F55: Superior | G55: Distribución
B56: c_EMZ_A_02 | C56: 190814910.6 | D56: =RANDBETWEEN(E56,F56) -> 211815912 | E56: 147468821.5 | F56: 234160999.8 | G56: UNIFORME
B57: c_EMZ_A_03 | C57: 222967974.3 | D57: 204171151 | E57: 172317898.5 | F57: 273618050.2 | G57: UNIFORME
B58: c_EMZ_A_04 | C58: 253919054.3 | D58: 269462973 | E58: 196238038 | F58: 311600070.6 | G58: UNIFORME
B59: c_EMZ_A_05 | C59: 286372613.9 | D59: 316367324 | E59: 221319349.4 | F59: 351425878.4 | G59: UNIFORME
B60: c_EMZ_A_06 | C60: 321530636.8 | D60: 384824149 | E60: 248490770.1 | F60: 394570503.6 | G60: UNIFORME
B61: c_EMZ_A_07 | C61: 349476757.6 | D61: 281704287 | E61: 270088566 | F61: 428864949.2 | G61: UNIFORME
B62: c_EMZ_A_08 | C62: 385235772.4 | D62: 394354022 | E62: 297724455.3 | F62: 472747089.4 | G62: UNIFORME
B63: c_EMZ_A_09 | C63: 429709168.8 | D63: 525512386 | E63: 332095141.3 | F63: 527323196.4 | G63: UNIFORME
B64: c_EMZ_A_10 | C64: 484098930.8 | D64: 566015203 | E64: 374129561.3 | F64: 594068300.3 | G64: UNIFORME
B65: c_EMZ_A_11 | C65: 484098930.8 | D65: 543898931 | E65: 374129561.3 | F65: 594068300.3 | G65: UNIFORME
B66: c_EMZ_A_12 | C66: 621726063.2 | D66: 742139458 | E66: 480492900.2 | F66: 762959226.1 | G66: UNIFORME
B67: c_EMZ_A_13 | C67: 701357482.6 | D67: 605481664 | E67: 542035006.8 | F67: 860679958.3 | G67: UNIFORME
B68: c_EMZ_A_14 | C68: 783543117.3 | D68: 952046709 | E68: 605551105.5 | F68: 961535129.1 | G68: UNIFORME
B69: c_EMZ_A_15 | C69: 818701140.2 | D69: 661073695 | E69: 632722526.2 | F69: 1004679754 | G69: UNIFORME
B70: c_EMZ_A_16 | C70: 935594054 | D70: 1122223016 | E70: 723061694 | F70: 1148126414 | G70: UNIFORME
B71: c_EMZ_A_17 | C71: 992087287.4 | D71: 841801565 | E71: 766721754.5 | F71: 1217452820 | G71: UNIFORME
B72: c_EMZ_A_18 | C72: 1024540847 | D72: 878577205 | E72: 791803065.9 | F72: 1257278628 | G72: UNIFORME
B73: c_EMZ_A_>19 | C73: 1051735728 | D73: 1099714597 | E73: 812820275.9 | F73: 1290651180 | G73: UNIFORME
B74: c_EMZ_B_02 | C74: 190877523.5 | D74: =RANDBETWEEN(E74,F74) -> 196204900 | E74: 147489702.8 | F74: 234265344.3 | G74: UNIFORME
B75: c_EMZ_B_03 | C75: 223041137.7 | D75: 233278644 | E75: 172342298.4 | F75: 273739977.1 | G75: UNIFORME
B76: c_EMZ_B_04 | C76: 254002373.8 | D76: 229702631 | E76: 196265825 | F76: 311738922.7 | G76: UNIFORME
B77: c_EMZ_B_05 | C77: 286466582.6 | D77: 235121092 | E77: 221350687.8 | F77: 351582477.3 | G77: UNIFORME
B78: c_EMZ_B_06 | C78: 321636142 | D78: 304184196 | E78: 248525955.9 | F78: 394746328.1 | G78: UNIFORME
B79: c_EMZ_B_07 | C79: 349591432.9 | D79: 391889730 | E79: 270126810 | F79: 429056055.7 | G79: UNIFORME
B80: c_EMZ_B_08 | C80: 385362181.4 | D80: 356907536 | E80: 297766612.6 | F80: 472957750.2 | G80: UNIFORME
B81: c_EMZ_B_09 | C81: 429850171.1 | D81: 527502522 | E81: 332142165.4 | F81: 527558176.9 | G81: UNIFORME
B82: c_EMZ_B_10 | C82: 484257780.2 | D82: 405965058 | E82: 374182537.4 | F82: 594333023 | G82: UNIFORME
B83: c_EMZ_B_11 | C83: 484257780.2 | D83: 586992544 | E83: 374182537.4 | F83: 594333023 | G83: UNIFORME
B84: c_EMZ_B_12 | C84: 621930072.8 | D84: 593909630 | E84: 480560937.2 | F84: 763299208.3 | G84: UNIFORME
B85: c_EMZ_B_13 | C85: 701587622 | D85: 850410288 | E85: 542111758.1 | F85: 861063485.9 | G85: UNIFORME
B86: c_EMZ_B_14 | C86: 783800224.6 | D86: 772249451 | E86: 605636850.5 | F86: 961963598.7 | G86: UNIFORME
B87: c_EMZ_B_15 | C87: 818969784.1 | D87: 726570481 | E87: 632812118.6 | F87: 1005127450 | G87: UNIFORME
B88: c_EMZ_B_16 | C88: 935901054.4 | D88: 1126356404 | E88: 723164078.3 | F88: 1148638031 | G88: UNIFORME
B89: c_EMZ_B_17 | C89: 992412825.2 | D89: 1087499228 | E89: 766830321 | F89: 1217995329 | G89: UNIFORME
B90: c_EMZ_B_18 | C90: 1024877034 | D90: 944346958 | E90: 791915183.9 | F90: 1257838884 | G90: UNIFORME
B91: c_EMZ_B_>19 | C91: 1052080838 | D91: 1270898565 | E91: 812935369.8 | F91: 1291226307 | G91: UNIFORME
B92: c_ACCP_A_02 | C92: 455033790.1 | D92: 385977145 | E92: 380611692.1 | F92: 529455888 | G92: UNIFORME
B93: c_ACCP_A_03 | C93: 531708775.2 | D93: 545780174 | E93: 444746260.7 | F93: 618671289.6 | G93: UNIFORME
B94: c_ACCP_A_04 | C94: 605517405.7 | D94: 636694581 | E94: 506483275.3 | F94: 704551536 | G94: UNIFORME
B95: c_ACCP_A_05 | C95: 682908979.4 | D95: 717690718 | E95: 571217232.4 | F95: 794600726.4 | G95: UNIFORME
B96: c_ACCP_A_06 | C96: 766749851 | D96: 758287094 | E96: 641345685.9 | F96: 892154016 | G96: UNIFORME
B97: c_ACCP_A_07 | C97: 833392595 | D97: 701790105 | E97: 697088815.6 | F97: 969696374.4 | G97: UNIFORME
B98: c_ACCP_A_08 | C98: 918666643.9 | D98: 889126475 | E98: 768416046.1 | F98: 1068917242 | G98: UNIFORME
B99: c_ACCP_A_09 | C99: 1024721763 | D99: 1125463536 | E99: 857125542.9 | F99: 1192317984 | G99: UNIFORME
B100: c_ACCP_A_10 | C100: 1154424308 | D100: 986180638 | E100: 965614859.8 | F100: 1343233757 | G100: UNIFORME
B101: c_ACCP_A_11 | C101: 1154424308 | D101: 1064758509 | E101: 965614859.8 | F101: 1343233757 | G101: UNIFORME
B102: c_ACCP_A_12 | C102: 1482621908 | D102: 1279797003 | E102: 1240134789 | F102: 1725109027 | G102: UNIFORME
B103: c_ACCP_A_13 | C103: 1672517899 | D103: 1586963813 | E103: 1398972739 | F103: 1946063059 | G103: UNIFORME
B104: c_ACCP_A_14 | C104: 1868504894 | D104: 1809439504 | E104: 1562905492 | F104: 2174104296 | G104: UNIFORME
B105: c_ACCP_A_15 | C105: 1952345765 | D105: 1863330149 | E105: 1633033945 | F105: 2271657586 | G105: UNIFORME
B106: c_ACCP_A_16 | C106: 2231098749 | D106: 2201680114 | E106: 1866196068 | F106: 2596001429 | G106: UNIFORME
B107: c_ACCP_A_17 | C107: 2365817414 | D107: 2677152709 | E107: 1978881105 | F107: 2752753723 | G107: UNIFORME
B108: c_ACCP_A_18 | C108: 2443208988 | D108: 2693754760 | E108: 2043615062 | F108: 2842802914 | G108: UNIFORME
B109: c_ACCP_A_>19 | C109: 2508060260 | D109: 2105843769 | E109: 2097859720 | F109: 2918260800 | G109: UNIFORME
B110: c_ACCP_B_02 | C110: 456032010.1 | D110: 512868076 | E110: 381010980.1 | F110: 531053040 | G110: UNIFORME
B111: c_ACCP_B_03 | C111: 532875199.2 | D111: 582185209 | E111: 445212830.3 | F111: 620537568 | G111: UNIFORME
B112: c_ACCP_B_04 | C112: 606845745.7 | D112: 583311074 | E112: 507014611.3 | F112: 706676880 | G112: UNIFORME
B113: c_ACCP_B_05 | C113: 684407095.4 | D113: 719423479 | E113: 571816478.8 | F113: 796997712 | G113: UNIFORME
B114: c_ACCP_B_06 | C114: 768431891 | D114: 891538067 | E114: 642018501.9 | F114: 894845280 | G114: UNIFORME
B115: c_ACCP_B_07 | C115: 835220831 | D115: 886334344 | E115: 697820110 | F115: 972621552 | G115: UNIFORME
B116: c_ACCP_B_08 | C116: 920681947.9 | D116: 815689045 | E116: 769222167.7 | F116: 1072141728 | G116: UNIFORME
B117: c_ACCP_B_09 | C117: 1026969723 | D117: 967346462 | E117: 858024726.9 | F117: 1195914720 | G117: UNIFORME
B118: c_ACCP_B_10 | C118: 1156956800 | D118: 1159071737 | E118: 966627856.6 | F118: 1347285744 | G118: UNIFORME
B119: c_ACCP_B_11 | C119: 1156956800 | D119: 1220823325 | E119: 966627856.6 | F119: 1347285744 | G119: UNIFORME
B120: c_ACCP_B_12 | C120: 1485874376 | D120: 1282862263 | E120: 1241435776 | F120: 1730312976 | G120: UNIFORME
B121: c_ACCP_B_13 | C121: 1676186947 | D121: 1946690767 | E121: 1400440358 | F121: 1951933536 | G121: UNIFORME
B122: c_ACCP_B_14 | C122: 1872603884 | D122: 1769177357 | E122: 1564545088 | F122: 2180662680 | G122: UNIFORME
B123: c_ACCP_B_15 | C123: 1956628679 | D123: 1749367094 | E123: 1634747111 | F123: 2278510248 | G123: UNIFORME
B124: c_ACCP_B_16 | C124: 2235993171 | D124: 2312679453 | E124: 1868153837 | F124: 2603832504 | G124: UNIFORME
B125: c_ACCP_B_17 | C125: 2371007372 | D125: 2308373989 | E125: 1980957088 | F125: 2761057656 | G125: UNIFORME
B126: c_ACCP_B_18 | C126: 2448568722 | D126: 2449549999 | E126: 2045758955 | F126: 2851378488 | G126: UNIFORME
B127: c_ACCP_B_>19 | C127: 2513562260 | D127: 2229387844 | E127: 2100060520 | F127: 2927064000 | G127: UNIFORME

Sheet Cálculo de la Cadena
B1: DETERMINISTICO
A2: PROFILAXIS ACCP
B3: tablas de vida del dane para tomar la probabilidd de muerte de la poblacion general | I3: Número de pacientes | L3: Expectativa de vida | P3: Costos acumulados
B4: Vivo | C4: Sangrado Articular | D4: Muera | F4: Costo ACCP - V | G4: Costo ACCP SA | I4: Vivo | J4: Sangrado Articular | K4: Muera | L4: Vivo | M4: Sangrado Articular | N4: Muera | O4: AVAC | P4: Vivo | Q4: Sangrado Articular | R4: Muera
A5: Vivo | B5: =+ACCP_V_a_V -> 0.979 | C5: =+ACCP_V_a_SA -> 0.016 | D5: =+ACCP_V_a_M -> 0.005 | E5: c_ACCP_02 | F5: =+Hoja1!$C$92 -> 455033790.1 | G5: =+Hoja1!$C$110 -> 456032010.1 | H5: 0 | I5: 1000 | J5: 0 | K5: 0 | L5: =+I5*1 -> 1000 | M5: =+J5*1 -> 0 | N5: =+K5*0 -> 0 | O5: =+I5*Hoja1!$E$51 -> 569.7 | P5: =+I5*($B$24+F5)/(1)^H5 -> 6.987794641e+11 | Q5: =+J5*($B$24+G5)/(1)^H5 -> 0 | R5: 0 | AB5: m1 | AC5: =+MMULT(B5:D7,B5:D7) -> 0.969801 | AD5: 0.020224 | AE5: 0.009975 | AF5: m5 | AG5: =+AC5+B5+AC9+AC13+AC17 -> 4.825045734 | AH5: 0.1004523943 | AI5: 0.07450187125
A6: Sangrado Articular | B6: =+ACCP_SA_a_V -> 0.71 | C6: =+ACCP_SA_a_SA -> 0.285 | D6: =+ACCP_SA_a_M -> 0.005 | E6: c_ACCP_02 | F6: =+Hoja1!$C$92 -> 455033790.1 | G6: =+Hoja1!$C$110 -> 456032010.1 | H6: 1 | I6: =+I5*$B$5+J5*$B$6+K5*$B$7 -> 979 | J6: =+I5*$C$5+J5*$C$6+K5*$C$7 -> 16 | K6: =+I5*$D$5+J5*$D$6+K5*$D$7 -> 5 | L6: =+I6*1 -> 979 | M6: =+J6*1 -> 16 | N6: =+K6*0 -> 0 | O6: =+(I6*Hoja1!$E$51)+(J6*Hoja1!$E$51) -> 566.8515 | P6: =+I6*($B$24+F6)/(1+TasaDescuento)^H6 -> 6.515286622e+11 | Q6: =+J6*($B$24+G6)/(1+TasaDescuento)^H6 -> 1.0663279e+10 | R6: 0 | AC6: 0.89744 | AD6: 0.092585 | AE6: 0.009975 | AG6: 4.457574996 | AH6: 0.4679231324 | AI6: 0.07450187125
A7: Muera | B7: 0 | C7: 0 | D7: =+ACCP_M_a_M -> 1 | E7: c_ACCP_02 | F7: =+Hoja1!$C$92 -> 455033790.1 | G7: =+Hoja1!$C110 -> 456032010.1 | H7: 2 | I7: =+I6*$B$5+J6*$B$6+K6*$B$7 -> 969.801 | J7: =+I6*$C$5+J6*$C$6+K6*$C$7 -> 20.224 | K7: =+I6*$D$5+J6*$D$6+K6*$D$7 -> 9.975 | L7: =+I7*1 -> 969.801 | M7: =+J7*1 -> 20.224 | N7: =+K7*0 -> 0 | O7: =+(I7*Hoja1!$E$51)+(J7*Hoja1!$E$51) -> 564.0172425 | P7: 6.146730368e+11 | Q7: 1.283655681e+10 | R7: 0 | AC7: 0 | AD7: 0 | AE7: 1 | AG7: 0 | AH7: 0 | AI7: 5
E8: c_ACCP_03 | F8: =+Hoja1!$C93 -> 531708775.2 | G8: =+Hoja1!$C111 -> 532875199.2 | H8: 3 | I8: =+I7*$B$5+J7*$B$6+K7*$B$7 -> 963.794219 | J8: =+I7*$C$5+J7*$C$6+K7*$C$7 -> 21.280656 | K8: =+I7*$D$5+J7*$D$6+K7*$D$7 -> 14.925125 | L8: 963.794219 | M8: 21.280656 | N8: 0 | O8: =+(I8*Hoja1!$E$51)+(J8*Hoja1!$E$51) -> 561.1971563 | P8: 6.456136618e+11 | Q8: 1.427664541e+10 | R8: 0
E9: c_ACCP_04 | F9: =+Hoja1!$C94 -> 605517405.7 | G9: =+Hoja1!$C112 -> 606845745.7 | H9: 4 | I9: 958.6638062 | J9: 21.48569446 | K9: 19.85049938 | L9: 958.6638062 | M9: 21.48569446 | N9: 0 | O9: =+(I9*Hoja1!$E$51)+(J9*Hoja1!$E$51) -> 558.3911705 | P9: 6.698096175e+11 | Q9: 1.503533804e+10 | R9: 0 | AB9: m2 | AC9: =+MMULT(_xlfn.ANCHORARRAY(AC5),$B$5:$D$7) -> 0.963794219 | AD9: 0.021280656 | AE9: 0.014925125
A10: Matriz Identidad | B10: 1 | C10: 0 | E10: c_ACCP_05 | F10: =+Hoja1!$C95 -> 682908979.4 | G10: =+Hoja1!$C113 -> 684407095.4 | H10: 5 | I10: =+I9*$B$5+J9*$B$6+K9*$B$7 -> 953.7867093 | J10: =+I9*$C$5+J9*$C$6+K9*$C$7 -> 21.46204382 | K10: =+I9*$D$5+J9*$D$6+K9*$D$7 -> 24.75124688 | L10: 953.7867093 | M10: 21.46204382 | N10: 0 | O10: =+(I10*Hoja1!$E$51)+(J10*Hoja1!$E$51) -> 555.5992147 | P10: 6.92504631e+11 | Q10: 1.560788465e+10 | R10: 0 | AC10: 0.94432911 | AD10: 0.040745765 | AE10: 0.014925125
B11: 0 | C11: 1 | E11: c_ACCP_06 | F11: =+Hoja1!$C96 -> 766749851 | G11: =+Hoja1!$C114 -> 768431891 | H11: 6 | I11: 948.9952395 | J11: 21.37726984 | K11: 29.62749064 | L11: 948.9952395 | M11: 21.37726984 | N11: 0 | O11: =+(I11*Hoja1!$E$51)+(J11*Hoja1!$E$51) -> 552.8212186 | P11: 7.155873161e+11 | Q11: 1.614630499e+10 | R11: 0 | AC11: 0 | AD11: 0 | AE11: 1
E12: c_ACCP_07 | F12: =+Hoja1!$C97 -> 833392595 | G12: =+Hoja1!$C115 -> 835220831 | H12: 7 | I12: 944.2442011 | J12: 21.27644574 | K12: 34.47935319 | L12: 944.2442011 | M12: 21.27644574 | N12: 0 | O12: =+(I12*Hoja1!$E$51)+(J12*Hoja1!$E$51) -> 550.0571125 | P12: 7.22820879e+11 | Q12: 1.631480733e+10 | R12: 0
B13: =+B10-B5 -> 0.021 | C13: =+C10-C5 -> -0.016 | E13: c_ACCP_08 | F13: =+Hoja1!$C98 -> 918666643.9 | G13: =+Hoja1!$C116 -> 920681947.9 | H13: 8 | I13: 939.5213493 | J13: =+I12*$C$5+J12*$C$6+K12*$C$7 -> 21.17169425 | K13: 39.30695642 | L13: 939.5213493 | M13: 21.17169425 | N13: 0 | O13: =+(I13*Hoja1!$E$51)+(J13*Hoja1!$E$51) -> 547.3068269 | P13: 7.391838407e+11 | Q13: 1.668605689e+10 | R13: 0 | AB13: m3 | AC13: =+MMULT(_xlfn.ANCHORARRAY(AC9),$B$5:$D$7) -> 0.9586638062 | AD13: 0.02148569446 | AE13: 0.01985049938
B14: =+B11-B6 -> -0.71 | C14: =+C11-C6 -> 0.715 | E14: c_ACCP_09 | F14: =+Hoja1!$C99 -> 1024721763 | G14: =+Hoja1!$C117 -> 1026969723 | H14: 9 | I14: 934.8233039 | J14: =+I13*$C$5+J13*$C$6+K13*$C$7 -> 21.06627445 | K14: 44.11042164 | L14: 934.8233039 | M14: 21.06627445 | N14: 0 | O14: =+(I14*Hoja1!$E$51)+(J14*Hoja1!$E$51) -> 544.5702928 | P14: 7.643726895e+11 | Q14: 1.725569034e+10 | R14: 0 | AC14: 0.9534276918 | AD14: 0.02672180878 | AE14: 0.01985049938
E15: c_ACCP_10 | F15: =+Hoja1!$C100 -> 1154424308 | G15: =+Hoja1!$C118 -> 1156956800 | H15: 10 | I15: 930.1490694 | J15: =+I14*$C$5+J14*$C$6+K14*$C$7 -> 20.96106108 | K15: 48.88986953 | L15: 930.1490694 | M15: 20.96106108 | N15: 0 | O15: =+(I15*Hoja1!$E$51)+(J15*Hoja1!$E$51) -> 541.8474413 | P15: 7.983981815e+11 | Q15: 1.802462212e+10 | R15: 0 | AC15: 0 | AD15: 0 | AE15: 1
A16: Matriz Fundamental | B16: =+MINVERSE(B13:C14) -> 195.622435 | C16: 4.377564979 | E16: c_ACCP_11 | F16: =+Hoja1!$C101 -> 1154424308 | G16: =+Hoja1!$C119 -> 1156956800 | H16: 11 | I16: 925.4982923 | J16: 20.85628752 | K16: =+I15*$D$5+J15*$D$6+K15*$D$7 -> 53.64542019 | L16: 925.4982923 | M16: 20.85628752 | N16: 0 | O16: =+(I16*Hoja1!$E$51)+(J16*Hoja1!$E$51) -> 539.1382041 | P16: 7.565772984e+11 | Q16: 1.708050124e+10 | R16: 0
B17: 194.254446 | C17: 5.745554036 | E17: c_ACCP_12 | F17: =+Hoja1!$C102 -> 1482621908 | G17: =+Hoja1!$C120 -> 1485874376 | H17: 12 | I17: 920.8707923 | J17: 20.75201462 | K17: 58.37719309 | L17: 920.8707923 | M17: 20.75201462 | N17: 0 | O17: =+(I17*Hoja1!$E$51)+(J17*Hoja1!$E$51) -> 536.4425131 | P17: 8.852386798e+11 | Q17: 1.998662145e+10 | R17: 0 | AB17: m4 | AC17: =+MMULT(_xlfn.ANCHORARRAY(AC13),$B$5:$D$7) -> 0.9537867093 | AD17: 0.02146204382 | AE17: 0.02475124688
E18: c_ACCP_13 | F18: =+Hoja1!$C103 -> 1672517899 | G18: =+Hoja1!$C121 -> 1676186947 | H18: 13 | I18: 916.266436 | J18: 20.64825684 | K18: 63.08530712 | L18: 916.266436 | M18: 20.64825684 | N18: 0 | O18: =+(I18*Hoja1!$E$51)+(J18*Hoja1!$E$51) -> 533.7603005 | P18: 9.311424672e+11 | Q18: 2.102366819e+10 | R18: 0 | AC18: 0.9523781945 | AD18: 0.02287055857 | AE18: 0.02475124688
E19: c_ACCP_14 | F19: =+Hoja1!$C104 -> 1868504894 | G19: =+Hoja1!$C122 -> 1872603884 | H19: 14 | I19: 911.6851032 | J19: 20.54501618 | K19: 67.76988058 | L19: 911.6851032 | M19: 20.54501618 | N19: 0 | O19: =+(I19*Hoja1!$E$51)+(J19*Hoja1!$E$51) -> 531.091499 | P19: 9.72613083e+11 | Q19: 2.196057476e+10 | R19: 0 | AC19: 0 | AD19: 0 | AE19: 1
B20: Vivo | E20: c_ACCP_15 | F20: =+Hoja1!$C105 -> 1952345765 | G20: =+Hoja1!$C123 -> 1956628679 | H20: 15 | I20: =+I19*$B$5+J19*$B$6+K19*$B$7 -> 907.1266776 | J20: =+I19*$C$5+J19*$C$6+K19*$C$7 -> 20.44229126 | K20: =+I19*$D$5+J19*$D$6+K19*$D$7 -> 72.43103118 | L20: =+I20*1 -> 907.1266776 | M20: =+J20*1 -> 20.44229126 | N20: =+K20*0 -> 0 | O20: =+(I20*Hoja1!$E$51)+(J20*Hoja1!$E$51) -> 528.4360415 | P20: 9.582500977e+11 | Q20: 2.163648262e+10 | R20: 0
E21: c_ACCP_16 | F21: =+Hoja1!$C106 -> 2231098749 | G21: =+Hoja1!$C124 -> 2235993171 | H21: 16 | I21: =+I20*$B$5+J20*$B$6+K20*$B$7 -> 902.5910441 | J21: =+I20*$C$5+J20*$C$6+K20*$C$7 -> 20.34007985 | K21: =+I20*$D$5+J20*$D$6+K20*$D$7 -> 77.06887603 | L21: =+I21*1 -> 902.5910441 | M21: =+J21*1 -> 20.34007985 | N21: =+K21*0 -> 0 | O21: =+(I21*Hoja1!$E$51)+(J21*Hoja1!$E$51) -> 525.7938613 | P21: 1.023316879e+12 | Q21: 2.310626839e+10 | R21: 0 | AB21: m5 | AC21: =+MMULT(_xlfn.ANCHORARRAY(AC17),$B$5:$D$7) -> 0.9489952395 | AD21: 0.02137726984 | AE21: 0.02962749064
E22: c_ACCP_17 | F22: =+Hoja1!$C107 -> 2365817414 | G22: =+Hoja1!$C125 -> 2371007372 | H22: 17 | I22: =+I21*$B$5+J21*$B$6+K21*$B$7 -> 898.0780889 | J22: 20.23837946 | K22: 81.68353165 | L22: 898.0780889 | M22: 20.23837946 | N22: 0 | O22: =+(I22*Hoja1!$E$51)+(J22*Hoja1!$E$51) -> 523.164892 | P22: 1.022501178e+12 | Q22: 2.308810708e+10 | R22: 0 | AC22: 0.9486163491 | AD22: 0.02175616031 | AE22: 0.02962749064
A23: ACCP | B23: =+c_ACCP_A -> 429156000 | C23: =+c_ACCP_B -> 431121000 | E23: c_ACCP_18 | F23: =+Hoja1!$C108 -> 2443208988 | G23: =+Hoja1!$C126 -> 2448568722 | H23: 18 | I23: 893.5876984 | J23: 20.13718757 | K23: 86.27511399 | L23: 893.5876984 | M23: 20.13718757 | N23: 0 | O23: =+(I23*Hoja1!$E$51)+(J23*Hoja1!$E$51) -> 520.5490676 | P23: 9.97677405e+11 | Q23: 2.252771823e+10 | R23: 0 | AC23: 0 | AD23: 0 | AE23: 1
A24: COSTO FIJO | B24: =+ACCP -> 243745674 | E24: c_ACCP_>19 | F24: =+Hoja1!$C$109 -> 2508060260 | G24: =+Hoja1!$C$127 -> 2513562260 | H24: 19 | I24: 889.11976 | J24: 20.03650163 | K24: 90.84373842 | L24: 889.11976 | M24: 20.03650163 | N24: 0 | O24: =+(I24*Hoja1!$E$51)+(J24*Hoja1!$E$51) -> 517.9463222 | P24: 9.682363491e+11 | Q24: 2.186303672e+10 | R24: 0
E25: c_ACCP_>19 | F25: =+Hoja1!$C$109 -> 2508060260 | G25: =+Hoja1!$C$127 -> 2513562260 | H25: 20 | I25: 884.6741612 | J25: 19.93631912 | K25: 95.38951973 | L25: 884.6741612 | M25: 19.93631912 | N25: 0 | O25: =+(I25*Hoja1!$E$51)+(J25*Hoja1!$E$51) -> 515.3565906 | P25: 9.17519207e+11 | Q25: 2.071783004e+10 | R25: 0
E26: c_ACCP_>19 | F26: =+Hoja1!$C$109 -> 2508060260 | G26: =+Hoja1!$C$127 -> 2513562260 | H26: 21 | I26: 880.2507903 | J26: 19.83663753 | K26: 99.91257213 | L26: 880.2507903 | M26: 19.83663753 | N26: 0 | O26: =+(I26*Hoja1!$E$51)+(J26*Hoja1!$E$51) -> 512.7798077 | P26: 8.694586771e+11 | Q26: 1.963261037e+10 | R26: 0
E27: c_ACCP_>19 | F27: =+Hoja1!$C$109 -> 2508060260 | G27: =+Hoja1!$C$127 -> 2513562260 | H27: 22 | I27: 875.8495364 | J27: 19.73745434 | K27: 104.4130093 | L27: 875.8495364 | M27: 19.73745434 | N27: 0 | O27: =+(I27*Hoja1!$E$51)+(J27*Hoja1!$E$51) -> 510.2159086 | P27: 8.239156036e+11 | Q27: 1.860423554e+10 | R27: 0
E28: c_ACCP_>19 | F28: =+Hoja1!$C$109 -> 2508060260 | G28: =+Hoja1!$C$127 -> 2513562260 | H28: 23 | I28: 871.4702887 | J28: 19.63876707 | K28: 108.8909442 | L28: 871.4702887 | M28: 19.63876707 | N28: 0 | O28: =+(I28*Hoja1!$E$51)+(J28*Hoja1!$E$51) -> 507.6648291 | P28: 7.807581196e+11 | Q28: 1.762972797e+10 | R28: 0
E29: c_ACCP_>19 | F29: =+Hoja1!$C$109 -> 2508060260 | G29: =+Hoja1!$C$127 -> 2513562260 | H29: 24 | I29: 867.1129373 | J29: 19.54057323 | K29: 113.3464895 | L29: 867.1129373 | M29: 19.54057323 | N29: 0 | O29: =+(I29*Hoja1!$E$51)+(J29*Hoja1!$E$51) -> 505.1265049 | P29: 7.398612657e+11 | Q29: 1.670626602e+10 | R29: 0
E30: c_ACCP_>19 | F30: =+Hoja1!$C$109 -> 2508060260 | G30: =+Hoja1!$C$127 -> 2513562260 | H30: 25 | I30: 862.7773726 | J30: 19.44287037 | K30: 117.7797571 | L30: 862.7773726 | M30: 19.44287037 | N30: 0 | O30: =+(I30*Hoja1!$E$51)+(J30*Hoja1!$E$51) -> 502.6008724 | P30: 7.01106628e+11 | Q30: 1.58311759e+10 | R30: 0
E31: c_ACCP_>19 | F31: =+Hoja1!$C$109 -> 2508060260 | G31: =+Hoja1!$C$127 -> 2513562260 | H31: 26 | I31: 858.4634857 | J31: 19.34565602 | K31: 122.1908583 | L31: 858.4634857 | M31: 19.34565602 | N31: 0 | O31: =+(I31*Hoja1!$E$51)+(J31*Hoja1!$E$51) -> 500.087868 | P31: 6.643819951e+11 | Q31: 1.500192383e+10 | R31: 0
E32: c_ACCP_>19 | F32: =+Hoja1!$C$109 -> 2508060260 | G32: =+Hoja1!$C$127 -> 2513562260 | H32: 27 | I32: 854.1711683 | J32: 19.24892774 | K32: 126.579904 | L32: 854.1711683 | M32: 19.24892774 | N32: 0 | O32: =+(I32*Hoja1!$E$51)+(J32*Hoja1!$E$51) -> 497.5874287 | P32: 6.295810334e+11 | Q32: 1.421610877e+10 | R32: 0
E33: c_ACCP_>19 | F33: =+Hoja1!$C$109 -> 2508060260 | G33: =+Hoja1!$C$127 -> 2513562260 | H33: 28 | I33: 849.9003124 | J33: 19.1526831 | K33: 130.9470045 | L33: 849.9003124 | M33: 19.1526831 | N33: 0 | O33: =+(I33*Hoja1!$E$51)+(J33*Hoja1!$E$51) -> 495.0994916 | P33: 5.966029793e+11 | Q33: 1.347145545e+10 | R33: 0
E34: c_ACCP_>19 | F34: =+Hoja1!$C$109 -> 2508060260 | G34: =+Hoja1!$C$127 -> 2513562260 | H34: 29 | I34: 845.6508109 | J34: 19.05691968 | K34: 135.2922694 | L34: 845.6508109 | M34: 19.05691968 | N34: 0 | O34: =+(I34*Hoja1!$E$51)+(J34*Hoja1!$E$51) -> 492.6239941 | P34: 5.65352347e+11 | Q34: 1.276580779e+10 | R34: 0
E35: c_ACCP_>19 | F35: =+Hoja1!$C$109 -> 2508060260 | G35: =+Hoja1!$C$127 -> 2513562260 | H35: 30 | I35: 841.4225568 | J35: 18.96163508 | K35: 139.6158081 | L35: 841.4225568 | M35: 18.96163508 | N35: 0 | O35: =+(I35*Hoja1!$E$51)+(J35*Hoja1!$E$51) -> 490.1608741 | P35: 5.357386527e+11 | Q35: 1.209712262e+10 | R35: 0
E36: c_ACCP_>19 | F36: =+Hoja1!$C$109 -> 2508060260 | G36: =+Hoja1!$C$127 -> 2513562260 | H36: 31 | I36: 837.215444 | J36: 18.86682691 | K36: 143.917729 | L36: 837.215444 | M36: 18.86682691 | N36: 0 | O36: =+(I36*Hoja1!$E$51)+(J36*Hoja1!$E$51) -> 487.7100698 | P36: 5.076761518e+11 | Q36: 1.146346381e+10 | R36: 0
E37: c_ACCP_>19 | F37: =+Hoja1!$C$109 -> 2508060260 | G37: =+Hoja1!$C$127 -> 2513562260 | H37: 32 | I37: 833.0293668 | J37: 18.77249277 | K37: 148.1981404 | L37: 833.0293668 | M37: 18.77249277 | N37: 0 | O37: =+(I37*Hoja1!$E$51)+(J37*Hoja1!$E$51) -> 485.2715194 | P37: 4.810835915e+11 | Q37: 1.086299666e+10 | R37: 0
E38: c_ACCP_>19 | F38: =+Hoja1!$C$109 -> 2508060260 | G38: =+Hoja1!$C$127 -> 2513562260 | H38: 33 | I38: 828.86422 | J38: 18.67863031 | K38: 152.4571497 | L38: 828.86422 | M38: 18.67863031 | N38: 0 | O38: =+(I38*Hoja1!$E$51)+(J38*Hoja1!$E$51) -> 482.8451618 | P38: =+I38*($B$24+F38)/(1+TasaDescuento)^H38 -> 4.558839748e+11 | Q38: =+J38*($B$24+G38)/(1+TasaDescuento)^H38 -> 1.029398255e+10 | R38: 0
E39: c_ACCP_>19 | F39: =+Hoja1!$C$109 -> 2508060260 | G39: =+Hoja1!$C$127 -> 2513562260 | H39: 34 | I39: 824.7198989 | J39: 18.58523716 | K39: 156.6948639 | L39: 824.7198989 | M39: 18.58523716 | N39: 0 | O39: =+(I39*Hoja1!$E$51)+(J39*Hoja1!$E$51) -> 480.430936 | P39: 4.32004338e+11 | Q39: 9754773941 | R39: 0
E40: c_ACCP_>19 | F40: =+Hoja1!$C$109 -> 2508060260 | G40: =+Hoja1!$C$127 -> 2513562260 | H40: 35 | I40: 820.5962994 | J40: 18.49231097 | K40: 160.9113896 | L40: 820.5962994 | M40: 18.49231097 | N40: 0 | O40: =+(I40*Hoja1!$E$51)+(J40*Hoja1!$E$51) -> 478.0287813 | P40: 4.093755394e+11 | Q40: 9243809592 | R40: 0
E41: c_ACCP_>19 | F41: =+Hoja1!$C$109 -> 2508060260 | G41: =+Hoja1!$C$127 -> 2513562260 | H41: 36 | I41: 816.4933179 | J41: 18.39984942 | K41: 165.1068327 | L41: 816.4933179 | M41: 18.39984942 | N41: 0 | O41: =+(I41*Hoja1!$E$51)+(J41*Hoja1!$E$51) -> 475.6386374 | P41: 3.879320587e+11 | Q41: 8759610042 | R41: 0
E42: c_ACCP_>19 | F42: =+Hoja1!$C$109 -> 2508060260 | G42: =+Hoja1!$C$127 -> 2513562260 | H42: 37 | I42: 812.4108513 | J42: 18.30785017 | K42: 169.2812985 | L42: 812.4108513 | M42: 18.30785017 | N42: 0 | O42: =+(I42*Hoja1!$E$51)+(J42*Hoja1!$E$51) -> 473.2604442 | P42: 3.67611808e+11 | Q42: 8300773326 | R42: 0
E43: c_ACCP_>19 | F43: =+Hoja1!$C$109 -> 2508060260 | G43: =+Hoja1!$C$127 -> 2513562260 | H43: 38 | I43: 808.3487971 | J43: 18.21631092 | K43: 173.434892 | L43: 808.3487971 | M43: 18.21631092 | N43: 0 | O43: =+(I43*Hoja1!$E$51)+(J43*Hoja1!$E$51) -> 470.894142 | P43: 3.483559514e+11 | Q43: 7865970913 | R43: 0
E44: c_ACCP_>19 | F44: =+Hoja1!$C$109 -> 2508060260 | G44: =+Hoja1!$C$127 -> 2513562260 | H44: 39 | I44: 804.3070531 | J44: 18.12522936 | K44: 177.5677176 | L44: 804.3070531 | M44: 18.12522936 | N44: 0 | O44: =+(I44*Hoja1!$E$51)+(J44*Hoja1!$E$51) -> 468.5396713 | P44: 3.301087349e+11 | Q44: 7453943865 | R44: 0
E45: c_ACCP_>19 | F45: =+Hoja1!$C$109 -> 2508060260 | G45: =+Hoja1!$C$127 -> 2513562260 | H45: 40 | I45: 800.2855178 | J45: 18.03460322 | K45: 181.679879 | L45: 800.2855178 | M45: 18.03460322 | N45: 0 | O45: =+(I45*Hoja1!$E$51)+(J45*Hoja1!$E$51) -> 466.1969729 | P45: 3.12817325e+11 | Q45: 7063499187 | R45: 0
E46: c_ACCP_>19 | F46: =+Hoja1!$C$109 -> 2508060260 | G46: =+Hoja1!$C$127 -> 2513562260 | H46: 41 | I46: 796.2840902 | J46: 17.9444302 | K46: 185.7714796 | L46: 796.2840902 | M46: 17.9444302 | N46: 0 | O46: =+(I46*Hoja1!$E$51)+(J46*Hoja1!$E$51) -> 463.8659881 | P46: 2.964316556e+11 | Q46: 6693506372 | R46: 0
E47: c_ACCP_>19 | F47: =+Hoja1!$C$109 -> 2508060260 | G47: =+Hoja1!$C$127 -> 2513562260 | H47: 42 | I47: 792.3026698 | J47: 17.85470805 | K47: 189.8426222 | L47: 792.3026698 | M47: 17.85470805 | N47: 0 | O47: =+(I47*Hoja1!$E$51)+(J47*Hoja1!$E$51) -> 461.5466581 | P47: 2.809042832e+11 | Q47: 6342894134 | R47: 0
E48: c_ACCP_>19 | F48: =+Hoja1!$C$109 -> 2508060260 | G48: =+Hoja1!$C$127 -> 2513562260 | H48: 43 | I48: 788.3411564 | J48: 17.76543451 | K48: 193.8934091 | L48: 788.3411564 | M48: 17.76543451 | N48: 0 | O48: =+(I48*Hoja1!$E$51)+(J48*Hoja1!$E$51) -> 459.2389249 | P48: 2.661902493e+11 | Q48: 6010647298 | R48: 0
E49: c_ACCP_>19 | F49: =+Hoja1!$C$109 -> 2508060260 | G49: =+Hoja1!$C$127 -> 2513562260 | H49: 44 | I49: 784.3994506 | J49: 17.67660734 | K49: 197.923942 | L49: 784.3994506 | M49: 17.67660734 | N49: 0 | O49: =+(I49*Hoja1!$E$51)+(J49*Hoja1!$E$51) -> 456.9427302 | P49: 2.522469505e+11 | Q49: 5695803868 | R49: 0
E50: c_ACCP_>19 | F50: =+Hoja1!$C$109 -> 2508060260 | G50: =+Hoja1!$C$127 -> 2513562260 | H50: 45 | I50: 780.4774534 | J50: 17.5882243 | K50: 201.9343223 | L50: 780.4774534 | M50: 17.5882243 | N50: 0 | O50: =+(I50*Hoja1!$E$51)+(J50*Hoja1!$E$51) -> 454.6580166 | P50: 2.39034015e+11 | Q50: 5397452237 | R50: 0
E51: c_ACCP_>19 | F51: =+Hoja1!$C$109 -> 2508060260 | G51: =+Hoja1!$C$127 -> 2513562260 | H51: 46 | I51: 776.5750661 | J51: 17.50028318 | K51: 205.9246507 | L51: 776.5750661 | M51: 17.50028318 | N51: 0 | O51: =+(I51*Hoja1!$E$51)+(J51*Hoja1!$E$51) -> 452.3847265 | P51: 2.265131856e+11 | Q51: 5114728548 | R51: 0
E52: c_ACCP_>19 | F52: =+Hoja1!$C$109 -> 2508060260 | G52: =+Hoja1!$C$127 -> 2513562260 | H52: 47 | I52: 772.6921908 | J52: 17.41278176 | K52: 209.8950275 | L52: 772.6921908 | M52: 17.41278176 | N52: 0 | O52: =+(I52*Hoja1!$E$51)+(J52*Hoja1!$E$51) -> 450.1228029 | P52: 2.146482093e+11 | Q52: 4846814196 | R52: 0
E53: c_ACCP_>19 | F53: =+Hoja1!$C$109 -> 2508060260 | G53: =+Hoja1!$C$127 -> 2513562260 | H53: 48 | I53: 768.8287298 | J53: 17.32571786 | K53: 213.8455523 | L53: 768.8287298 | M53: 17.32571786 | N53: 0 | O53: =+(I53*Hoja1!$E$51)+(J53*Hoja1!$E$51) -> 447.8721888 | P53: 2.034047316e+11 | Q53: 4592933452 | R53: 0
E54: c_ACCP_>19 | F54: =+Hoja1!$C$109 -> 2508060260 | G54: =+Hoja1!$C$127 -> 2513562260 | H54: 49 | I54: 764.9845862 | J54: 17.23908927 | K54: 217.7763246 | L54: 764.9845862 | M54: 17.23908927 | N54: 0 | O54: =+(I54*Hoja1!$E$51)+(J54*Hoja1!$E$51) -> 445.6328279 | P54: 1.927501981e+11 | Q54: 4352351224 | R54: 0
E55: c_ACCP_>19 | F55: =+Hoja1!$C$109 -> 2508060260 | G55: =+Hoja1!$C$127 -> 2513562260 | H55: 50 | I55: 761.1596632 | J55: 17.15289382 | K55: 221.6874429 | L55: 761.1596632 | M55: 17.15289382 | N55: 0 | O55: =+(I55*Hoja1!$E$51)+(J55*Hoja1!$E$51) -> 443.4046638 | P55: 1.826537591e+11 | Q55: 4124370922 | R55: 0
E56: c_ACCP_>19 | F56: =+Hoja1!$C$109 -> 2508060260 | G56: =+Hoja1!$C$127 -> 2513562260 | H56: 51 | I56: 757.3538649 | J56: 17.06712935 | K56: 225.5790057 | L56: 757.3538649 | M56: 17.06712935 | N56: 0 | O56: =+(I56*Hoja1!$E$51)+(J56*Hoja1!$E$51) -> 441.1876404 | P56: 1.730861813e+11 | Q56: 3908332445 | R56: 0
E57: c_ACCP_>19 | F57: =+Hoja1!$C$109 -> 2508060260 | G57: =+Hoja1!$C$127 -> 2513562260 | H57: 52 | I57: 753.5670956 | J57: 16.9817937 | K57: 229.4511107 | L57: 753.5670956 | M57: 16.9817937 | N57: 0 | O57: =+(I57*Hoja1!$E$51)+(J57*Hoja1!$E$51) -> 438.9817022 | P57: 1.640197622e+11 | Q57: 3703610269 | R57: 0
E58: c_ACCP_>19 | F58: =+Hoja1!$C$109 -> 2508060260 | G58: =+Hoja1!$C$127 -> 2513562260 | H58: 53 | I58: 749.7992601 | J58: 16.89688474 | K58: 233.3038551 | L58: 749.7992601 | M58: 16.89688474 | N58: 0 | O58: =+(I58*Hoja1!$E$51)+(J58*Hoja1!$E$51) -> 436.7867937 | P58: 1.554282509e+11 | Q58: 3509611636 | R58: 0
E59: c_ACCP_>19 | F59: =+Hoja1!$C$109 -> 2508060260 | G59: =+Hoja1!$C$127 -> 2513562260 | H59: 54 | I59: 746.0502638 | J59: 16.81240031 | K59: 237.1373359 | L59: 746.0502638 | M59: 16.81240031 | N59: 0 | O59: =+(I59*Hoja1!$E$51)+(J59*Hoja1!$E$51) -> 434.6028598 | P59: 1.472867711e+11 | Q59: 3325774836 | R59: 0
E60: c_ACCP_>19 | F60: =+Hoja1!$C$109 -> 2508060260 | G60: =+Hoja1!$C$127 -> 2513562260 | H60: 55 | I60: 742.3200125 | J60: 16.72833831 | K60: 240.9516492 | L60: 742.3200125 | M60: 16.72833831 | N60: 0 | O60: =+(I60*Hoja1!$E$51)+(J60*Hoja1!$E$51) -> 432.4298455 | P60: 1.395717497e+11 | Q60: 3151567583 | R60: 0
E61: c_ACCP_>19 | F61: =+Hoja1!$C$109 -> 2508060260 | G61: =+Hoja1!$C$127 -> 2513562260 | H61: 56 | I61: 738.6084124 | J61: 16.64469662 | K61: 244.7468909 | L61: 738.6084124 | M61: 16.64469662 | N61: 0 | O61: =+(I61*Hoja1!$E$51)+(J61*Hoja1!$E$51) -> 430.2676962 | P61: 1.322608486e+11 | Q61: 2986485471 | R61: 0
E62: c_ACCP_>19 | F62: =+Hoja1!$C$109 -> 2508060260 | G62: =+Hoja1!$C$127 -> 2513562260 | H62: 57 | I62: 734.9153704 | J62: 16.56147314 | K62: 248.5231565 | L62: 734.9153704 | M62: 16.56147314 | N62: 0 | O62: =+(I62*Hoja1!$E$51)+(J62*Hoja1!$E$51) -> 428.1163578 | P62: 1.253328993e+11 | Q62: 2830050518 | R62: 0
E63: c_ACCP_>19 | F63: =+Hoja1!$C$109 -> 2508060260 | G63: =+Hoja1!$C$127 -> 2513562260 | H63: 58 | I63: 731.2407935 | J63: 16.47866577 | K63: 252.2805407 | L63: 731.2407935 | M63: 16.47866577 | N63: 0 | O63: =+(I63*Hoja1!$E$51)+(J63*Hoja1!$E$51) -> 425.975776 | P63: 1.187678427e+11 | Q63: 2681809777 | R63: 0
E64: c_ACCP_>19 | F64: =+Hoja1!$C$109 -> 2508060260 | G64: =+Hoja1!$C$127 -> 2513562260 | H64: 59 | I64: 727.5845896 | J64: 16.39627244 | K64: 256.019138 | L64: 727.5845896 | M64: 16.39627244 | N64: 0 | O64: =+(I64*Hoja1!$E$51)+(J64*Hoja1!$E$51) -> 423.8458971 | P64: 1.1254667e+11 | Q64: 2541334026 | R64: 0
E65: c_ACCP_>19 | F65: =+Hoja1!$C$109 -> 2508060260 | G65: =+Hoja1!$C$127 -> 2513562260 | H65: 60 | I65: 723.9466666 | J65: 16.31429108 | K65: 259.7390423 | L65: 723.9466666 | M65: 16.31429108 | N65: 0 | O65: =+(I65*Hoja1!$E$51)+(J65*Hoja1!$E$51) -> 421.7266676 | P65: 1.066513682e+11 | Q65: 2408216530 | R65: 0
E66: c_ACCP_>19 | F66: =+Hoja1!$C$109 -> 2508060260 | G66: =+Hoja1!$C$127 -> 2513562260 | H66: 61 | I66: 720.3269333 | J66: 16.23271962 | K66: 263.4403471 | L66: 720.3269333 | M66: 16.23271962 | N66: 0 | O66: =+(I66*Hoja1!$E$51)+(J66*Hoja1!$E$51) -> 419.6180343 | P66: 1.01064868e+11 | Q66: 2282071854 | R66: 0
E67: c_ACCP_>19 | F67: =+Hoja1!$C$109 -> 2508060260 | G67: =+Hoja1!$C$127 -> 2513562260 | H67: 62 | I67: 716.7252986 | J67: 16.15155603 | K67: 267.1231454 | L67: 716.7252986 | M67: 16.15155603 | N67: 0 | O67: =+(I67*Hoja1!$E$51)+(J67*Hoja1!$E$51) -> 417.5199441 | P67: 9.577099396e+10 | Q67: 2162534757 | R67: 0
E68: c_ACCP_>19 | F68: =+Hoja1!$C$109 -> 2508060260 | G68: =+Hoja1!$C$127 -> 2513562260 | H68: 63 | I68: 713.1416721 | J68: 16.07079825 | K68: 270.7875296 | L68: 713.1416721 | M68: 16.07079825 | N68: 0 | O68: =+(I68*Hoja1!$E$51)+(J68*Hoja1!$E$51) -> 415.4323444 | P68: 9.075441809e+10 | Q68: 2049259127 | R68: 0
E69: c_ACCP_>19 | F69: =+Hoja1!$C$109 -> 2508060260 | G69: =+Hoja1!$C$127 -> 2513562260 | H69: 64 | I69: 709.5759638 | J69: 15.99044425 | K69: 274.433592 | L69: 709.5759638 | M69: 15.99044425 | N69: 0 | O69: =+(I69*Hoja1!$E$51)+(J69*Hoja1!$E$51) -> 413.3551826 | P69: 8.600061523e+10 | Q69: 1941916982 | R69: 0
E70: c_ACCP_>19 | F70: =+Hoja1!$C$109 -> 2508060260 | G70: =+Hoja1!$C$127 -> 2513562260 | H70: 65 | I70: 706.0280839 | J70: 15.91049203 | K70: 278.061424 | L70: 706.0280839 | M70: 15.91049203 | N70: 0 | O70: =+(I70*Hoja1!$E$51)+(J70*Hoja1!$E$51) -> 411.2884067 | P70: =+I70*($B$24+F70)/(1+TasaDescuento)^H70 -> 8.14958211e+10 | Q70: =+J70*($B$24+G70)/(1+TasaDescuento)^H70 -> 1840197521 | R70: 0
E71: c_ACCP_>19 | F71: =+Hoja1!$C$109 -> 2508060260 | G71: =+Hoja1!$C$127 -> 2513562260 | H71: 66 | I71: 702.4979435 | J71: 15.83093957 | K71: 281.6711169 | L71: 702.4979435 | M71: 15.83093957 | N71: 0 | O71: =+(I71*Hoja1!$E$51)+(J71*Hoja1!$E$51) -> 409.2319647 | P71: 7.722699238e+10 | Q71: 1743806223 | R71: 0
E72: c_ACCP_>19 | F72: =+Hoja1!$C$109 -> 2508060260 | G72: =+Hoja1!$C$127 -> 2513562260 | H72: 67 | I72: 698.9854538 | J72: 15.75178487 | K72: 285.2627613 | L72: 698.9854538 | M72: 15.75178487 | N72: 0 | O72: =+(I72*Hoja1!$E$51)+(J72*Hoja1!$E$51) -> 407.1858049 | P72: 7.318176897e+10 | Q72: 1652463992 | R72: 0
E73: c_ACCP_>19 | F73: =+Hoja1!$C$109 -> 2508060260 | G73: =+Hoja1!$C$127 -> 2513562260 | H73: 68 | I73: 695.4905265 | J73: 15.67302595 | K73: 288.8364475 | L73: 695.4905265 | M73: 15.67302595 | N73: 0 | O73: =+(I73*Hoja1!$E$51)+(J73*Hoja1!$E$51) -> 405.1498759 | P73: 6.934843821e+10 | Q73: 1565906354 | R73: 0
E74: c_ACCP_>19 | F74: =+Hoja1!$C$109 -> 2508060260 | G74: =+Hoja1!$C$127 -> 2513562260 | H74: 69 | I74: 692.0130739 | J74: 15.59466082 | K74: 292.3922653 | L74: 692.0130739 | M74: 15.59466082 | N74: 0 | O74: =+(I74*Hoja1!$E$51)+(J74*Hoja1!$E$51) -> 403.1241265 | P74: 6.571590097e+10 | Q74: 1483882688 | R74: 0
E75: c_ACCP_>19 | F75: =+Hoja1!$C$109 -> 2508060260 | G75: =+Hoja1!$C$127 -> 2513562260 | H75: 70 | I75: 688.5530085 | J75: 15.51668752 | K75: 295.9303039 | L75: 688.5530085 | M75: 15.51668752 | N75: 0 | O75: =+(I75*Hoja1!$E$51)+(J75*Hoja1!$E$51) -> 401.1085058 | P75: 6.227363949e+10 | Q75: 1406155500 | R75: 0
E76: c_ACCP_>19 | F76: =+Hoja1!$C$109 -> 2508060260 | G76: =+Hoja1!$C$127 -> 2513562260 | H76: 71 | I76: 685.1102435 | J76: 15.43910408 | K76: 299.4506524 | L76: 685.1102435 | M76: 15.43910408 | N76: 0 | O76: =+(I76*Hoja1!$E$51)+(J76*Hoja1!$E$51) -> 399.1029633 | P76: 5.901168695e+10 | Q76: 1332499735 | R76: 0
E77: c_ACCP_>19 | F77: =+Hoja1!$C$109 -> 2508060260 | G77: =+Hoja1!$C$127 -> 2513562260 | H77: 72 | I77: 681.6846923 | J77: 15.36190856 | K77: 302.9533992 | L77: 681.6846923 | M77: 15.36190856 | N77: 0 | O77: =+(I77*Hoja1!$E$51)+(J77*Hoja1!$E$51) -> 397.1074485 | P77: 5.592059858e+10 | Q77: 1262702130 | R77: 0
E78: c_ACCP_>19 | F78: =+Hoja1!$C$109 -> 2508060260 | G78: =+Hoja1!$C$127 -> 2513562260 | H78: 73 | I78: 678.2762688 | J78: 15.28509902 | K78: 306.4386322 | L78: 678.2762688 | M78: 15.28509902 | N78: 0 | O78: =+(I78*Hoja1!$E$51)+(J78*Hoja1!$E$51) -> 395.1219113 | P78: 5.299142437e+10 | Q78: 1196560590 | R78: 0
I79: =+SUM(I5:I78)/$I$5 -> 60.64545753 | J79: 1.335830275 | K79: 12.0187122 | L79: 60.64545753 | M79: 1.335830275 | N79: 0 | O79: 35.31073966 | P79: 3.278643815e+10 | Q79: 718995505.3 | R79: 0
AB80: =+(L79+M79)/20 -> 3.09906439
H82: PARA ESTE PRIMER USO DE LA MOLECULA SE ESPERARIA UNA ESPERANZA DE VIDA DE 19,08 AÑOS. EN ESTE PRIMER TRAYECTO DE 20 AÑOS PARA EL MODELO SE ESPERA UNA PROPORCION DEL 95% DE LA PERSONAS PERMANEZCAN VIVAS A LOS 20 AÑOS
A83: PROFILAXIS EMICIZUMAB
I84: Número de pacientes | L84: Expectativa de vida | P84: Costos acumulados
B85: Vivo | C85: Sangrado Articular | D85: Muera | F85: Costo EMIZ | G85: Costo EMIZ | I85: Vivo | J85: Sangrado Articular | K85: Muera | L85: Vivo | M85: Sangrado Articular | N85: Muera | O85: AVAC | P85: Vivo | Q85: Vivo con sangrado | R85: Muera
A86: Vivo | B86: =+EMZ_V_a_V -> 0.99484 | C86: =+EMZ_V_a_SA -> 0.00016 | D86: =+EMZ_V_a_M -> 0.005 | E86: c_EMZ_02 | F86: =+Hoja1!$C$56 -> 190814910.6 | G86: =+Hoja1!$C$74 -> 190877523.5 | H86: 0 | I86: 1000 | J86: 0 | K86: 0 | L86: =+I86*1 -> 1000 | M86: =+J86*1 -> 0 | N86: =+K86*0 -> 0 | O86: =+(I86*Hoja1!$D$51) -> 768.3 | P86: =+I86*($B$107+F86)/(1)^H86 -> 4.345605846e+11 | Q86: =+J86*($B$107+G86)/(1)^H86 -> 0 | R86: 0 | AB86: m1 | AC86: =+MMULT(B86:D88,B86:D88) -> 0.9898202256 | AD86: 0.0002047744 | AE86: 0.009975 | AF86: m5 | AG86: =+AC86+B86+AC90+AC94+AC98 -> 4.924477974 | AH86: 0.001020154654 | AI86: 0.07450187125
A87: Sangrado Articular | B87: =+EMZ_SA_a_V -> 0.71 | C87: =+EMZ_SA_a_SA -> 0.285 | D87: =+EMZ_SA_a_M -> 0.005 | E87: c_EMZ_02 | F87: =+Hoja1!$C$56 -> 190814910.6 | G87: =+Hoja1!$C$74 -> 190877523.5 | H87: 1 | I87: =+I86*$B$86+J86*$B$87+K86*$B$88 -> 994.84 | J87: =+I86*$C$86+J86*$C$87+K86*$C$88 -> 0.16 | K87: =+I86*$D$86+J86*$D$87+K86*$D$88 -> 5 | L87: =+I87*1 -> 994.84 | M87: =+J87*1 -> 0.16 | N87: =+K87*0 -> 0 | O87: =+(I87*Hoja1!$D$51)+('Cálculo de la Cadena'!J87*Hoja1!$D$51) -> 764.4585 | P87: =+I87*($B$107+F87)/(1+TasaDescuento)^H87 -> 4.117316686e+11 | Q87: =+J87*($B$107+G87)/(1+TasaDescuento)^H87 -> 66228296.77 | R87: 0 | AC87: 0.9086864 | AD87: 0.0813386 | AE87: 0.009975 | AG87: 4.526936276 | AH87: 0.3985618524 | AI87: 0.07450187125
A88: Muera | B88: 0 | C88: 0 | D88: =+EMZ_M_a_M -> 1 | E88: c_EMZ_02 | F88: =+Hoja1!$C$56 -> 190814910.6 | G88: =+Hoja1!C74 -> 190877523.5 | H88: 2 | I88: =+I87*$B$86+J87*$B$87+K87*$B$88 -> 989.8202256 | J88: =+I87*$C$86+J87*$C$87+K87*$C$88 -> 0.2047744 | K88: =+I87*$D$86+J87*$D$87+K87*$D$88 -> 9.975 | L88: =+I88*1 -> 989.8202256 | M88: =+J88*1 -> 0.2047744 | N88: =+K88*0 -> 0 | O88: =+(I88*Hoja1!$D$51)+('Cálculo de la Cadena'!J88*Hoja1!$D$51) -> 760.6362075 | P88: 3.901468081e+11 | Q88: 80725355.56 | R88: 0 | AC88: 0 | AD88: 0 | AE88: 1 | AG88: 0 | AH88: 0 | AI88: 5
E89: c_EMZ_03 | F89: =+Hoja1!C57 -> 222967974.3 | G89: =+Hoja1!C75 -> 223041137.7 | H89: 3 | I89: =+I88*$B$86+J88*$B$87+K88*$B$88 -> 984.8581431 | J89: =+I88*$C$86+J88*$C$87+K88*$C$88 -> 0.2167319401 | K89: =+I88*$D$86+J88*$D$87+K88*$D$88 -> 14.925125 | L89: =+I89*1 -> 984.8581431 | M89: =+J89*1 -> 0.2167319401 | N89: =+K89*0 -> 0 | O89: =+(I89*Hoja1!$D$51)+('Cálculo de la Cadena'!J89*Hoja1!$D$51) -> 756.8330265 | P89: 3.970601335e+11 | Q89: 87392386.41 | R89: 0
E90: c_EMZ_04 | F90: =+Hoja1!C58 -> 253919054.3 | G90: =+Hoja1!C76 -> 254002373.8 | H90: 4 | I90: 979.9301547 | J90: 0.2193459058 | K90: 19.85049937 | L90: 979.9301547 | M90: 0.2193459058 | N90: 0 | O90: =+(I90*Hoja1!$D$51)+('Cálculo de la Cadena'!J90*Hoja1!$D$51) -> 753.0488613 | P90: 4.012128068e+11 | Q90: 89821830.55 | R90: 0 | AB90: m2 | AC90: =+MMULT(_xlfn.ANCHORARRAY(AC86),$B$86:$D$88) -> 0.9848581431 | AD90: 0.0002167319401 | AE90: 0.014925125
A91: Matriz Identidad | B91: 1 | C91: 0 | E91: c_EMZ_05 | F91: =+Hoja1!C59 -> 286372613.9 | G91: =+Hoja1!C77 -> 286466582.6 | H91: 5 | I91: =+I90*$B$86+J90*$B$87+K90*$B$88 -> 975.0294507 | J91: =+I90*$C$86+J90*$C$87+K90*$C$88 -> 0.2193024079 | K91: =+I90*$D$86+J90*$D$87+K90*$D$88 -> 24.75124688 | L91: 975.0294507 | M91: 0.2193024079 | N91: 0 | O91: =+(I91*Hoja1!$D$51)+('Cálculo de la Cadena'!J91*Hoja1!$D$51) -> 749.283617 | P91: 4.049897439e+11 | Q91: 91105934.61 | R91: 0 | AC91: 0.9617479842 | AD91: 0.02332689082 | AE91: 0.014925125
B92: 0 | C92: 1 | E92: c_EMZ_06 | F92: =+Hoja1!C60 -> 321530636.8 | G92: =+Hoja1!C78 -> 321636142 | H92: 6 | I92: =+I91*$B$86+J91*$B$87+K91*$B$88 -> 970.1540035 | J92: =+I91*$C$86+J91*$C$87+K91*$C$88 -> 0.2185058984 | K92: =+I91*$D$86+J91*$D$87+K91*$D$88 -> 29.62749064 | L92: 970.1540035 | M92: 0.2185058984 | N92: 0 | O92: =+(I92*Hoja1!$D$51)+('Cálculo de la Cadena'!J92*Hoja1!$D$51) -> 745.5371989 | P92: 4.092283113e+11 | Q92: 92186899.12 | R92: 0 | AC92: 0 | AD92: 0 | AE92: 1
E93: c_EMZ_07 | F93: =+Hoja1!C61 -> 349476757.6 | G93: =+Hoja1!C79 -> 349591432.9 | H93: 7 | I93: 965.303148 | J93: 0.2174988216 | K93: 34.47935319 | L93: 965.303148 | M93: 0.2174988216 | N93: 0 | O93: =+(I93*Hoja1!$D$51)+('Cálculo de la Cadena'!J93*Hoja1!$D$51) -> 741.8095129 | P93: 4.069641878e+11 | Q93: 91713512.04 | R93: 0
B94: =+B91-B86 -> 0.00516 | C94: =+C91-C86 -> -0.00016 | E94: c_EMZ_08 | F94: =+Hoja1!C62 -> 385235772.4 | G94: =+Hoja1!C80 -> 385362181.4 | H94: 8 | I94: 960.4766079 | J94: 0.2164356678 | K94: 39.30695642 | L94: 960.4766079 | M94: 0.2164356678 | N94: 0 | O94: =+(I94*Hoja1!$D$51)+('Cálculo de la Cadena'!J94*Hoja1!$D$51) -> 738.1004654 | P94: 4.088935261e+11 | Q94: 92159380.77 | R94: 0 | AB94: m3 | AC94: =+MMULT(_xlfn.ANCHORARRAY(AC90),$B$86:$D$88) -> 0.9799301547 | AD94: 0.0002193459058 | AE94: 0.01985049937
B95: =+B92-B87 -> -0.71 | C95: =+C92-C87 -> 0.715 | E95: c_EMZ_09 | F95: =+Hoja1!C63 -> 429709168.8 | G95: =+Hoja1!C81 -> 429850171.1 | H95: 9 | I95: 955.6742179 | J95: 0.2153604226 | K95: 44.11042164 | L95: 955.6742179 | M95: =+J95*1 -> 0.2153604226 | N95: 0 | O95: =+(I95*Hoja1!$D$51)+('Cálculo de la Cadena'!J95*Hoja1!$D$51) -> 734.4099631 | P95: 4.148725097e+11 | Q95: 93510763.47 | R95: 0 | AC95: 0.9733474571 | AD95: 0.006802043562 | AE95: 0.01985049938
E96: c_EMZ_10 | F96: =+Hoja1!C64 -> 484098930.8 | G96: =+Hoja1!C82 -> 484257780.2 | H96: 10 | I96: 950.8958449 | J96: 0.2142855953 | K96: 48.88986953 | L96: 950.8958449 | M96: 0.2142855953 | N96: 0 | O96: =+(I96*Hoja1!$D$51)+('Cálculo de la Cadena'!J96*Hoja1!$D$51) -> 730.7379132 | P96: 4.248920704e+11 | Q96: 95770868.79 | R96: 0 | AC96: 0 | AD96: 0 | AE96: 1
A97: Matriz Fundamental | B97: =+MINVERSE(B94:C95) -> 199.9552548 | C97: 0.04474523184 | E97: c_EMZ_11 | F97: =+Hoja1!C65 -> 484098930.8 | G97: =+Hoja1!C83 -> 484257780.2 | H97: 11 | I97: 946.1413651 | J97: 0.2132147298 | K97: 53.64542019 | L97: 946.1413651 | M97: 0.2132147298 | N97: 0 | O97: =+(I97*Hoja1!$D$51)+('Cálculo de la Cadena'!J97*Hoja1!$D$51) -> 727.0842237 | P97: 4.026358188e+11 | Q97: 90754538.9 | R97: 0
B98: 198.5569663 | C98: 1.443033727 | E98: c_EMZ_12 | F98: =+Hoja1!C66 -> 621726063.2 | G98: =+Hoja1!C84 -> 621930072.8 | H98: 12 | I98: 941.4106581 | J98: 0.2121488164 | K98: 58.37719309 | L98: 941.4106581 | M98: 0.2121488164 | N98: 0 | O98: =+(I98*Hoja1!$D$51)+('Cálculo de la Cadena'!J98*Hoja1!$D$51) -> 723.4488026 | P98: 4.536912591e+11 | Q98: 102264352.9 | R98: 0 | AB98: m4 | AC98: =+MMULT(_xlfn.ANCHORARRAY(AC94),$B$86:$D$88) -> 0.9750294507 | AD98: 0.0002193024079 | AE98: 0.02475124688
E99: c_EMZ_13 | F99: =+Hoja1!C67 -> 701357482.6 | G99: =+Hoja1!C85 -> 701587622 | H99: 13 | I99: 936.7036048 | J99: 0.211088118 | K99: 63.08530712 | L99: 936.7036048 | M99: 0.211088118 | N99: 0 | O99: =+(I99*Hoja1!$D$51)+('Cálculo de la Cadena'!J99*Hoja1!$D$51) -> 719.8315585 | P99: 4.694836986e+11 | Q99: 105824897 | R99: 0 | AC99: 0.9731544351 | AD99: 0.002094318008 | AE99: 0.02475124688
E100: c_EMZ_14 | F100: =+Hoja1!C68 -> 783543117.3 | G100: =+Hoja1!C86 -> 783800224.6 | H100: 14 | I100: 932.0200867 | J100: 0.2100326904 | K100: 67.76988058 | L100: 932.0200867 | M100: 0.2100326904 | N100: 0 | O100: =+(I100*Hoja1!$D$51)+('Cálculo de la Cadena'!J100*Hoja1!$D$51) -> 716.2324007 | P100: 4.83579225e+11 | Q100: 109002871.4 | R100: 0 | AC100: 0 | AD100: 0 | AE100: 1
A101: Feiba | E101: c_EMZ_15 | F101: =+Hoja1!C69 -> 818701140.2 | G101: =+Hoja1!C87 -> 818969784.1 | H101: 15 | I101: 927.3599863 | J101: 0.2089825306 | K101: 72.43103118 | L101: 927.3599863 | M101: 0.2089825306 | N101: 0 | O101: =+(I101*Hoja1!$D$51)+('Cálculo de la Cadena'!J101*Hoja1!$D$51) -> 712.6512387 | P101: 4.739320352e+11 | Q101: 106828589.8 | R101: 0
A102: Feiba | B102: Si la persona sangra se toma el doble del medicamento | E102: c_EMZ_16 | F102: =+Hoja1!C70 -> 935594054 | G102: =+Hoja1!C88 -> 935901054.4 | H102: 16 | I102: 922.7231864 | J102: 0.207937619 | K102: 77.06887603 | L102: 922.7231864 | M102: 0.207937619 | N102: 0 | O102: =+(I102*Hoja1!$D$51)+('Cálculo de la Cadena'!J102*Hoja1!$D$51) -> 709.0879825 | P102: 4.985188418e+11 | Q102: 112371518.4 | R102: 0
E103: c_EMZ_17 | F103: =+Hoja1!C71 -> 992087287.4 | G103: =+Hoja1!C89 -> 992412825.2 | H103: 17 | I103: 918.1095704 | J103: 0.2068979312 | K103: 81.68353165 | L103: 918.1095704 | M103: 0.2068979312 | N103: 0 | O103: =+(I103*Hoja1!$D$51)+('Cálculo de la Cadena'!J103*Hoja1!$D$51) -> 705.5425426 | P103: 4.950353409e+11 | Q103: 111586645.8 | R103: 0
A104: Matriz de Costos | B104: Vivo | C104: Sangrado Articular | E104: c_EMZ_18 | F104: =+Hoja1!C72 -> 1024540847 | G104: =+Hoja1!C90 -> 1024877034 | H104: 18 | I104: 913.5190226 | J104: 0.2058634417 | K104: 86.27511399 | L104: 913.5190226 | M104: 0.2058634417 | N104: 0 | O104: =+(I104*Hoja1!$D$51)+('Cálculo de la Cadena'!J104*Hoja1!$D$51) -> 702.0148299 | P104: 4.814238359e+11 | Q104: 108518636.1 | R104: 0
A105: Feiba | B105: 429156000 | C105: 858312000 | D105: 0 | E105: c_EMZ_>19 | F105: =+Hoja1!$C$73 -> 1051735728 | G105: =+Hoja1!$C$91 -> 1052080838 | H105: 19 | I105: 908.9514275 | J105: 0.2048341245 | K105: 90.84373842 | L105: 908.9514275 | M105: 0.2048341245 | N105: 0 | O105: =+(I105*Hoja1!$D$51)+('Cálculo de la Cadena'!J105*Hoja1!$D$51) -> 698.5047558 | P105: 4.659884756e+11 | Q105: 105039462.1 | R105: 0 | AC105: de por vida
A106: Total | B106: =+c_EMZ_A -> 300495922 | C106: =+c_EMZ_B -> 300619176 | D106: =+D105 -> 0 | E106: c_EMZ_>19 | F106: =+Hoja1!$C$73 -> 1051735728 | G106: =+Hoja1!$C$91 -> 1052080838 | H106: 20 | I106: =+I105*$B$86+J105*$B$87+K105*$B$88 -> 904.4066703 | J106: =+I105*$C$86+J105*$C$87+K105*$C$88 -> 0.2038099539 | K106: =+I105*$D$86+J105*$D$87+K105*$D$88 -> 95.38951973 | L106: 904.4066703 | M106: 0.2038099539 | N106: 0 | O106: =+(I106*Hoja1!$D$51)+('Cálculo de la Cadena'!J106*Hoja1!$D$51) -> 695.012232 | P106: 4.415795555e+11 | Q106: 99537395 | R106: 0
A107: COSTO FIJO | B107: =+EMZ -> 243745674 | E107: c_EMZ_>19 | F107: =+Hoja1!$C$73 -> 1051735728 | G107: =+Hoja1!$C$91 -> 1052080838 | H107: 21 | I107: 899.884637 | J107: 0.2027909041 | K107: 99.91257213 | L107: 899.884637 | M107: 0.2027909041 | N107: 0 | O107: =+(I107*Hoja1!$D$51)+('Cálculo de la Cadena'!J107*Hoja1!$D$51) -> 691.5371708 | P107: 4.184491978e+11 | Q107: 94323531.45 | R107: 0
E108: c_EMZ_>19 | F108: =+Hoja1!$C$73 -> 1051735728 | G108: =+Hoja1!$C$91 -> 1052080838 | H108: 22 | I108: 895.3852138 | J108: 0.2017769496 | K108: 104.4130093 | L108: 895.3852138 | M108: 0.2017769496 | N108: 0 | O108: =+(I108*Hoja1!$D$51)+('Cálculo de la Cadena'!J108*Hoja1!$D$51) -> 688.079485 | P108: 3.965304303e+11 | Q108: 89382775.04 | R108: 0
E109: c_EMZ_>19 | F109: =+Hoja1!$C$73 -> 1051735728 | G109: =+Hoja1!$C$91 -> 1052080838 | H109: 23 | I109: 890.9082877 | J109: 0.2007680648 | K109: 108.8909442 | L109: 890.9082877 | M109: 0.2007680648 | N109: 0 | O109: =+(I109*Hoja1!$D$51)+('Cálculo de la Cadena'!J109*Hoja1!$D$51) -> 684.6390876 | P109: 3.757597887e+11 | Q109: 84700820.16 | R109: 0
E110: c_EMZ_>19 | F110: =+Hoja1!$C$73 -> 1051735728 | G110: =+Hoja1!$C$91 -> 1052080838 | H110: 24 | I110: 886.4537463 | J110: 0.1997642245 | K110: 113.3464895 | L110: 886.4537463 | M110: 0.1997642245 | N110: 0 | O110: =+(I110*Hoja1!$D$51)+('Cálculo de la Cadena'!J110*Hoja1!$D$51) -> 681.2158921 | P110: 3.560771331e+11 | Q110: 80264110.53 | R110: 0
E111: c_EMZ_>19 | F111: =+Hoja1!$C$73 -> 1051735728 | G111: =+Hoja1!$C$91 -> 1052080838 | H111: 25 | I111: 882.0214775 | J111: 0.1987654034 | K111: 117.7797571 | L111: 882.0214775 | M111: 0.1987654034 | N111: 0 | O111: =+(I111*Hoja1!$D$51)+('Cálculo de la Cadena'!J111*Hoja1!$D$51) -> 677.8098127 | P111: 3.374254738e+11 | Q111: 76059799.98 | R111: 0
E112: c_EMZ_>19 | F112: =+Hoja1!$C$73 -> 1051735728 | G112: =+Hoja1!$C$91 -> 1052080838 | H112: 26 | I112: 877.6113702 | J112: 0.1977715764 | K112: 122.1908583 | L112: 877.6113702 | M112: 0.1977715764 | N112: 0 | O112: =+(I112*Hoja1!$D$51)+('Cálculo de la Cadena'!J112*Hoja1!$D$51) -> 674.4207636 | P112: 3.197508061e+11 | Q112: 72075715.22 | R112: 0
E113: c_EMZ_>19 | F113: =+Hoja1!$C$73 -> 1051735728 | G113: =+Hoja1!$C$91 -> 1052080838 | H113: 27 | I113: 873.2233133 | J113: 0.1967827185 | K113: 126.579904 | L113: 873.2233133 | M113: 0.1967827185 | N113: 0 | O113: =+(I113*Hoja1!$D$51)+('Cálculo de la Cadena'!J113*Hoja1!$D$51) -> 671.0486598 | P113: 3.030019543e+11 | Q113: 68300320.61 | R113: 0
E114: c_EMZ_>19 | F114: =+Hoja1!$C$73 -> 1051735728 | G114: =+Hoja1!$C$91 -> 1052080838 | H114: 28 | I114: 868.8571967 | J114: 0.1957988049 | K114: 130.9470045 | L114: 868.8571967 | M114: 0.1957988049 | N114: 0 | O114: =+(I114*Hoja1!$D$51)+('Cálculo de la Cadena'!J114*Hoja1!$D$51) -> 667.6934165 | P114: 2.871304234e+11 | Q114: 64722684.77 | R114: 0
E115: c_EMZ_>19 | F115: =+Hoja1!$C$73 -> 1051735728 | G115: =+Hoja1!$C$91 -> 1052080838 | H115: 29 | I115: 864.5129108 | J115: 0.1948198109 | K115: 135.2922694 | L115: 864.5129108 | M115: 0.1948198109 | N115: 0 | O115: =+(I115*Hoja1!$D$51)+('Cálculo de la Cadena'!J115*Hoja1!$D$51) -> 664.3549494 | P115: 2.720902584e+11 | Q115: 61332448.9 | R115: 0
E116: c_EMZ_>19 | F116: =+Hoja1!$C$73 -> 1051735728 | G116: =+Hoja1!$C$91 -> 1052080838 | H116: 30 | I116: 860.1903462 | J116: 0.1938457118 | K116: 139.6158081 | L116: 860.1903462 | M116: 0.1938457118 | N116: 0 | O116: =+(I116*Hoja1!$D$51)+('Cálculo de la Cadena'!J116*Hoja1!$D$51) -> 661.0331746 | P116: 2.578379115e+11 | Q116: 58119796.82 | R116: 0
E117: c_EMZ_>19 | F117: =+Hoja1!$C$73 -> 1051735728 | G117: =+Hoja1!$C$91 -> 1052080838 | H117: 31 | I117: 855.8893945 | J117: 0.1928764833 | K117: 143.917729 | L117: 855.8893945 | M117: 0.1928764833 | N117: 0 | O117: =+(I117*Hoja1!$D$51)+('Cálculo de la Cadena'!J117*Hoja1!$D$51) -> 657.7280088 | P117: 2.443321161e+11 | Q117: 55075426.51 | R117: 0
E118: c_EMZ_>19 | F118: =+Hoja1!$C$73 -> 1051735728 | G118: =+Hoja1!$C$91 -> 1052080838 | H118: 32 | I118: 851.6099475 | J118: 0.1919121008 | K118: 148.1981404 | L118: 851.6099475 | M118: 0.1919121008 | N118: 0 | O118: =+(I118*Hoja1!$D$51)+('Cálculo de la Cadena'!J118*Hoja1!$D$51) -> 654.4393687 | P118: 2.315337672e+11 | Q118: 52190523.21 | R118: 0
E119: c_EMZ_>19 | F119: =+Hoja1!$C$73 -> 1051735728 | G119: =+Hoja1!$C$91 -> 1052080838 | H119: 33 | I119: 847.3518978 | J119: 0.1909525403 | K119: 152.4571497 | L119: 847.3518978 | M119: 0.1909525403 | N119: 0 | O119: =+(I119*Hoja1!$D$51)+('Cálculo de la Cadena'!J119*Hoja1!$D$51) -> 651.1671719 | P119: =+I119*($B$107+F119)/(1+TasaDescuento)^H119 -> 2.19405808e+11 | Q119: =+J119*($B$107+G119)/(1+TasaDescuento)^H119 -> 49456733.9 | R119: 0
E120: c_EMZ_>19 | F120: =+Hoja1!$C$73 -> 1051735728 | G120: =+Hoja1!$C$91 -> 1052080838 | H120: 34 | I120: 843.1151383 | J120: 0.1899977776 | K120: 156.6948639 | L120: 843.1151383 | M120: 0.1899977776 | N120: 0 | O120: =+(I120*Hoja1!$D$51)+('Cálculo de la Cadena'!J120*Hoja1!$D$51) -> 647.911336 | P120: 2.079131228e+11 | Q120: 46866143.08 | R120: 0
E121: c_EMZ_>19 | F121: =+Hoja1!$C$73 -> 1051735728 | G121: =+Hoja1!$C$91 -> 1052080838 | H121: 35 | I121: 838.8995626 | J121: 0.1890477888 | K121: 160.9113896 | L121: 838.8995626 | M121: 0.1890477888 | N121: 0 | O121: =+(I121*Hoja1!$D$51)+('Cálculo de la Cadena'!J121*Hoja1!$D$51) -> 644.6717793 | P121: 1.970224354e+11 | Q121: 44411249.87 | R121: 0
E122: c_EMZ_>19 | F122: =+Hoja1!$C$73 -> 1051735728 | G122: =+Hoja1!$C$91 -> 1052080838 | H122: 36 | I122: 834.7050648 | J122: 0.1881025498 | K122: 165.1068327 | L122: 834.7050648 | M122: 0.1881025498 | N122: 0 | O122: =+(I122*Hoja1!$D$51)+('Cálculo de la Cadena'!J122*Hoja1!$D$51) -> 641.4484205 | P122: 1.867022126e+11 | Q122: 42084946.31 | R122: 0
E123: c_EMZ_>19 | F123: =+Hoja1!$C$73 -> 1051735728 | G123: =+Hoja1!$C$91 -> 1052080838 | H123: 37 | I123: 830.5315394 | J123: 0.1871620371 | K123: 169.2812985 | L123: 830.5315394 | M123: 0.1871620371 | N123: 0 | O123: =+(I123*Hoja1!$D$51)+('Cálculo de la Cadena'!J123*Hoja1!$D$51) -> 638.2411783 | P123: 1.769225729e+11 | Q123: 39880496.74 | R123: 0
E124: c_EMZ_>19 | F124: =+Hoja1!$C$73 -> 1051735728 | G124: =+Hoja1!$C$91 -> 1052080838 | H124: 38 | I124: 826.3788817 | J124: 0.1862262269 | K124: 173.434892 | L124: 826.3788817 | M124: 0.1862262269 | N124: 0 | O124: =+(I124*Hoja1!$D$51)+('Cálculo de la Cadena'!J124*Hoja1!$D$51) -> 635.0499725 | P124: 1.676552e+11 | Q124: 37791518.34 | R124: 0
E125: c_EMZ_>19 | F125: =+Hoja1!$C$73 -> 1051735728 | G125: =+Hoja1!$C$91 -> 1052080838 | H125: 39 | I125: 822.2469873 | J125: 0.1852950957 | K125: 177.5677176 | L125: 822.2469873 | M125: 0.1852950957 | N125: 0 | O125: =+(I125*Hoja1!$D$51)+('Cálculo de la Cadena'!J125*Hoja1!$D$51) -> 631.8747226 | P125: 1.58873261e+11 | Q125: 35811962.61 | R125: 0
E126: c_EMZ_>19 | F126: =+Hoja1!$C$73 -> 1051735728 | G126: =+Hoja1!$C$91 -> 1052080838 | H126: 40 | I126: 818.1357524 | J126: 0.1843686203 | K126: 181.679879 | L126: 818.1357524 | M126: 0.1843686203 | N126: 0 | O126: =+(I126*Hoja1!$D$51)+('Cálculo de la Cadena'!J126*Hoja1!$D$51) -> 628.715349 | P126: 1.505513283e+11 | Q126: 33936097.91 | R126: 0
E127: c_EMZ_>19 | F127: =+Hoja1!$C$73 -> 1051735728 | G127: =+Hoja1!$C$91 -> 1052080838 | H127: 41 | I127: 814.0450736 | J127: 0.1834467772 | K127: 185.7714796 | L127: 814.0450736 | M127: 0.1834467772 | N127: 0 | O127: =+(I127*Hoja1!$D$51)+('Cálculo de la Cadena'!J127*Hoja1!$D$51) -> 625.5717722 | P127: 1.426653063e+11 | Q127: 32158492.78 | R127: 0
E128: c_EMZ_>19 | F128: =+Hoja1!$C$73 -> 1051735728 | G128: =+Hoja1!$C$91 -> 1052080838 | H128: 42 | I128: 809.9748483 | J128: 0.1825295433 | K128: 189.8426222 | L128: 809.9748483 | M128: 0.1825295433 | N128: 0 | O128: =+(I128*Hoja1!$D$51)+('Cálculo de la Cadena'!J128*Hoja1!$D$51) -> 622.4439134 | P128: 1.351923617e+11 | Q128: 30474000.3 | R128: 0
E129: c_EMZ_>19 | F129: =+Hoja1!$C$73 -> 1051735728 | G129: =+Hoja1!$C$91 -> 1052080838 | H129: 43 | I129: 805.924974 | J129: 0.1816168956 | K129: 193.8934091 | L129: 805.924974 | M129: 0.1816168956 | N129: 0 | O129: =+(I129*Hoja1!$D$51)+('Cálculo de la Cadena'!J129*Hoja1!$D$51) -> 619.3316938 | P129: 1.28110857e+11 | Q129: 28877743.14 | R129: 0
E130: c_EMZ_>19 | F130: =+Hoja1!$C$73 -> 1051735728 | G130: =+Hoja1!$C$91 -> 1052080838 | H130: 44 | I130: 801.8953492 | J130: 0.1807088111 | K130: 197.923942 | L130: 801.8953492 | M130: 0.1807088111 | N130: 0 | O130: =+(I130*Hoja1!$D$51)+('Cálculo de la Cadena'!J130*Hoja1!$D$51) -> 616.2350353 | P130: 1.214002883e+11 | Q130: 27365099.45 | R130: 0
E131: c_EMZ_>19 | F131: =+Hoja1!$C$73 -> 1051735728 | G131: =+Hoja1!$C$91 -> 1052080838 | H131: 45 | I131: 797.8858724 | J131: 0.179805267 | K131: 201.9343223 | L131: 797.8858724 | M131: 0.179805267 | N131: 0 | O131: =+(I131*Hoja1!$D$51)+('Cálculo de la Cadena'!J131*Hoja1!$D$51) -> 613.1538602 | P131: 1.150412256e+11 | Q131: 25931689.48 | R131: 0
E132: c_EMZ_>19 | F132: =+Hoja1!$C$73 -> 1051735728 | G132: =+Hoja1!$C$91 -> 1052080838 | H132: 46 | I132: 793.8964431 | J132: 0.1789062407 | K132: 205.9246507 | L132: 793.8964431 | M132: 0.1789062407 | N132: 0 | O132: =+(I132*Hoja1!$D$51)+('Cálculo de la Cadena'!J132*Hoja1!$D$51) -> 610.0880909 | P132: 1.090152566e+11 | Q132: 24573362.89 | R132: 0
E133: c_EMZ_>19 | F133: =+Hoja1!$C$73 -> 1051735728 | G133: =+Hoja1!$C$91 -> 1052080838 | H133: 47 | I133: 789.9269608 | J133: 0.1780117095 | K133: 209.8950275 | L133: 789.9269608 | M133: 0.1780117095 | N133: 0 | O133: =+(I133*Hoja1!$D$51)+('Cálculo de la Cadena'!J133*Hoja1!$D$51) -> 607.0376504 | P133: 1.033049337e+11 | Q133: 23286186.74 | R133: 0
E134: c_EMZ_>19 | F134: =+Hoja1!$C$73 -> 1051735728 | G134: =+Hoja1!$C$91 -> 1052080838 | H134: 48 | I134: 785.977326 | J134: 0.1771216509 | K134: 213.8455523 | L134: 785.977326 | M134: 0.1771216509 | N134: 0 | O134: =+(I134*Hoja1!$D$51)+('Cálculo de la Cadena'!J134*Hoja1!$D$51) -> 604.0024622 | P134: 9.789372286e+10 | Q134: 22066434.1 | R134: 0
E135: c_EMZ_>19 | F135: =+Hoja1!$C$73 -> 1051735728 | G135: =+Hoja1!$C$91 -> 1052080838 | H135: 49 | I135: 782.0474394 | J135: 0.1762360427 | K135: 217.7763246 | L135: 782.0474394 | M135: 0.1762360427 | N135: 0 | O135: =+(I135*Hoja1!$D$51)+('Cálculo de la Cadena'!J135*Hoja1!$D$51) -> 600.9824498 | P135: 9.276595643e+10 | Q135: 20910573.27 | R135: 0
E136: c_EMZ_>19 | F136: =+Hoja1!$C$73 -> 1051735728 | G136: =+Hoja1!$C$91 -> 1052080838 | H136: 50 | I136: 778.1372022 | J136: 0.1753548625 | K136: 221.6874429 | L136: 778.1372022 | M136: 0.1753548625 | N136: 0 | O136: =+(I136*Hoja1!$D$51)+('Cálculo de la Cadena'!J136*Hoja1!$D$51) -> 597.9775376 | P136: 8.790678728e+10 | Q136: 19815257.52 | R136: 0
E137: c_EMZ_>19 | F137: =+Hoja1!$C$73 -> 1051735728 | G137: =+Hoja1!$C$91 -> 1052080838 | H137: 51 | I137: 774.2465162 | J137: 0.1744780882 | K137: 225.5790057 | L137: 774.2465162 | M137: 0.1744780882 | N137: 0 | O137: =+(I137*Hoja1!$D$51)+('Cálculo de la Cadena'!J137*Hoja1!$D$51) -> 594.9876499 | P137: 8.330214604e+10 | Q137: 18777315.46 | R137: 0
E138: c_EMZ_>19 | F138: =+Hoja1!$C$73 -> 1051735728 | G138: =+Hoja1!$C$91 -> 1052080838 | H138: 52 | I138: 770.3752836 | J138: 0.1736056977 | K138: 229.4511107 | L138: 770.3752836 | M138: 0.1736056977 | N138: 0 | O138: =+(I138*Hoja1!$D$51)+('Cálculo de la Cadena'!J138*Hoja1!$D$51) -> 592.0127117 | P138: 7.89387003e+10 | Q138: 17793741.79 | R138: 0
E139: c_EMZ_>19 | F139: =+Hoja1!$C$73 -> 1051735728 | G139: =+Hoja1!$C$91 -> 1052080838 | H139: 53 | I139: 766.5234072 | J139: 0.1727376692 | K139: 233.3038551 | L139: 766.5234072 | M139: 0.1727376692 | N139: 0 | O139: =+(I139*Hoja1!$D$51)+('Cálculo de la Cadena'!J139*Hoja1!$D$51) -> 589.0526481 | P139: 7.4803816e+10 | Q139: 16861688.65 | R139: 0
E140: c_EMZ_>19 | F140: =+Hoja1!$C$73 -> 1051735728 | G140: =+Hoja1!$C$91 -> 1052080838 | H140: 54 | I140: 762.6907902 | J140: 0.1718739809 | K140: 237.1373359 | L140: 762.6907902 | M140: 0.1718739809 | N140: 0 | O140: =+(I140*Hoja1!$D$51)+('Cálculo de la Cadena'!J140*Hoja1!$D$51) -> 586.1073849 | P140: 7.088552087e+10 | Q140: 15978457.34 | R140: 0
E141: c_EMZ_>19 | F141: =+Hoja1!$C$73 -> 1051735728 | G141: =+Hoja1!$C$91 -> 1052080838 | H141: 55 | I141: 758.8773362 | J141: 0.171014611 | K141: 240.9516492 | L141: 758.8773362 | M141: 0.171014611 | N141: 0 | O141: =+(I141*Hoja1!$D$51)+('Cálculo de la Cadena'!J141*Hoja1!$D$51) -> 583.1768479 | P141: 6.717246978e+10 | Q141: 15141490.53 | R141: 0
E142: c_EMZ_>19 | F142: =+Hoja1!$C$73 -> 1051735728 | G142: =+Hoja1!$C$91 -> 1052080838 | H142: 56 | I142: 755.0829495 | J142: 0.1701595379 | K142: 244.7468909 | L142: 755.0829495 | M142: 0.1701595379 | N142: 0 | O142: =+(I142*Hoja1!$D$51)+('Cálculo de la Cadena'!J142*Hoja1!$D$51) -> 580.2609637 | P142: 6.365391184e+10 | Q142: 14348364.84 | R142: 0
E143: c_EMZ_>19 | F143: =+Hoja1!$C$73 -> 1051735728 | G143: =+Hoja1!$C$91 -> 1052080838 | H143: 57 | I143: 751.3075348 | J143: 0.1693087402 | K143: 248.5231565 | L143: 751.3075348 | M143: 0.1693087402 | N143: 0 | O143: =+(I143*Hoja1!$D$51)+('Cálculo de la Cadena'!J143*Hoja1!$D$51) -> 577.3596589 | P143: 6.031965931e+10 | Q143: 13596783.82 | R143: 0
E144: c_EMZ_>19 | F144: =+Hoja1!$C$73 -> 1051735728 | G144: =+Hoja1!$C$91 -> 1052080838 | H144: 58 | I144: 747.5509971 | J144: 0.1684621965 | K144: 252.2805407 | L144: 747.5509971 | M144: 0.1684621965 | N144: 0 | O144: =+(I144*Hoja1!$D$51)+('Cálculo de la Cadena'!J144*Hoja1!$D$51) -> 574.4728606 | P144: 5.716005811e+10 | Q144: 12884571.33 | R144: 0
E145: c_EMZ_>19 | F145: =+Hoja1!$C$73 -> 1051735728 | G145: =+Hoja1!$C$91 -> 1052080838 | H145: 59 | I145: 743.8132421 | J145: 0.1676198855 | K145: 256.019138 | L145: 743.8132421 | M145: 0.1676198855 | N145: 0 | O145: =+(I145*Hoja1!$D$51)+('Cálculo de la Cadena'!J145*Hoja1!$D$51) -> 571.6004963 | P145: 5.416595983e+10 | Q145: 12209665.22 | R145: 0
E146: c_EMZ_>19 | F146: =+Hoja1!$C$73 -> 1051735728 | G146: =+Hoja1!$C$91 -> 1052080838 | H146: 60 | I146: 740.0941759 | J146: 0.1667817861 | K146: 259.7390423 | L146: 740.0941759 | M146: 0.1667817861 | N146: 0 | O146: =+(I146*Hoja1!$D$51)+('Cálculo de la Cadena'!J146*Hoja1!$D$51) -> 568.7424938 | P146: 5.132869527e+10 | Q146: 11570111.32 | R146: 0
E147: c_EMZ_>19 | F147: =+Hoja1!$C$73 -> 1051735728 | G147: =+Hoja1!$C$91 -> 1052080838 | H147: 61 | I147: 736.393705 | J147: 0.1659478772 | K147: 263.4403471 | L147: 736.393705 | M147: 0.1659478772 | N147: 0 | O147: =+(I147*Hoja1!$D$51)+('Cálculo de la Cadena'!J147*Hoja1!$D$51) -> 565.8987813 | P147: 4.864004932e+10 | Q147: 10964057.87 | R147: 0
E148: c_EMZ_>19 | F148: =+Hoja1!$C$73 -> 1051735728 | G148: =+Hoja1!$C$91 -> 1052080838 | H148: 62 | I148: 732.7117365 | J148: 0.1651181378 | K148: 267.1231454 | L148: 732.7117365 | M148: 0.1651181378 | N148: 0 | O148: =+(I148*Hoja1!$D$51)+('Cálculo de la Cadena'!J148*Hoja1!$D$51) -> 563.0692874 | P148: 4.609223722e+10 | Q148: 10389750.08 | R148: 0
E149: c_EMZ_>19 | F149: =+Hoja1!$C$73 -> 1051735728 | G149: =+Hoja1!$C$91 -> 1052080838 | H149: 63 | I149: 729.0481778 | J149: 0.1642925471 | K149: 270.7875296 | L149: 729.0481778 | M149: 0.1642925471 | N149: 0 | O149: =+(I149*Hoja1!$D$51)+('Cálculo de la Cadena'!J149*Hoja1!$D$51) -> 560.253941 | P149: 4.367788193e+10 | Q149: 9845525.076 | R149: 0
E150: c_EMZ_>19 | F150: =+Hoja1!$C$73 -> 1051735728 | G150: =+Hoja1!$C$91 -> 1052080838 | H150: 64 | I150: 725.4029369 | J150: 0.1634710844 | K150: 274.433592 | L150: 725.4029369 | M150: 0.1634710844 | N150: 0 | O150: =+(I150*Hoja1!$D$51)+('Cálculo de la Cadena'!J150*Hoja1!$D$51) -> 557.4526713 | P150: 4.138999288e+10 | Q150: 9329807.096 | R150: 0
E151: c_EMZ_>19 | F151: =+Hoja1!$C$73 -> 1051735728 | G151: =+Hoja1!$C$91 -> 1052080838 | H151: 65 | I151: 721.7759222 | J151: 0.162653729 | K151: 278.061424 | L151: 721.7759222 | M151: 0.162653729 | N151: 0 | O151: =+(I151*Hoja1!$D$51)+('Cálculo de la Cadena'!J151*Hoja1!$D$51) -> 554.6654079 | P151: =+I151*($B$107+F151)/(1+TasaDescuento)^H151 -> 3.922194563e+10 | Q151: =+J151*($B$107+G151)/(1+TasaDescuento)^H151 -> 8841102.915 | R151: 0
E152: c_EMZ_>19 | F152: =+Hoja1!$C$73 -> 1051735728 | G152: =+Hoja1!$C$91 -> 1052080838 | H152: 66 | I152: 718.1670426 | J152: 0.1618404603 | K152: 281.6711169 | L152: 718.1670426 | M152: 0.1618404603 | N152: 0 | O152: =+(I152*Hoja1!$D$51)+('Cálculo de la Cadena'!J152*Hoja1!$D$51) -> 551.8920809 | P152: 3.716746277e+10 | Q152: 8377997.524 | R152: 0
E153: c_EMZ_>19 | F153: =+Hoja1!$C$73 -> 1051735728 | G153: =+Hoja1!$C$91 -> 1052080838 | H153: 67 | I153: =+I152*$B$86+J152*$B$87+K152*$B$88 -> 714.5762074 | J153: =+I152*$C$86+J152*$C$87+K152*$C$88 -> 0.161031258 | K153: =+I152*$D$86+J152*$D$87+K152*$D$88 -> 285.2627613 | L153: =+I153*1 -> 714.5762074 | M153: =+J153*1 -> 0.161031258 | N153: =+K153*0 -> 0 | O153: =+(I153*Hoja1!$D$51)+('Cálculo de la Cadena'!J153*Hoja1!$D$51) -> 549.1326205 | P153: 3.522059567e+10 | Q153: 7939150.035 | R153: 0
E154: c_EMZ_>19 | F154: =+Hoja1!$C$73 -> 1051735728 | G154: =+Hoja1!$C$91 -> 1052080838 | H154: 68 | I154: 711.0033264 | J154: 0.1602261017 | K154: 288.8364475 | L154: 711.0033264 | M154: 0.1602261017 | N154: 0 | O154: =+(I154*Hoja1!$D$51)+('Cálculo de la Cadena'!J154*Hoja1!$D$51) -> 546.3869574 | P154: 3.337570733e+10 | Q154: 7523289.795 | R154: 0
E155: c_EMZ_>19 | F155: =+Hoja1!$C$73 -> 1051735728 | G155: =+Hoja1!$C$91 -> 1052080838 | H155: 69 | I155: 707.4483098 | J155: 0.1594249712 | K155: 292.3922653 | L155: 707.4483098 | M155: 0.1594249712 | N155: 0 | O155: =+(I155*Hoja1!$D$51)+('Cálculo de la Cadena'!J155*Hoja1!$D$51) -> 543.6550226 | P155: 3.162745599e+10 | Q155: 7129212.71 | R155: 0
E156: c_EMZ_>19 | F156: =+Hoja1!$C$73 -> 1051735728 | G156: =+Hoja1!$C$91 -> 1052080838 | H156: 70 | I156: 703.9110682 | J156: 0.1586278464 | K156: 295.9303039 | L156: 703.9110682 | M156: 0.1586278464 | N156: 0 | O156: =+(I156*Hoja1!$D$51)+('Cálculo de la Cadena'!J156*Hoja1!$D$51) -> 540.9367475 | P156: 2.997077972e+10 | Q156: 6755777.759 | R156: 0
E157: c_EMZ_>19 | F157: =+Hoja1!$C$73 -> 1051735728 | G157: =+Hoja1!$C$91 -> 1052080838 | H157: 71 | I157: 700.3915129 | J157: 0.1578347071 | K157: 299.4506524 | L157: 700.3915129 | M157: 0.1578347071 | N157: 0 | O157: =+(I157*Hoja1!$D$51)+('Cálculo de la Cadena'!J157*Hoja1!$D$51) -> 538.2320637 | P157: 2.840088174e+10 | Q157: 6401903.686 | R157: 0
E158: c_EMZ_>19 | F158: =+Hoja1!$C$73 -> 1051735728 | G158: =+Hoja1!$C$91 -> 1052080838 | H158: 72 | I158: 696.8895553 | J158: 0.1570455336 | K158: 302.9533992 | L158: 696.8895553 | M158: 0.1570455336 | N158: 0 | O158: =+(I158*Hoja1!$D$51)+('Cálculo de la Cadena'!J158*Hoja1!$D$51) -> 535.5409034 | P158: 2.69132165e+10 | Q158: 6066565.874 | R158: 0
E159: c_EMZ_>19 | F159: =+Hoja1!$C$73 -> 1051735728 | G159: =+Hoja1!$C$91 -> 1052080838 | H159: 73 | I159: 693.4051075 | J159: 0.1562603059 | K159: 306.4386322 | L159: 693.4051075 | M159: 0.1562603059 | N159: 0 | O159: =+(I159*Hoja1!$D$51)+('Cálculo de la Cadena'!J159*Hoja1!$D$51) -> 532.8631989 | P159: 2.550347659e+10 | Q159: 5748793.376 | R159: 0
I160: =+SUM(I86:I159)/$I$5 -> 61.96763837 | J160: 0.01364943096 | K160: 12.0187122 | L160: 61.96763837 | M160: 0.01364943096 | N160: 0 | O160: 47.62022342 | P160: 1.669761496e+10 | Q160: 3629065.201 | R160: 0
A162: PROBABILISTICO
A163: PROFILAXIS CASO ACCP
I165: Número de pacientes | L165: Expectativa de vida | P165: Costos acumulados
B166: Vivo | C166: Sangrado Articular | D166: Muera | F166: Costo ACCP - V | G166: Costo ACCP SA | I166: Vivo | J166: Sangrado Articular | K166: Muera | L166: Vivo | M166: Sangrado Articular | N166: Muera | O166: AVAC | P166: Vivo | Q166: Sangrado Articular | R166: Muera
A167: Vivo | B167: =1-C167-D167 -> 0.9776 | C167: =+Hoja1!D13 -> 0.0186 | D167: =+Hoja1!D14 -> 0.0038 | E167: c_ACCP_02 | F167: =+Hoja1!$D$92 -> 385977145 | G167: =+Hoja1!$D$110 -> 512868076 | H167: 0 | I167: 1000 | J167: 0 | K167: 0 | L167: =+I167*1 -> 1000 | M167: =+J167*1 -> 0 | N167: =+K167*0 -> 0 | O167: =+I167*Hoja1!$E$51 -> 569.7 | P167: =I167*($B$186+F167)/(1)^H167 -> 576177664000 | Q167: =J167*($B$186+G167)/(1)^H167 -> 0 | R167: 0
A168: Sangrado Articular | B168: =+Hoja1!D15 -> 0.6227 | C168: =1-B168-D168 -> 0.373 | D168: =+Hoja1!D17 -> 0.0043 | E168: c_ACCP_02 | F168: =+Hoja1!$D$92 -> 385977145 | G168: =+Hoja1!$D$110 -> 512868076 | H168: 1 | I168: =+I167*$B$167+J167*$B$168+K167*$B$169 -> 977.6 | J168: =+I167*$C$167+J167*$C$168+K167*$C$169 -> 18.6 | K168: =+I167*$D$167+J167*$D$168+K167*$D$169 -> 3.8 | L168: 977.6 | M168: 18.6 | N168: 0 | O168: =+(I168*Hoja1!$E$51)+(J168*Hoja1!$E$51) -> 567.53514 | P168: =I168*($B$186+F168)/(1+Hoja1!$D$47)^H168 -> 5.354798786e+11 | Q168: =J168*($B$186+G168)/(1+$B$171)^H168 -> 1.243186222e+10 | R168: 0
A169: Muera | B169: 0 | C169: 0 | D169: 1 | E169: c_ACCP_02 | F169: =+Hoja1!D92 -> 385977145 | G169: =+Hoja1!D110 -> 512868076 | H169: 2 | I169: =+I168*$B$167+J168*$B$168+K168*$B$169 -> 967.28398 | J169: 25.12116 | K169: 7.59486 | L169: =+I169*1 -> 967.28398 | M169: =+J169*1 -> 25.12116 | N169: =+K169*0 -> 0 | O169: =+(I169*Hoja1!$E$51)+(J169*Hoja1!$E$51) -> 565.3732083 | P169: =I169*($B$186+F169)/(1+Hoja1!$D$47)^H169 -> 5.03687883e+11 | Q169: 1.596204308e+10 | R169: 0
E170: c_ACCP_03 | F170: =+Hoja1!D93 -> 545780174 | G170: =+Hoja1!D111 -> 582185209 | H170: 3 | I170: 961.2597652 | J170: 27.36167471 | K170: 11.37856011 | L170: 961.2597652 | M170: 27.36167471 | N170: 0 | O170: =+(I170*Hoja1!$E$51)+(J170*Hoja1!$E$51) -> 563.2176343 | P170: =I170*($B$186+F170)/(1+Hoja1!$D$47)^H170 -> 6.078323649e+11 | Q170: 1.815739538e+10 | R170: 0
A171: Tasa de Descuento | B171: =Hoja1!D47 -> 0.0519 | E171: c_ACCP_04 | F171: =+Hoja1!D94 -> 636694581 | G171: =+Hoja1!D112 -> 583311074 | H171: 4 | I171: 956.7656613 | J171: 28.0853363 | K171: 15.14900242 | L171: 956.7656613 | M171: 28.0853363 | N171: 0 | O171: =+(I171*Hoja1!$E$51)+(J171*Hoja1!$E$51) -> 561.0696133 | P171: =I171*($B$186+F171)/(1+Hoja1!$D$47)^H171 -> 6.461869423e+11 | Q171: 1.774388178e+10 | R171: 0
A172: Matriz Identidad | B172: 1 | C172: 0 | E172: c_ACCP_05 | F172: =+Hoja1!D95 -> 717690718 | G172: =+Hoja1!D113 -> 719423479 | H172: 5 | I172: 952.8228494 | J172: 28.27167174 | K172: 18.90547888 | L172: 952.8228494 | M172: 28.27167174 | N172: 0 | O172: =+(I172*Hoja1!$E$51)+(J172*Hoja1!$E$51) -> 558.9295487 | P172: =I172*($B$186+F172)/(1+Hoja1!$D$47)^H172 -> 6.716974693e+11 | Q172: 1.996830142e+10 | R172: 0
B173: 0 | C173: 1 | E173: c_ACCP_06 | F173: =+Hoja1!D96 -> 758287094 | G173: =+Hoja1!D114 -> 891538067 | H173: 6 | I173: 949.0843875 | J173: 28.26783856 | K173: 22.6477739 | L173: 949.0843875 | M173: 28.26783856 | N173: 0 | O173: =+(I173*Hoja1!$E$51)+(J173*Hoja1!$E$51) -> 556.7975632 | P173: =I173*($B$186+F173)/(1+Hoja1!$D$47)^H173 -> 6.644920083e+11 | Q173: 2.257190393e+10 | R173: 0
E174: c_ACCP_07 | F174: =+Hoja1!D97 -> 701790105 | G174: =+Hoja1!D115 -> 886334344 | H174: 7 | I174: 945.4272803 | J174: 28.19687339 | K174: 26.37584627 | L174: 945.4272803 | M174: 28.19687339 | N174: 0 | O174: =+(I174*Hoja1!$E$51)+(J174*Hoja1!$E$51) -> 554.6736804 | P174: =I174*($B$186+F174)/(1+Hoja1!$D$47)^H174 -> 5.917894701e+11 | Q174: 2.130138625e+10 | R174: 0
B175: =+B172-B167 -> 0.0224 | C175: =+C172-C167 -> -0.0186 | E175: c_ACCP_08 | F175: =+Hoja1!D98 -> 889126475 | G175: =+Hoja1!D116 -> 815689045 | H175: 8 | I175: 941.8079023 | J175: 28.10238119 | K175: 30.0897165 | L175: 941.8079023 | M175: 28.10238119 | N175: 0 | O175: =+(I175*Hoja1!$E$51)+(J175*Hoja1!$E$51) -> 552.5578885 | P175: =I175*($B$186+F175)/(1+Hoja1!$D$47)^H175 -> 6.781405718e+11 | Q175: 1.885809338e+10 | R175: 0
B176: =+B173-B168 -> -0.6227 | C176: =+C173-C168 -> 0.627 | E176: c_ACCP_09 | F176: =+Hoja1!D99 -> 1125463536 | G176: =+Hoja1!D117 -> 967346462 | H176: 9 | I176: 938.2107581 | J176: 27.99981517 | K176: 33.78942676 | L176: 938.2107581 | M176: 27.99981517 | N176: 0 | O176: =+(I176*Hoja1!$E$51)+(J176*Hoja1!$E$51) -> 550.4501636 | P176: =I176*($B$186+F176)/(1+Hoja1!$D$47)^H176 -> 7.828441708e+11 | Q176: 2.055529411e+10 | R176: 0
E177: c_ACCP_10 | F177: =+Hoja1!D100 -> 986180638 | G177: =+Hoja1!D118 -> 1159071737 | H177: 10 | I177: 934.630322 | J177: 27.89465116 | K177: 37.47502685 | L177: 934.630322 | M177: 27.89465116 | N177: 0 | O177: =+(I177*Hoja1!$E$51)+(J177*Hoja1!$E$51) -> 548.3504772 | P177: =I177*($B$186+F177)/(1+Hoja1!$D$47)^H177 -> 6.628929115e+11 | Q177: 2.269216715e+10 | R177: 0
A178: Matriz Fundamental | B178: =+MINVERSE(B175:C176) -> 254.6110177 | C178: 7.553054114 | E178: c_ACCP_11 | F178: =+Hoja1!D101 -> 1064758509 | G178: =+Hoja1!D119 -> 1220823325 | H178: 11 | I178: 931.0646021 | J178: 27.78882887 | K178: 41.14656907 | L178: 931.0646021 | M178: 27.78882887 | N178: 0 | O178: =+(I178*Hoja1!$E$51)+(J178*Hoja1!$E$51) -> 546.2587996 | P178: =I178*($B$186+F178)/(1+Hoja1!$D$47)^H178 -> 6.697155095e+11 | Q178: 2.247426983e+10 | R178: 0
B179: 252.8648815 | C179: 9.096151191 | E179: c_ACCP_12 | F179: =+Hoja1!D102 -> 1279797003 | G179: =+Hoja1!D120 -> 1282862263 | H179: 12 | I179: 927.5128587 | J179: 27.68303477 | K179: 44.80410652 | L179: 927.5128587 | M179: 27.68303477 | N179: 0 | O179: =+(I179*Hoja1!$E$51)+(J179*Hoja1!$E$51) -> 544.1751005 | P179: =I179*($B$186+F179)/(1+Hoja1!$D$47)^H179 -> 7.429217628e+11 | Q179: 2.221986898e+10 | R179: 0
E180: c_ACCP_13 | F180: =+Hoja1!D103 -> 1586963813 | G180: =+Hoja1!D121 -> 1946690767 | H180: 13 | I180: 923.9747964 | J180: 27.57751114 | K180: 48.44769244 | L180: 923.9747964 | M180: 27.57751114 | N180: 0 | O180: =+(I180*Hoja1!$E$51)+(J180*Hoja1!$E$51) -> 542.0993496 | P180: =I180*($B$186+F180)/(1+Hoja1!$D$47)^H180 -> 8.505890682e+11 | Q180: 3.052597754e+10 | R180: 0
E181: c_ACCP_14 | F181: =+Hoja1!D104 -> 1809439504 | G181: =+Hoja1!D122 -> 1769177357 | H181: 14 | I181: 920.4502772 | J181: 27.47234287 | K181: 52.07737996 | L181: 920.4502772 | M181: 27.47234287 | N181: 0 | O181: =+(I181*Hoja1!$E$51)+(J181*Hoja1!$E$51) -> 540.0315166 | P181: =I181*($B$186+F181)/(1+Hoja1!$D$47)^H181 -> 9.063788897e+11 | Q181: 2.650766824e+10 | R181: 0
E182: c_ACCP_15 | F182: =+Hoja1!D105 -> 1863330149 | G182: =+Hoja1!D123 -> 1749367094 | H182: 15 | I182: 916.9392189 | J182: 27.36755905 | K182: 55.69322209 | L182: 916.9392189 | M182: 27.36755905 | N182: 0 | O182: =+(I182*Hoja1!$E$51)+(J182*Hoja1!$E$51) -> 537.9715714 | P182: =I182*($B$186+F182)/(1+Hoja1!$D$47)^H182 -> 8.81505274e+11 | Q182: 2.484987227e+10 | R182: 0
E183: c_ACCP_16 | F183: =+Hoja1!D106 -> 2201680114 | G183: =+Hoja1!D124 -> 2312679453 | H183: 16 | I183: 913.4415594 | J183: 27.26316899 | K183: 59.29527162 | L183: 913.4415594 | M183: 27.26316899 | N183: 0 | O183: =+(I183*Hoja1!$E$51)+(J183*Hoja1!$E$51) -> 535.9194838 | P183: =I183*($B$186+F183)/(1+Hoja1!$D$47)^H183 -> 9.723642601e+11 | Q183: 3.036862137e+10 | R183: 0
E184: c_ACCP_17 | F184: =+Hoja1!D107 -> 2677152709 | G184: =+Hoja1!D125 -> 2308373989 | H184: 17 | I184: 909.9572438 | J184: 27.15917504 | K184: 62.88358118 | L184: 909.9572438 | M184: 27.15917504 | N184: =+K184*0 -> 0 | O184: =+(I184*Hoja1!$E$51)+(J184*Hoja1!$E$51) -> 533.8752238 | P184: =I184*($B$186+F184)/(1+Hoja1!$D$47)^H184 -> 1.103917064e+12 | Q184: 2.871065774e+10 | R184: 0
A185: Total | B185: =+Hoja1!D35 -> 368257322 | C185: =+Hoja1!D36 -> 370975070 | E185: c_ACCP_18 | F185: =+Hoja1!D108 -> 2693754760 | G185: =+Hoja1!D126 -> 2449549999 | H185: 18 | I185: 906.4862198 | J185: 27.05557702 | K185: 66.45820316 | L185: 906.4862198 | M185: 27.05557702 | N185: =+K185*0 -> 0 | O185: =+(I185*Hoja1!$E$51)+(J185*Hoja1!$E$51) -> 531.8387617 | P185: =I185*($B$186+F185)/(1+Hoja1!$D$47)^H185 -> 1.051500627e+12 | Q185: 2.872628683e+10 | R185: 0
A186: COSTO FIJO | B186: =+Hoja1!D41 -> 190200519 | E186: c_ACCP_>19 | F186: =+Hoja1!$D$109 -> 2105843769 | G186: =+Hoja1!$D$127 -> 2229387844 | H186: 19 | I186: 903.0284363 | J186: 26.95237392 | K186: 70.01918977 | L186: =+I186*1 -> 903.0284363 | M186: =+J186*1 -> 26.95237392 | N186: =+K186*0 -> 0 | O186: =+(I186*Hoja1!$E$51)+(J186*Hoja1!$E$51) -> 529.8100676 | P186: =I186*($B$186+F186)/(1+Hoja1!$D$47)^H186 -> 7.928062043e+11 | Q186: 2.493583199e+10 | R186: 0
E187: c_ACCP_>19 | F187: =+Hoja1!$D$109 -> 2105843769 | G187: =+Hoja1!$D$127 -> 2229387844 | H187: 20 | I187: 899.5838426 | J187: 26.84956439 | K187: 73.56659304 | L187: 899.5838426 | M187: 26.84956439 | N187: =+K187*0 -> 0 | O187: =+(I187*Hoja1!$E$51)+(J187*Hoja1!$E$51) -> 527.7891119 | P187: =I187*($B$186+F187)/(1+Hoja1!$D$47)^H187 -> 7.508147659e+11 | Q187: 2.36150913e+10 | R187: 0
E188: c_ACCP_>19 | F188: =+Hoja1!$D$109 -> 2105843769 | G188: =+Hoja1!$D$127 -> 2229387844 | H188: 21 | I188: 896.1523882 | J188: 26.74714699 | K188: 77.10046477 | L188: =+I188*1 -> 896.1523882 | M188: =+J188*1 -> 26.74714699 | N188: =+K188*0 -> 0 | O188: =+(I188*Hoja1!$E$51)+(J188*Hoja1!$E$51) -> 525.7758652 | P188: =I188*($B$186+F188)/(1+Hoja1!$D$47)^H188 -> 7.110474284e+11 | Q188: 2.236430437e+10 | R188: 0
E189: c_ACCP_>19 | F189: =+Hoja1!$D$109 -> 2105843769 | G189: =+Hoja1!$D$127 -> 2229387844 | H189: 22 | I189: 892.7340232 | J189: 26.64512025 | K189: 80.62085657 | L189: 892.7340232 | M189: 26.64512025 | N189: =+K189*0 -> 0 | O189: =+(I189*Hoja1!$E$51)+(J189*Hoja1!$E$51) -> 523.770298 | P189: =I189*($B$186+F189)/(1+Hoja1!$D$47)^H189 -> 6.733863908e+11 | Q189: 2.117976608e+10 | R189: 0
E190: c_ACCP_>19 | F190: =+Hoja1!$D$109 -> 2105843769 | G190: =+Hoja1!$D$127 -> 2229387844 | H190: 23 | I190: 889.3286974 | J190: 26.54348268 | K190: 84.12781988 | L190: 889.3286974 | M190: 26.54348268 | N190: 0 | O190: =+(I190*Hoja1!$E$51)+(J190*Hoja1!$E$51) -> 521.772381 | P190: =I190*($B$186+F190)/(1+Hoja1!$D$47)^H190 -> 6.377200918e+11 | Q190: 2.005796754e+10 | R190: 0
E191: c_ACCP_>19 | F191: =+Hoja1!$D$109 -> 2105843769 | G191: =+Hoja1!$D$127 -> 2229387844 | H191: 24 | I191: 885.9363613 | J191: 26.44223281 | K191: 87.62140591 | L191: 885.9363613 | M191: 26.44223281 | N191: 0 | O191: =+(I191*Hoja1!$E$51)+(J191*Hoja1!$E$51) -> 519.7820851 | P191: =I191*($B$186+F191)/(1+Hoja1!$D$47)^H191 -> 6.039428789e+11 | Q191: 1.899558571e+10 | R191: 0
E192: c_ACCP_>19 | F192: =+Hoja1!$D$109 -> 2105843769 | G192: =+Hoja1!$D$127 -> 2229387844 | H192: 25 | I192: 882.5569652 | J192: 26.34136916 | K192: 91.10166568 | L192: 882.5569652 | M192: 26.34136916 | N192: 0 | O192: =+(I192*Hoja1!$E$51)+(J192*Hoja1!$E$51) -> 517.7993811 | P192: =I192*($B$186+F192)/(1+Hoja1!$D$47)^H192 -> 5.719546957e+11 | Q192: 1.798947355e+10 | R192: 0
E193: c_ACCP_>19 | F193: =+Hoja1!$D$109 -> 2105843769 | G193: =+Hoja1!$D$127 -> 2229387844 | H193: 26 | I193: 879.1904597 | J193: 26.24089025 | K193: 94.56865003 | L193: 879.1904597 | M193: 26.24089025 | N193: 0 | O193: =+(I193*Hoja1!$E$51)+(J193*Hoja1!$E$51) -> 515.8242401 | P193: =I193*($B$186+F193)/(1+Hoja1!$D$47)^H193 -> 5.41660785e+11 | Q193: 1.703665069e+10 | R193: 0
E194: c_ACCP_>19 | F194: =+Hoja1!$D$109 -> 2105843769 | G194: =+Hoja1!$D$127 -> 2229387844 | H194: 27 | I194: 875.8367958 | J194: 26.14079461 | K194: 98.02240961 | L194: 875.8367958 | M194: 26.14079461 | N194: 0 | O194: =+(I194*Hoja1!$E$51)+(J194*Hoja1!$E$51) -> 513.8566332 | P194: =I194*($B$186+F194)/(1+Hoja1!$D$47)^H194 -> 5.129714088e+11 | Q194: 1.613429465e+10 | R194: 0
E195: c_ACCP_>19 | F195: =+Hoja1!$D$109 -> 2105843769 | G195: =+Hoja1!$D$127 -> 2229387844 | H195: 28 | I195: 872.4959244 | J195: 26.04108079 | K195: 101.4629949 | L195: 872.4959244 | M195: 26.04108079 | N195: 0 | O195: =+(I195*Hoja1!$E$51)+(J195*Hoja1!$E$51) -> 511.8965318 | P195: =I195*($B$186+F195)/(1+Hoja1!$D$47)^H195 -> 4.85801582e+11 | Q195: 1.527973242e+10 | R195: 0
E196: c_ACCP_>19 | F196: =+Hoja1!$D$109 -> 2105843769 | G196: =+Hoja1!$D$127 -> 2229387844 | H196: 29 | I196: 869.1677967 | J196: 25.94174733 | K196: 104.890456 | L196: 869.1677967 | M196: 25.94174733 | N196: 0 | O196: =+(I196*Hoja1!$E$51)+(J196*Hoja1!$E$51) -> 509.9439072 | P196: =I196*($B$186+F196)/(1+Hoja1!$D$47)^H196 -> 4.600708207e+11 | Q196: 1.447043257e+10 | R196: 0
E197: c_ACCP_>19 | F197: =+Hoja1!$D$109 -> 2105843769 | G197: =+Hoja1!$D$127 -> 2229387844 | H197: 30 | I197: 865.8523641 | J197: 25.84279277 | K197: 108.3048432 | L197: 865.8523641 | M197: 25.84279277 | N197: 0 | O197: =+(I197*Hoja1!$E$51)+(J197*Hoja1!$E$51) -> 507.9987309 | P197: =I197*($B$186+F197)/(1+Hoja1!$D$47)^H197 -> 4.35702904e+11 | Q197: 1.370399776e+10 | R197: 0
E198: c_ACCP_>19 | F198: =+Hoja1!$D$109 -> 2105843769 | G198: =+Hoja1!$D$127 -> 2229387844 | H198: 31 | I198: 862.5495782 | J198: 25.74421568 | K198: 111.7062061 | L198: 862.5495782 | M198: 25.74421568 | N198: 0 | O198: =+(I198*Hoja1!$E$51)+(J198*Hoja1!$E$51) -> 506.0609744 | P198: =I198*($B$186+F198)/(1+Hoja1!$D$47)^H198 -> 4.126256482e+11 | Q198: 1.29781576e+10 | R198: 0
E199: c_ACCP_>19 | F199: =+Hoja1!$D$109 -> 2105843769 | G199: =+Hoja1!$D$127 -> 2229387844 | H199: 32 | I199: 859.2593907 | J199: 25.6460146 | K199: 115.0945947 | L199: 859.2593907 | M199: 25.6460146 | N199: 0 | O199: =+(I199*Hoja1!$E$51)+(J199*Hoja1!$E$51) -> 504.1306094 | P199: =I199*($B$186+F199)/(1+Hoja1!$D$47)^H199 -> 3.907706925e+11 | Q199: 1.229076199e+10 | R199: 0
E200: c_ACCP_>19 | F200: =+Hoja1!$D$109 -> 2105843769 | G200: =+Hoja1!$D$127 -> 2229387844 | H200: 33 | I200: 855.9817537 | J200: =+I199*$C$167+J199*$C$168+K199*$C$169 -> 25.54818811 | K200: =+I199*$D$167+J199*$D$168+K199*$D$169 -> 118.4700582 | L200: 855.9817537 | M200: 25.54818811 | N200: 0 | O200: =+(I200*Hoja1!$E$51)+(J200*Hoja1!$E$51) -> 502.2076078 | P200: =I200*($B$186+F200)/(1+Hoja1!$D$47)^H200 -> 3.700732971e+11 | Q200: =J200*($B$186+G200)/(1+$B$171)^H200 -> 1.163977469e+10 | R200: 0
E201: c_ACCP_>19 | F201: =+Hoja1!$D$109 -> 2105843769 | G201: =+Hoja1!$D$127 -> 2229387844 | H201: 34 | I201: =+I200*$B$167+J200*$B$168+K200*$B$169 -> 852.7166191 | J201: 25.45073478 | K201: 121.8326461 | L201: 852.7166191 | M201: 25.45073478 | N201: 0 | O201: =+(I201*Hoja1!$E$51)+(J201*Hoja1!$E$51) -> 500.2919415 | P201: =I201*($B$186+F201)/(1+Hoja1!$D$47)^H201 -> 3.504721513e+11 | Q201: 1.10232673e+10 | R201: 0
E202: c_ACCP_>19 | F202: =+Hoja1!$D$109 -> 2105843769 | G202: =+Hoja1!$D$127 -> 2229387844 | H202: 35 | I202: 849.4639394 | J202: 25.35365319 | K202: 125.1824074 | L202: 849.4639394 | M202: 25.35365319 | N202: 0 | O202: =+(I202*Hoja1!$E$51)+(J202*Hoja1!$E$51) -> 498.3835825 | P202: =I202*($B$186+F202)/(1+Hoja1!$D$47)^H202 -> 3.319091915e+11 | Q202: 1.043941358e+10 | R202: 0
E203: c_ACCP_>19 | F203: =+Hoja1!$D$109 -> 2105843769 | G203: =+Hoja1!$D$127 -> 2229387844 | H203: 36 | I203: 846.223667 | J203: 25.25694191 | K203: 128.5193911 | L203: 846.223667 | M203: 25.25694191 | N203: 0 | O203: =+(I203*Hoja1!$E$51)+(J203*Hoja1!$E$51) -> 496.4825029 | P203: =I203*($B$186+F203)/(1+Hoja1!$D$47)^H203 -> 3.143294295e+11 | Q203: 9886484017 | R203: 0
... 117 more rows

Sheet Deterministico
B5: ANÁLISIS DE SENSIBILIDAD DETERMINÍSTICO
B7: Tornado
J8: RESULTADOS
M11: DIFERENCIAL
K12: Dif Cost | M12: Dif Efec | O12: RICE
B14: PARÁMETROS | K14: =+'Resultado HT 73Años'!F5 -> -1.680418963e+10 | M14: =+'Resultado HT 73Años'!D5 -> 12.30948376 | O14: =+K14/M14 -> -1365141704
B16: Ítem | C16: VALORES DEL PARÁMETRO
C17: Mínimo | E17: Máximo | G17: Base | K17: Mínimo | M17: Máximo | O17: Diferencia
B19: TasaDescuento | C19: 0 | E19: 0.12 | G19: 0.05 | K19: -6208638977 | M19: -433091003.8 | O19: 5775547974
B20: ACCP_V_a_SA | C20: 0.012 | E20: 0.02 | G20: 0.016 | K20: -2810179680 | M20: -837192527.5 | O20: 1972987152
B21: ACCP_SA_a_V | C21: 0.5325 | E21: 0.8875 | G21: 0.71 | K21: -2700596806 | M21: -855756323.5 | O21: 1844840483
B22: EMZ_V_a_V | C22: 0.74613 | E22: 1 | G22: 0.99484 | K22: -673860544.6 | M22: 986693902.3 | O22: 1660554447
B23: ACCP_V_a_V | C23: 0.73425 | E23: 1 | G23: 0.979 | K23: 304862318.9 | M23: 1306670980 | O23: 1001808661
B24: ACCP_SA_a_SA | C24: 0.21375 | E24: 0.35625 | G24: 0.285 | K24: -1771859606 | M24: -1132935215 | O24: 638924390.4
B25: EMZ | C25: =+G25*0.75 -> 182809255.5 | E25: =G25*1.25 -> 304682092.5 | G25: 243745674 | K25: -1457885191 | M25: -1272398217 | O25: 185486974.1
B26: ACCP | C26: =+G26*0.75 -> 182809255.5 | E26: =G26*1.25 -> 304682092.5 | G26: 243745674 | K26: -1457885191 | M26: -1272398217 | O26: 185486974.1
B27: RR | C27: 0.004 | E27: 0.044 | G27: 0.01 | K27: -1385654664 | M27: -1256762963 | O27: 128891700.9
B28: EMZ_V_a_SA | C28: 0.00012 | E28: 0.0002 | G28: 0.00016 | K28: -1373634935 | M28: -1356724239 | O28: 16910695.93
B29: EMZ_SA_a_V | C29: 0.5325 | E29: 0.8875 | G29: 0.71 | K29: -1373267230 | M29: -1357085490 | O29: 16181739.92
B30: EMZ_SA_a_SA | C30: 0.21375 | E30: 0.35625 | G30: 0.285 | K30: -1368109759 | M30: -1361556281 | O30: 6553478.17
B31: ACCP_V_a_M | C31: 0.00375 | E31: 0.00625 | G31: 0.005 | K31: -1365141704 | M31: -1365141704 | O31: 0
B32: ACCP_SA_a_M | C32: 0.00375 | E32: 0.00625 | G32: 0.005 | K32: -1365141704 | M32: -1365141704 | O32: 0
B33: ACCP_M_a_M | C33: 0.75 | E33: 1 | G33: 1 | K33: -1365141704 | M33: -1365141704 | O33: 0
B34: EMZ_V_a_M | C34: 0.00375 | E34: 0.00625 | G34: 0.005 | K34: -1365141704 | M34: -1365141704 | O34: 0
B35: EMZ_SA_a_M | C35: 0.00375 | E35: 0.00625 | G35: 0.005 | K35: -1365141704 | M35: -1365141704 | O35: 0
B36: EMZ_M_a_M | C36: 0.75 | E36: 1 | G36: 1 | K36: -1365141704 | M36: -1365141704 | O36: 0

Sheet Resultado HT 73Años
A2: Caso base horizonte temporal de 73 años
B3: Alternativas | C3: Utilidad Esperada | D3: Utilidad Incremental | E3: Costos Esperados | F3: Costo Incremental | G3: RICE | H3: COSTO POR AVAC GANADO | K3: EMICIZUMAB ES DOMINANTE CON RESPECTO A ACCP PORQUE ES MAS EFECTIVA Y MENOS COSTOSA QUE EL COMPARADOR, PERO NO COSTOEFECTIVA CON RESPECTO AL UMBRAL
B4: EMZ | C4: =+'Cálculo de la Cadena'!O160 -> 47.62022342 | E4: =+SUM('Cálculo de la Cadena'!P160:R160) -> 1.670124402e+10 | H4: =+E4/C4 -> 350717464.6
B5: ACCP | C5: =+'Cálculo de la Cadena'!O79 -> 35.31073966 | D5: =+C4-C5 -> 12.30948376 | E5: =+SUM('Cálculo de la Cadena'!P79:R79) -> 3.350543365e+10 | F5: =+E4-E5 -> -1.680418963e+10 | G5: =+(F5/D5) -> -1365141704 | H5: =+E5/C5 -> 948873741.4
A8: Probabilístico
B9: Alternativas | C9: Utildiad Esperada | D9: Utilidad Incremental | E9: Costos Esperados | F9: Costo Incremental | G9: RICE | H9: COSTO POR AVAC GANADO
B10: EMZ | C10: =+SUM('Cálculo de la Cadena'!O320) -> 47.45682869 | E10: =+SUM('Cálculo de la Cadena'!P320:R320) -> 1.3417151e+10 | H10: =+E10/C10 -> 282723295.6
B11: ACCP | C11: =+SUM('Cálculo de la Cadena'!O241) -> 36.79185195 | D11: =+C10-C11 -> 10.66497674 | E11: =+SUM('Cálculo de la Cadena'!P241:R241) -> 2.91698641e+10 | F11: =+E10-E11 -> -1.57527131e+10 | G11: =+(F11/D11) -> -1477050863 | H11: =+E11/C11 -> 792834895.7

Sheet Resultado HT 5Años
A2: Caso base horizonte temporal de 5 Años
B3: Alternativas | C3: Utilidad Esperada | D3: Utilidad Incremental | E3: Costos Esperados | F3: Costo Incremental | G3: RICE | H3: COSTO POR AVAC GANADO | K3: EMICIZUMAB ES DOMINANTE CON RESPECTO A ACCP PORQUE ES MAS EFECTIVA Y MENOS COSTOSA QUE EL COMPARADOR, PERO NO COSTOEFECTIVA CON RESPECTO AL UMBRAL
B4: EMZ | C4: =+SUM('Cálculo de la Cadena'!O86:O90)/'Cálculo de la Cadena'!I86 -> 3.803276595 | E4: =+SUM('Cálculo de la Cadena'!P86:R90)/1000 -> 2035036169 | H4: =+E4/C4 -> 535074459.7
B5: ACCP | C5: =SUM('Cálculo de la Cadena'!O5:O9)/'Cálculo de la Cadena'!I5 -> 2.820157069 | D5: =+C4-C5 -> 0.983119526 | E5: =+SUM('Cálculo de la Cadena'!P5:Q9)/'Cálculo de la Cadena'!I5 -> 3333216262 | F5: =+E4-E5 -> -1298180092 | G5: =+(F5/D5) -> -1320470256 | H5: =+E5/C5 -> 1181925751
A8: Probabilístico
B9: Alternativas | C9: Utildiad Esperada | D9: Utilidad Incremental | E9: Costos Esperados | F9: Costo Incremental | G9: RICE | H9: COSTO POR AVAC GANADO
B10: EMZ | C10: =SUM('Cálculo de la Cadena'!O246:O250)/'Cálculo de la Cadena'!I246 -> 3.802511188 | E10: =SUM('Cálculo de la Cadena'!P246:R250)/'Cálculo de la Cadena'!I246 -> 1314486648 | H10: =+E10/C10 -> 345689094.1
B11: ACCP | C11: =SUM('Cálculo de la Cadena'!O167:O171)/'Cálculo de la Cadena'!I167 -> 2.826895596 | D11: =+C10-C11 -> 0.9756155926 | E11: =SUM('Cálculo de la Cadena'!P167:R171)/'Cálculo de la Cadena'!I167 -> 2933659915 | F11: =+E10-E11 -> -1619173267 | G11: =+(F11/D11) -> -1659642670 | H11: =+E11/C11 -> 1037767337

Sheet Resultado HT 16Años
A2: Caso base horizonte temporal de 5 Años
B3: Alternativas | C3: Utilidad Esperada | D3: Utilidad Incremental | E3: Costos Esperados | F3: Costo Incremental | G3: RICE | H3: COSTO POR AVAC GANADO | K3: EMICIZUMAB ES DOMINANTE CON RESPECTO A ACCP PORQUE ES MAS EFECTIVA Y MENOS COSTOSA QUE EL COMPARADOR, PERO NO COSTOEFECTIVA CON RESPECTO AL UMBRAL
B4: EMZ | C4: =+SUM('Cálculo de la Cadena'!O86:O101)/'Cálculo de la Cadena'!I86 -> 11.84240349 | E4: =+SUM('Cálculo de la Cadena'!P86:R101)/1000 -> 6789269678 | H4: =+E4/C4 -> 573301668.3
B5: ACCP | C5: =SUM('Cálculo de la Cadena'!O5:O20)/'Cálculo de la Cadena'!I5 -> 8.781227734 | D5: =+C4-C5 -> 3.061175756 | E5: =+SUM('Cálculo de la Cadena'!P5:R20)/'Cálculo de la Cadena'!I5 -> 1.247162864e+10 | F5: =+E4-E5 -> -5682358962 | G5: =+(F5/D5) -> -1856266812 | H5: =+E5/C5 -> 1420260243
A8: Probabilístico
B9: Alternativas | C9: Utildiad Esperada | D9: Utilidad Incremental | E9: Costos Esperados | F9: Costo Incremental | G9: RICE | H9: COSTO POR AVAC GANADO
B10: EMZ | C10: =SUM('Cálculo de la Cadena'!O246:O261)/'Cálculo de la Cadena'!I246 -> 11.83360287 | E10: =SUM('Cálculo de la Cadena'!P246:R261)/'Cálculo de la Cadena'!I246 -> 5069604657 | H10: =+E10/C10 -> 428407536.9
B11: ACCP | C11: =SUM('Cálculo de la Cadena'!O167:O182)/'Cálculo de la Cadena'!I167 -> 8.859191255 | D11: =+C10-C11 -> 2.974411611 | E11: =SUM('Cálculo de la Cadena'!P167:R182)/'Cálculo de la Cadena'!I167 -> 1.128915182e+10 | F11: =+E10-E11 -> -6219547167 | G11: =+(F11/D11) -> -2091017647 | H11: =+E11/C11 -> 1274286952

Sheet Simulacion
A5: ANÁLISIS DE SENSIBILIDAD PROBABILÍSTICO
B7: Número de simulaciones | C7: 30
A9: Resultados | I9: Beneficio monetario | K9: Probabillidad de mayor beneficio neto | O9: Curva de aceptabilidad
B10: AVG EMZ | C10: Costo EMZ | D10: AVG ACCP | E10: Costo ACCP | F10: AVG incr | G10: Costo incr | H10: RICE | I10: Tratamiento EMZ | J10: Tratamiento ACCP | K10: Tratamiento EMZ | L10: Tratamiento ACCP | O10: Cratio | P10: Tratamiento EMZ | Q10: Tratamiento ACCP
A11: Simulación | B11: =+'Resultado HT 73Años'!C10 -> 47.45682869 | C11: =+'Resultado HT 73Años'!E10 -> 1.3417151e+10 | D11: =+'Resultado HT 73Años'!C11 -> 36.79185195 | E11: =+'Resultado HT 73Años'!E11 -> 2.91698641e+10 | F11: =B11-D11 -> 10.66497674 | G11: =C11-E11 -> -1.57527131e+10 | H11: =G11/F11 -> -1477050863 | I11: =B11*Cratio-C11 -> 1.884855996e+12 | J11: =D11*Cratio-E11 -> 1.442504214e+12 | K11: =IF(MAX(I11:J11)=I11,1,0) -> 1 | L11: =IF(MAX(I11:J11)=J11,1,0) -> 0 | O11: 40000000000 | P11: =K12 -> 1 | Q11: =L12 -> 0
A12: Promedio | B12: =AVERAGE(B18:B1017) -> 47.50342783 | C12: =AVERAGE(C18:C1017) -> 1.345339105e+10 | D12: 35.22852394 | E12: 3.248892732e+10 | F12: 12.27490389 | G12: -1.903553628e+10 | H12: -1549677587 | I12: =AVERAGE(I18:I1017) -> 1.886683722e+12 | J12: =AVERAGE(J18:J1017) -> 1.37665203e+12 | K12: =AVERAGE(K18:K1017) -> 1 | L12: =AVERAGE(L18:L1017) -> 0 | O12: umbral
A13: Desviación | B13: =STDEV(B18:B1017) -> 1.189886335 | C13: 1093607103 | D13: 0.8712965144 | E13: 2181327099 | F13: 0.3191941837 | G13: 2242394748 | H13: 168578369.1 | I13: =STDEV(I18:I1017) -> 4.743083824e+10 | J13: =STDEV(J18:J1017) -> 3.36944404e+10 | K13: =STDEV(K18:K1017) -> 0 | L13: =STDEV(L18:L1017) -> 0
A14: Mínimo | B14: =MIN(B18:B1017) -> 45.70920418 | C14: 1.165504703e+10 | D14: 33.9122345 | E14: 2.895479609e+10 | F14: 11.79696968 | G14: -2.382498951e+10 | H14: -1869174805 | I14: =MIN(I18:I1017) -> 1.816375647e+12 | J14: =MIN(J18:J1017) -> 1.324183287e+12 | K14: =MIN(K18:K1017) -> 1 | L14: =MIN(L18:L1017) -> 0
A15: Máximo | B15: =MAX(B18:B1017) -> 49.2966299 | C15: 1.545971963e+10 | D15: 36.55393753 | E15: 3.676782568e+10 | F15: 12.74697655 | G15: -1.474920305e+10 | H15: -1236779003 | I15: =MAX(I18:I1017) -> 1.958986024e+12 | J15: =MAX(J18:J1017) -> 1.430765107e+12 | K15: =MAX(K18:K1017) -> 1 | L15: =MAX(L18:L1017) -> 0
O16: rango va de 25 MM hasta los 100.000 MM
A17: Número de simulación | B17: AVG EMZ | C17: Costo EMZ | D17: AVG ACCP | E17: Costo ACCP | F17: AVG incr | G17: Costo incr | H17: RICE | I17: Tratamiento EMZ | J17: Tratamiento ACCP | K17: Tratamiento EMZ | L17: Tratamiento ACCP | O17: Disponibilidad a pagar | P17: Tratamiento EMZ | Q17: Tratamiento ACCP
A18: 1 | B18: 49.12536019 | C18: 1.545971963e+10 | D18: 36.41713968 | E18: 3.676782568e+10 | F18: 12.70822052 | G18: -2.130810605e+10 | H18: -1676718312 | I18: =B18*Cratio-C18 -> 1.949554688e+12 | J18: =D18*Cratio-E18 -> 1.419917761e+12 | K18: =IF(MAX(I18:J18)=I18,1,0) -> 1 | L18: =IF(MAX(I18:J18)=J18,1,0) -> 0 | O18: 25505993.52 | P18: 1 | Q18: 0
A19: 2 | B19: 48.61694545 | C19: 1.219534363e+10 | D19: 36.06436356 | E19: 3.339820359e+10 | F19: 12.55258189 | G19: -2.120285996e+10 | H19: -1689123413 | I19: 1.932482474e+12 | J19: 1.409176339e+12 | K19: 1 | L19: 0 | N19: =+(O19-O18)/2 -> 1051960369 | O19: =+($O$37-$O$18)/19+O18 -> 2129426731 | P19: 1 | Q19: 0
A20: 3 | B20: 46.02123578 | C20: 1.428908481e+10 | D20: 34.16733442 | E20: 2.903828785e+10 | F20: 11.85390137 | G20: -1.474920305e+10 | H20: -1244248842 | I20: 1.826560346e+12 | J20: 1.337655089e+12 | K20: 1 | L20: 0 | O20: 4233347468 | P20: 1 | Q20: 0
A21: 4 | B21: 46.17672533 | C21: 1.369068006e+10 | D21: 34.24240811 | E21: 3.308816483e+10 | F21: 11.93431722 | G21: -1.939748477e+10 | H21: -1625353543 | I21: 1.833378333e+12 | J21: 1.33660816e+12 | K21: 1 | L21: 0 | O21: 6337268205 | P21: 1 | Q21: 0
A22: 5 | B22: 49.2966299 | C22: 1.498014e+10 | D22: 36.55393753 | E22: 3.590621415e+10 | F22: 12.74269238 | G22: -2.092607415e+10 | H22: -1642201941 | I22: 1.956885056e+12 | J22: 1.426251287e+12 | K22: 1 | L22: 0 | O22: 8441188942 | P22: 1 | Q22: 0
A23: 6 | B23: 48.95499849 | C23: 1.43211402e+10 | D23: 36.30683557 | E23: 3.551876891e+10 | F23: 12.64816292 | G23: -2.119762872e+10 | H23: -1675945262 | I23: 1.943878799e+12 | J23: 1.416754654e+12 | K23: 1 | L23: 0 | O23: 1.054510968e+10 | P23: 1 | Q23: 0
A24: 7 | B24: 45.70920418 | C24: 1.199251996e+10 | D24: 33.9122345 | E24: 3.230609285e+10 | F24: 11.79696968 | G24: -2.031357289e+10 | H24: -1721931432 | I24: 1.816375647e+12 | J24: 1.324183287e+12 | K24: 1 | L24: 0 | O24: 1.264903042e+10 | P24: 1 | Q24: 0
A25: 8 | B25: 47.94953378 | C25: 1.432562068e+10 | D25: 35.57429382 | E25: 3.199095005e+10 | F25: 12.37523996 | G25: -1.766532937e+10 | H25: -1427473683 | I25: 1.90365573e+12 | J25: 1.390980803e+12 | K25: 1 | L25: 0 | O25: 1.475295115e+10 | P25: 1 | Q25: 0
A26: 9 | B26: 46.33506028 | C26: 1.253889209e+10 | D26: 34.39278811 | E26: 3.482312533e+10 | F26: 11.94227217 | G26: -2.228423325e+10 | H26: -1865996096 | I26: 1.840863519e+12 | J26: 1.340888399e+12 | K26: 1 | L26: 0 | O26: 1.685687189e+10 | P26: 1 | Q26: 0
A27: 10 | B27: 46.17692719 | C27: 1.267572396e+10 | D27: 34.25568156 | E27: 3.019041272e+10 | F27: 11.92124563 | G27: -1.751468876e+10 | H27: -1469199554 | I27: 1.834401363e+12 | J27: 1.34003685e+12 | K27: 1 | L27: 0 | O27: 1.896079263e+10 | P27: 1 | Q27: 0
A28: 11 | B28: 46.8099918 | C28: 1.233335498e+10 | D28: 34.69996355 | E28: 3.236576462e+10 | F28: 12.11002825 | G28: -2.003240964e+10 | H28: -1654200075 | I28: 1.860066317e+12 | J28: 1.355632777e+12 | K28: 1 | L28: 0 | O28: 2.106471337e+10 | P28: 1 | Q28: 0
A29: 12 | B29: 46.49247751 | C29: 1.293606919e+10 | D29: 34.49741205 | E29: 3.272181969e+10 | F29: 11.99506546 | G29: -1.978575051e+10 | H29: -1649490832 | I29: 1.846763031e+12 | J29: 1.347174662e+12 | K29: 1 | L29: 0 | O29: 2.31686341e+10 | P29: 1 | Q29: 0
A30: 13 | B30: 46.97043263 | C30: 1.404455305e+10 | D30: 34.82188575 | E30: 3.289865107e+10 | F30: 12.14854688 | G30: -1.885409802e+10 | H30: -1551963227 | I30: 1.864772752e+12 | J30: 1.359976779e+12 | K30: 1 | L30: 0 | O30: 2.527255484e+10 | P30: 1 | Q30: 0
A31: 14 | B31: 47.62041827 | C31: 1.358359969e+10 | D31: 35.3230748 | E31: 3.49958016e+10 | F31: 12.29734348 | G31: -2.141220192e+10 | H31: -1741205485 | I31: 1.891233131e+12 | J31: 1.37792719e+12 | K31: 1 | L31: 0 | O31: 2.737647558e+10 | P31: 1 | Q31: 0
A32: 15 | B32: 47.78312827 | C32: 1.226570134e+10 | D32: 35.41682121 | E32: 3.26879033e+10 | F32: 12.36630705 | G32: -2.042220196e+10 | H32: -1651439017 | I32: 1.899059429e+12 | J32: 1.383984945e+12 | K32: 1 | L32: 0 | O32: 2.948039631e+10 | P32: 1 | Q32: 0
A33: 16 | B33: 48.11426511 | C33: 1.399040394e+10 | D33: 35.66879242 | E33: 3.228870714e+10 | F33: 12.44547269 | G33: -1.82983032e+10 | H33: -1470277880 | I33: 1.9105802e+12 | J33: 1.39446299e+12 | K33: 1 | L33: 0 | O33: 3.158431705e+10 | P33: 1 | Q33: 0
A34: 17 | B34: 48.2805204 | C34: 1.223129404e+10 | D34: 35.78946572 | E34: 2.956101553e+10 | F34: 12.49105468 | G34: -1.732972149e+10 | H34: -1387370557 | I34: 1.918989522e+12 | J34: 1.402017613e+12 | K34: 1 | L34: 0 | O34: 3.368823779e+10 | P34: 1 | Q34: 0
A35: 18 | B35: 46.65163254 | C35: 1.243421896e+10 | D35: 34.61905602 | E35: 3.107999911e+10 | F35: 12.03257652 | G35: -1.864578016e+10 | H35: -1549608275 | I35: 1.853631083e+12 | J35: 1.353682242e+12 | K35: 1 | L35: 0 | O35: 3.579215853e+10 | P35: 1 | Q35: 0
A36: 19 | B36: 47.61992561 | C36: 1.393305523e+10 | D36: 35.30144743 | E36: 3.225392992e+10 | F36: 12.31847818 | G36: -1.832087468e+10 | H36: -1487267698 | I36: 1.890863969e+12 | J36: 1.379803967e+12 | K36: 1 | L36: 0 | O36: 3.789607926e+10 | P36: 1 | Q36: 0
A37: 20 | B37: 49.12370646 | C37: 1.183102543e+10 | D37: 36.37744568 | E37: 3.565601493e+10 | F37: 12.74626078 | G37: -2.382498951e+10 | H37: -1869174805 | I37: 1.953117233e+12 | J37: 1.419441812e+12 | K37: 1 | L37: 0 | O37: 40000000000 | P37: 1 | Q37: 0
A38: 21 | B38: 46.33410418 | C38: 1.165504703e+10 | D38: 34.3635133 | E38: 2.940952372e+10 | F38: 11.97059089 | G38: -1.77544767e+10 | H38: -1483174629 | I38: 1.84170912e+12 | J38: 1.345131008e+12 | K38: 1 | L38: 0
A39: 22 | B39: 49.29597372 | C39: 1.28529246e+10 | D39: 36.54899716 | E39: 3.119477939e+10 | F39: 12.74697655 | G39: -1.834185479e+10 | H39: -1438918061 | I39: 1.958986024e+12 | J39: 1.430765107e+12 | K39: 1 | L39: 0
A40: 23 | B40: 47.45796916 | C40: 1.402214171e+10 | D40: 35.22013088 | E40: 3.160331394e+10 | F40: 12.23783828 | G40: -1.758117223e+10 | H40: -1436624004 | I40: 1.884296625e+12 | J40: 1.377201921e+12 | K40: 1 | L40: 0
A41: 24 | B41: 47.94921109 | C41: 1.361906763e+10 | D41: 35.54947887 | E41: 2.895479609e+10 | F41: 12.39973223 | G41: -1.533572846e+10 | H41: -1236779003 | I41: 1.904349376e+12 | J41: 1.393024359e+12 | K41: 1 | L41: 0
A42: 25 | B42: 46.0202901 | C42: 1.384996585e+10 | D42: 34.14209541 | E42: 3.070634474e+10 | F42: 11.87819468 | G42: -1.685637889e+10 | H42: -1419102763 | I42: 1.826961638e+12 | J42: 1.334977472e+12 | K42: 1 | L42: 0
A43: 26 | B43: 47.62111773 | C43: 1.397667417e+10 | D43: 35.34199275 | E43: 3.382261297e+10 | F43: 12.27912498 | G43: -1.98459388e+10 | H43: -1616233960 | I43: 1.890868035e+12 | J43: 1.379857097e+12 | K43: 1 | L43: 0
A44: 27 | B44: 46.65091732 | C44: 1.511704028e+10 | D44: 34.58873581 | E44: 3.109718121e+10 | F44: 12.06218151 | G44: -1.598014093e+10 | H44: -1324813502 | I44: 1.850919652e+12 | J44: 1.352452251e+12 | K44: 1 | L44: 0
A45: 28 | B45: 45.86413026 | C45: 1.464651385e+10 | D45: 34.01338949 | E45: 2.952866924e+10 | F45: 11.85074077 | G45: -1.488215539e+10 | H45: -1255799589 | I45: 1.819918697e+12 | J45: 1.33100691e+12 | K45: 1 | L45: 0
A46: 29 | B46: 48.95483754 | C46: 1.51181093e+10 | D46: 36.29680761 | E46: 3.452426508e+10 | F46: 12.65802993 | G46: -1.940615578e+10 | H46: -1533110277 | I46: 1.943075392e+12 | J46: 1.417348039e+12 | K46: 1 | L46: 0
A47: 30 | B47: 49.12516475 | C47: 1.269210614e+10 | D47: 36.38819549 | E47: 3.428868042e+10 | F47: 12.73696925 | G47: -2.159657429e+10 | H47: -1695581881 | I47: 1.952314484e+12 | J47: 1.421239139e+12 | K47: 1 | L47: 0

Sheet Univariado
B5: ANÁLISIS DE SENSIBILIDAD DETERMINÍSTICO
B7: Análisis univariado
N10: RESULTADOS
Q13: DIFERENCIAL
O14: Dif Cost | Q14: Dif Efec | S14: RICE
B16: PARÁMETROS | O16: =+'Resultado HT 73Años'!F5 -> -1.680418963e+10 | Q16: =+'Resultado HT 73Años'!D5 -> 12.30948376 | S16: =+'Resultado HT 73Años'!G5 -> -1365141704
C18: VALORES DEL PARÁMETRO | O18: RICE
B19: Ítem | C19: Base | D19: Valor 1 | E19: Valor 2 | F19: Valor 3 | G19: Valor 4 | H19: Valor 5 | I19: Valor 6 | J19: Valor 7 | K19: Valor 8 | L19: Valor 9 | M19: Valor 10 | O19: Valor 1 | P19: Valor 2 | Q19: Valor 3 | R19: Valor 4 | S19: Valor 5 | T19: Valor 6 | U19: Valor 7 | V19: Valor 8 | W19: Valor 9 | X19: Valor 10
B20: RICE | D20: -2861565897
B21: RR | C21: 0.01 | D21: 0 | E21: 0.1088888889 | F21: 0.2177777778 | G21: 0.3266666667 | H21: 0.4355555556 | I21: 0.5444444444 | J21: 0.6533333333 | K21: 0.7622222222 | L21: 0.8711111111 | M21: 0.98 | O21: -1399579378 | P21: -1081191535 | Q21: -854123393.6 | R21: -684708322.5 | S21: -554019859.8 | T21: -450599098.1 | U21: -367101188 | V21: -298600075.9 | W21: -241667697.9 | X21: -193844075.1
B22: TasaDescuento | C22: 0.05 | D22: 0 | E22: 0.1088888889 | F22: 0.2177777778 | G22: 0.3266666667 | H22: 0.4355555556 | I22: 0.5444444444 | J22: 0.6533333333 | K22: 0.7622222222 | L22: 0.8711111111 | M22: 0.98 | O22: -6208638977 | P22: -497125610.4 | Q22: -187634438.2 | R22: -113362125 | S22: -83706496.04 | T22: -68324628.85 | U22: -59013143.13 | V22: -52791627.43 | W22: -48345523.47 | X22: -45010781.2
B23: ACCP_V_a_V | C23: 0.979 | D23: 0 | E23: 0.1088888889 | F23: 0.2177777778 | G23: 0.3266666667 | H23: 0.4355555556 | I23: 0.5444444444 | J23: 0.6533333333 | K23: 0.7622222222 | L23: 0.8711111111 | M23: 0.98 | O23: 339729974 | P23: 338437214.9 | Q23: 336779400.1 | R23: 334553002.3 | S23: 331374254.3 | T23: 326425637.3 | U23: 317610973.8 | V23: 297783828.8 | W23: 228844407.4 | X23: -1583805206
B24: ACCP_V_a_SA | C24: 0.016 | D24: 0 | E24: 0.1088888889 | F24: 0.2177777778 | G24: 0.3266666667 | H24: 0.4355555556 | I24: 0.5444444444 | J24: 0.6533333333 | K24: 0.7622222222 | L24: 0.8711111111 | M24: 0.98 | O24: -273843451.4 | P24: 316695939 | Q24: 201154957.1 | R24: 176266397 | S24: 166109650.3 | T24: 160566663.2 | U24: 157048262.7 | V24: 154601214.1 | W24: 152791889.6 | X24: 151394159.8
B25: ACCP_V_a_M | C25: 0.005 | D25: 0 | E25: 0.1088888889 | F25: 0.2177777778 | G25: 0.3266666667 | H25: 0.4355555556 | I25: 0.5444444444 | J25: 0.6533333333 | K25: 0.7622222222 | L25: 0.8711111111 | M25: 0.98 | O25: -1365141704 | P25: -1365141704 | Q25: -1365141704 | R25: -1365141704 | S25: -1365141704 | T25: -1365141704 | U25: -1365141704 | V25: -1365141704 | W25: -1365141704 | X25: -1365141704
B26: ACCP_SA_a_V | C26: 0.285 | D26: 0 | E26: 0.1088888889 | F26: 0.2177777778 | G26: 0.3266666667 | H26: 0.4355555556 | I26: 0.5444444444 | J26: 0.6533333333 | K26: 0.7622222222 | L26: 0.8711111111 | M26: 0.98 | O26: -299548399.8 | P26: -366273328.1 | Q26: -448607389 | R26: -553080760.3 | S26: -690482652.1 | T26: -880007169.3 | U26: -1159411942 | V26: -1614606409 | W26: -2492312661 | X26: -4907220687
B27: ACCP_SA_a_SA | C27: 0.71 | D27: 0 | E27: 0.1088888889 | F27: 0.2177777778 | G27: 0.3266666667 | H27: 0.4355555556 | I27: 0.5444444444 | J27: 0.6533333333 | K27: 0.7622222222 | L27: 0.8711111111 | M27: 0.98 | O27: -428736187.2 | P27: -452164563.2 | Q27: -483947462 | R27: -529527935.3 | S27: -600399212.5 | T27: -725778530.2 | U27: -1008491071 | V27: -2259050727 | W27: 2395483349 | X27: 497616452.7
B28: ACCP_SA_a_M | C28: 0.005 | D28: 0 | E28: 0.1088888889 | F28: 0.2177777778 | G28: 0.3266666667 | H28: 0.4355555556 | I28: 0.5444444444 | J28: 0.6533333333 | K28: 0.7622222222 | L28: 0.8711111111 | M28: 0.98 | O28: -1365289955 | P28: -1365289955 | Q28: -1365289955 | R28: -1365289955 | S28: -1365289955 | T28: -1365289955 | U28: -1365289955 | V28: -1365289955 | W28: -1365289955 | X28: -1365289955
B29: EMZ_V_a_V | C29: 0.99484 | D29: 0 | E29: 0.1088888889 | F29: 0.2177777778 | G29: 0.3266666667 | H29: 0.4355555556 | I29: 0.5444444444 | J29: 0.6533333333 | K29: 0.7622222222 | L29: 0.8711111111 | M29: 0.98 | O29: 957454802.5 | P29: 958603958.4 | Q29: 960096489.1 | R29: 962099289.2 | S29: 964909612.3 | T29: 969112964 | U29: 976037243.4 | V29: 989485817.2 | W29: 1028986270 | X29: 3937627221
B30: EMZ_V_a_SA | C30: 0.00016 | D30: 0 | E30: 0.1088888889 | F30: 0.2177777778 | G30: 0.3266666667 | H30: 0.4355555556 | I30: 0.5444444444 | J30: 0.6533333333 | K30: 0.7622222222 | L30: 0.8711111111 | M30: 0.98 | O30: -1399730841 | P30: 92148372.11 | Q30: 67754481.96 | R30: 60593458.05 | S30: 57465174.02 | T30: 55703614.69 | U30: 54564733.78 | V30: 53762911.16 | W30: 53164827.13 | X30: 52699715.27
B31: EMZ_V_a_M | C31: 0.005 | D31: 0 | E31: 0.1088888889 | F31: 0.2177777778 | G31: 0.3266666667 | H31: 0.4355555556 | I31: 0.5444444444 | J31: 0.6533333333 | K31: 0.7622222222 | L31: 0.8711111111 | M31: 0.98 | O31: -1365289955 | P31: -1365289955 | Q31: -1365289955 | R31: -1365289955 | S31: -1365289955 | T31: -1365289955 | U31: -1365289955 | V31: -1365289955 | W31: -1365289955 | X31: -1365289955
B32: EMZ_SA_a_V | C32: 0.71 | D32: 0 | E32: 0.1088888889 | F32: 0.2177777778 | G32: 0.3266666667 | H32: 0.4355555556 | I32: 0.5444444444 | J32: 0.6533333333 | K32: 0.7622222222 | L32: 0.8711111111 | M32: 0.98 | O32: -1398219884 | P32: -1393095309 | Q32: -1387997966 | R32: -1382927641 | S32: -1377884124 | T32: -1372867208 | U32: -1367876688 | V32: -1362912358 | W32: -1357974019 | X32: -1353061470
B33: EMZ_SA_a_SA | C33: 0.285 | D33: 0 | E33: 0.1088888889 | F33: 0.2177777778 | G33: 0.3266666667 | H33: 0.4355555556 | I33: 0.5444444444 | J33: 0.6533333333 | K33: 0.7622222222 | L33: 0.8711111111 | M33: 0.98 | O33: -1374725355 | P33: -1371801569 | Q33: -1368104186 | R33: -1363279807 | S33: -1356721562 | T33: -1347293027 | U33: -1332593101 | V33: -1306543511 | W33: -1248330469 | X33: -1033610729
B34: EMZ_SA_a_M | C34: 0.005 | D34: 0 | E34: 0.1088888889 | F34: 0.2177777778 | G34: 0.3266666667 | H34: 0.4355555556 | I34: 0.5444444444 | J34: 0.6533333333 | K34: 0.7622222222 | L34: 0.8711111111 | M34: 0.98 | O34: -1365289955 | P34: -1365289955 | Q34: -1365289955 | R34: -1365289955 | S34: -1365289955 | T34: -1365289955 | U34: -1365289955 | V34: -1365289955 | W34: -1365289955 | X34: -1365289955
B37: c_EMZ_A_02 | C37: 190814910.6 | D37: 140000000 | E37: 513333333.3 | F37: 886666666.7 | G37: 1260000000 | H37: 1633333333 | I37: 2006666667 | J37: 2380000000 | K37: 2753333333 | L37: 3126666667 | M37: 3500000000 | O37: -698611063.8 | P37: -648830038.6 | Q37: -599049013.5 | R37: -549267988.4 | S37: -499486963.3 | T37: -449705938.2 | U37: -399924913 | V37: -350143887.9 | W37: -300362862.8 | X37: -250581837.7
B38: c_EMZ_A_03 | C38: 222967974.3 | D38: 140000000 | E38: 513333333.3 | F38: 886666666.7 | G38: 1260000000 | H38: 1633333333 | I38: 2006666667 | J38: 2380000000 | K38: 2753333333 | L38: 3126666667 | M38: 3500000000 | O38: -695176083.6 | P38: -680143467.1 | Q38: -665110850.6 | R38: -650078234.2 | S38: -635045617.7 | T38: -620013001.2 | U38: -604980384.7 | V38: -589947768.3 | W38: -574915151.8 | X38: -559882535.3
B39: c_EMZ_A_04 | C39: 253919054.3 | D39: 140000000 | E39: 513333333.3 | F39: 886666666.7 | G39: 1260000000 | H39: 1633333333 | I39: 2006666667 | J39: 2380000000 | K39: 2753333333 | L39: 3126666667 | M39: 3500000000 | O39: -696203015.1 | P39: -681889224.4 | Q39: -667575433.8 | R39: -653261643.2 | S39: -638947852.6 | T39: -624634062 | U39: -610320271.4 | V39: -596006480.8 | W39: -581692690.2 | X39: -567378899.6
B40: c_EMZ_A_05 | C40: 286372613.9 | D40: 140000000 | E40: 513333333.3 | F40: 886666666.7 | G40: 1260000000 | H40: 1633333333 | I40: 2006666667 | J40: 2380000000 | K40: 2753333333 | L40: 3126666667 | M40: 3500000000 | O40: -697178950.3 | P40: -683549606.7 | Q40: -669920263.2 | R40: -656290919.7 | S40: -642661576.1 | T40: -629032232.6 | U40: -615402889 | V40: -601773545.5 | W40: -588144201.9 | X40: -574514858.4
B41: c_EMZ_A_06 | C41: 321530636.8 | D41: 140000000 | E41: 513333333.3 | F41: 886666666.7 | G41: 1260000000 | H41: 1633333333 | I41: 2006666667 | J41: 2380000000 | K41: 2753333333 | L41: 3126666667 | M41: 3500000000 | O41: -698145579.6 | P41: -685167948.8 | Q41: -672190318.1 | R41: -659212687.3 | S41: -646235056.5 | T41: -633257425.8 | U41: -620279795 | V41: -607302164.3 | W41: -594324533.5 | X41: -581346902.8
B42: c_EMZ_A_07 | C42: 349476757.6 | D42: 140000000 | E42: 513333333.3 | F42: 886666666.7 | G42: 1260000000 | H42: 1633333333 | I42: 2006666667 | J42: 2380000000 | K42: 2753333333 | L42: 3126666667 | M42: 3500000000 | O42: -698768842.5 | P42: -686411756.1 | Q42: -674054669.7 | R42: -661697583.2 | S42: -649340496.8 | T42: -636983410.4 | U42: -624626324 | V42: -612269237.6 | W42: -599912151.2 | X42: -587555064.8
B43: c_EMZ_A_08 | C43: 385235772.4 | D43: 140000000 | E43: 513333333.3 | F43: 886666666.7 | G43: 1260000000 | H43: 1633333333 | I43: 2006666667 | J43: 2380000000 | K43: 2753333333 | L43: 3126666667 | M43: 3500000000 | O43: -699564312.7 | P43: -687798093.1 | Q43: -676031873.5 | R43: -664265654 | S43: -652499434.4 | T43: -640733214.8 | U43: -628966995.2 | V43: -617200775.7 | W43: -605434556.1 | X43: -593668336.5
B44: c_EMZ_A_09 | C44: 429709168.8 | D44: 140000000 | E44: 513333333.3 | F44: 886666666.7 | G44: 1260000000 | H44: 1633333333 | I44: 2006666667 | J44: 2380000000 | K44: 2753333333 | L44: 3126666667 | M44: 3500000000 | O44: -700529377.3 | P44: -689325766.6 | Q44: -678122156 | R44: -666918545.3 | S44: -655714934.6 | T44: -644511324 | U44: -633307713.3 | V44: -622104102.6 | W44: -610900492 | X44: -599696881.3
B45: c_EMZ_A_10 | C45: 484098930.8 | D45: 140000000 | E45: 513333333.3 | F45: 886666666.7 | G45: 1260000000 | H45: 1633333333 | I45: 2006666667 | J45: 2380000000 | K45: 2753333333 | L45: 3126666667 | M45: 3500000000 | O45: -701667842.5 | P45: -690999934.5 | Q45: -680332026.5 | R45: -669664118.5 | S45: -658996210.5 | T45: -648328302.5 | U45: -637660394.5 | V45: -626992486.5 | W45: -616324578.5 | X45: -605656670.5
B46: c_EMZ_A_11 | C46: 484098930.8 | D46: 140000000 | E46: 513333333.3 | F46: 886666666.7 | G46: 1260000000 | H46: 1633333333 | I46: 2006666667 | J46: 2380000000 | K46: 2753333333 | L46: 3126666667 | M46: 3500000000 | O46: -701197701.9 | P46: -691039877.3 | Q46: -680882052.7 | R46: -670724228.1 | S46: -660566403.6 | T46: -650408579 | U46: -640250754.4 | V46: -630092929.8 | W46: -619935105.2 | X46: -609777280.6
B47: c_EMZ_A_12 | C47: 621726063.2 | D47: 140000000 | E47: 513333333.3 | F47: 886666666.7 | G47: 1260000000 | H47: 1633333333 | I47: 2006666667 | J47: 2380000000 | K47: 2753333333 | L47: 3126666667 | M47: 3500000000 | O47: -704315620.4 | P47: -694643485.5 | Q47: -684971350.5 | R47: -675299215.5 | S47: -665627080.5 | T47: -655954945.6 | U47: -646282810.6 | V47: -636610675.6 | W47: -626938540.6 | X47: -617266405.7
B48: c_EMZ_A_13 | C48: 701357482.6 | D48: 140000000 | E48: 513333333.3 | F48: 886666666.7 | G48: 1260000000 | H48: 1633333333 | I48: 2006666667 | J48: 2380000000 | K48: 2753333333 | L48: 3126666667 | M48: 3500000000 | O48: -705683296.3 | P48: -696473624 | Q48: -687263951.6 | R48: -678054279.2 | S48: -668844606.8 | T48: -659634934.5 | U48: -650425262.1 | V48: -641215589.7 | W48: -632005917.4 | X48: -622796245
B49: c_EMZ_A_14 | C49: 783543117.3 | D49: 140000000 | E49: 513333333.3 | F49: 886666666.7 | G49: 1260000000 | H49: 1633333333 | I49: 2006666667 | J49: 2380000000 | K49: 2753333333 | L49: 3126666667 | M49: 3500000000 | O49: -706951655.5 | P49: -698182329.7 | Q49: -689413003.9 | R49: -680643678.1 | S49: -671874352.4 | T49: -663105026.6 | U49: -654335700.8 | V49: -645566375 | W49: -636797049.2 | X49: -628027723.5
B50: c_EMZ_A_15 | C50: 818701140.2 | D50: 140000000 | E50: 513333333.3 | F50: 886666666.7 | G50: 1260000000 | H50: 1633333333 | I50: 2006666667 | J50: 2380000000 | K50: 2753333333 | L50: 3126666667 | M50: 3500000000 | O50: -707015246.5 | P50: -698665209.1 | Q50: -690315171.7 | R50: -681965134.3 | S50: -673615097 | T50: -665265059.6 | U50: -656915022.2 | V50: -648564984.8 | W50: -640214947.5 | X50: -631864910.1
B51: c_EMZ_A_16 | C51: 935594054 | D51: 140000000 | E51: 513333333.3 | F51: 886666666.7 | G51: 1260000000 | H51: 1633333333 | I51: 2006666667 | J51: 2380000000 | K51: 2753333333 | L51: 3126666667 | M51: 3500000000 | O51: -708778896.3 | P51: -700828096.4 | Q51: -692877296.4 | R51: -684926496.5 | S51: -676975696.6 | T51: -669024896.6 | U51: -661074096.7 | V51: -653123296.8 | W51: -645172496.8 | X51: -637221696.9
B52: c_EMZ_A_17 | C52: 992087287.4 | D52: 140000000 | E52: 513333333.3 | F52: 886666666.7 | G52: 1260000000 | H52: 1633333333 | I52: 2006666667 | J52: 2380000000 | K52: 2753333333 | L52: 3126666667 | M52: 3500000000 | O52: -709114385.3 | P52: -701543730.9 | Q52: -693973076.5 | R52: -686402422.1 | S52: -678831767.7 | T52: -671261113.2 | U52: -663690458.8 | V52: -656119804.4 | W52: -648549150 | X52: -640978495.6
B53: c_EMZ_A_18 | C53: 1024540847 | D53: 140000000 | E53: 513333333.3 | F53: 886666666.7 | G53: 1260000000 | H53: 1633333333 | I53: 2006666667 | J53: 2380000000 | K53: 2753333333 | L53: 3126666667 | M53: 3500000000 | O53: -708914886.1 | P53: -701706198.4 | Q53: -694497510.8 | R53: -687288823.2 | S53: -680080135.5 | T53: -672871447.9 | U53: -665662760.2 | V53: -658454072.6 | W53: -651245385 | X53: -644036697.3
B54: c_EMZ_B_02 | C54: 190877523.5 | D54: 140000000 | E54: 513333333.3 | F54: 886666666.7 | G54: 1260000000 | H54: 1633333333 | I54: 2006666667 | J54: 2380000000 | K54: 2753333333 | L54: 3126666667 | M54: 3500000000 | O54: -691836349.7 | P54: -691828650 | Q54: -691820950.3 | R54: -691813250.6 | S54: -691805550.9 | T54: -691797851.2 | U54: -691790151.5 | V54: -691782451.8 | W54: -691774752.1 | X54: -691767052.4
B55: c_EMZ_B_03 | C55: 223041137.7 | D55: 140000000 | E55: 513333333.3 | F55: 886666666.7 | G55: 1260000000 | H55: 1633333333 | I55: 2006666667 | J55: 2380000000 | K55: 2753333333 | L55: 3126666667 | M55: 3500000000 | O55: -691836901.4 | P55: -691829703.6 | Q55: -691822505.8 | R55: -691815308.1 | S55: -691808110.3 | T55: -691800912.5 | U55: -691793714.8 | V55: -691786517 | W55: -691779319.3 | X55: -691772121.5
B56: c_EMZ_B_04 | C56: 254002373.8 | D56: 140000000 | E56: 513333333.3 | F56: 886666666.7 | G56: 1260000000 | H56: 1633333333 | I56: 2006666667 | J56: 2380000000 | K56: 2753333333 | L56: 3126666667 | M56: 3500000000 | O56: -691838087 | P56: -691828961.2 | Q56: -691819835.4 | R56: -691810709.6 | S56: -691801583.8 | T56: -691792458 | U56: -691783332.1 | V56: -691774206.3 | W56: -691765080.5 | X56: -691755954.7
B57: c_EMZ_B_05 | C57: 286466582.6 | D57: 140000000 | E57: 513333333.3 | F57: 886666666.7 | G57: 1260000000 | H57: 1633333333 | I57: 2006666667 | J57: 2380000000 | K57: 2753333333 | L57: 3126666667 | M57: 3500000000 | O57: -691839555.9 | P57: -691828708.7 | Q57: -691817861.5 | R57: -691807014.3 | S57: -691796167.1 | T57: -691785319.9 | U57: -691774472.7 | V57: -691763625.5 | W57: -691752778.4 | X57: -691741931.2
B58: c_EMZ_B_06 | C58: 321636142 | D58: 140000000 | E58: 513333333.3 | F58: 886666666.7 | G58: 1260000000 | H58: 1633333333 | I58: 2006666667 | J58: 2380000000 | K58: 2753333333 | L58: 3126666667 | M58: 3500000000 | O58: -691841322.3 | P58: -691828944.8 | Q58: -691816567.2 | R58: -691804189.7 | S58: -691791812.1 | T58: -691779434.6 | U58: -691767057 | V58: -691754679.4 | W58: -691742301.9 | X58: -691729924.3
B59: c_EMZ_B_07 | C59: 349591432.9 | D59: 140000000 | E59: 513333333.3 | F59: 886666666.7 | G59: 1260000000 | H59: 1633333333 | I59: 2006666667 | J59: 2380000000 | K59: 2753333333 | L59: 3126666667 | M59: 3500000000 | O59: -691843009.3 | P59: -691829277.8 | Q59: -691815546.3 | R59: -691801814.8 | S59: -691788083.3 | T59: -691774351.8 | U59: -691760620.2 | V59: -691746888.7 | W59: -691733157.2 | X59: -691719425.7
B60: c_EMZ_B_08 | C60: 385362181.4 | D60: 140000000 | E60: 513333333.3 | F60: 886666666.7 | G60: 1260000000 | H60: 1633333333 | I60: 2006666667 | J60: 2380000000 | K60: 2753333333 | L60: 3126666667 | M60: 3500000000 | O60: -691845107.8 | P60: -691830185.2 | Q60: -691815262.5 | R60: -691800339.8 | S60: -691785417.1 | T60: -691770494.4 | U60: -691755571.7 | V60: -691740649 | W60: -691725726.3 | X60: -691710803.7
B61: c_EMZ_B_09 | C61: 429850171.1 | D61: 140000000 | E61: 513333333.3 | F61: 886666666.7 | G61: 1260000000 | H61: 1633333333 | I61: 2006666667 | J61: 2380000000 | K61: 2753333333 | L61: 3126666667 | M61: 3500000000 | O61: -691847694.4 | P61: -691831730.6 | Q61: -691815766.8 | R61: -691799803 | S61: -691783839.1 | T61: -691767875.3 | U61: -691751911.5 | V61: -691735947.7 | W61: -691719983.9 | X61: -691704020.1
B62: c_EMZ_B_10 | C62: 484257780.2 | D62: 140000000 | E62: 513333333.3 | F62: 886666666.7 | G62: 1260000000 | H62: 1633333333 | I62: 2006666667 | J62: 2380000000 | K62: 2753333333 | L62: 3126666667 | M62: 3500000000 | O62: -691850853.5 | P62: -691833986.7 | Q62: -691817120 | R62: -691800253.2 | S62: -691783386.5 | T62: -691766519.7 | U62: -691749652.9 | V62: -691732786.2 | W62: -691715919.4 | X62: -691699052.7
B63: c_EMZ_B_11 | C63: 484257780.2 | D63: 140000000 | E63: 513333333.3 | F63: 886666666.7 | G63: 1260000000 | H63: 1633333333 | I63: 2006666667 | J63: 2380000000 | K63: 2753333333 | L63: 3126666667 | M63: 3500000000 | O63: -691851568.9 | P63: -691833926.3 | Q63: -691816283.7 | R63: -691798641.2 | S63: -691780998.6 | T63: -691763356 | U63: -691745713.4 | V63: -691728070.8 | W63: -691710428.2 | X63: -691692785.7
B64: c_EMZ_B_12 | C64: 621930072.8 | D64: 140000000 | E64: 513333333.3 | F64: 886666666.7 | G64: 1260000000 | H64: 1633333333 | I64: 2006666667 | J64: 2380000000 | K64: 2753333333 | L64: 3126666667 | M64: 3500000000 | O64: -691858925.6 | P64: -691840624 | Q64: -691822322.4 | R64: -691804020.8 | S64: -691785719.2 | T64: -691767417.6 | U64: -691749116 | V64: -691730814.4 | W64: -691712512.9 | X64: -691694211.3
B65: c_EMZ_B_13 | C65: 701587622 | D65: 140000000 | E65: 513333333.3 | F65: 886666666.7 | G65: 1260000000 | H65: 1633333333 | I65: 2006666667 | J65: 2380000000 | K65: 2753333333 | L65: 3126666667 | M65: 3500000000 | O65: -691863660.6 | P65: -691844807.2 | Q65: -691825953.8 | R65: -691807100.4 | S65: -691788247.1 | T65: -691769393.7 | U65: -691750540.3 | V65: -691731686.9 | W65: -691712833.5 | X65: -691693980.1
B66: c_EMZ_B_14 | C66: 783800224.6 | D66: 140000000 | E66: 513333333.3 | F66: 886666666.7 | G66: 1260000000 | H66: 1633333333 | I66: 2006666667 | J66: 2380000000 | K66: 2753333333 | L66: 3126666667 | M66: 3500000000 | O66: -691868594.4 | P66: -691849287.5 | Q66: -691829980.6 | R66: -691810673.7 | S66: -691791366.8 | T66: -691772059.9 | U66: -691752753 | V66: -691733446 | W66: -691714139.1 | X66: -691694832.2
B67: c_EMZ_B_15 | C67: 818969784.1 | D67: 140000000 | E67: 513333333.3 | F67: 886666666.7 | G67: 1260000000 | H67: 1633333333 | I67: 2006666667 | J67: 2380000000 | K67: 2753333333 | L67: 3126666667 | M67: 3500000000 | O67: -691871074.5 | P67: -691851404 | Q67: -691831733.5 | R67: -691812063 | S67: -691792392.5 | T67: -691772722 | U67: -691753051.5 | V67: -691733381 | W67: -691713710.5 | X67: -691694040
B68: c_EMZ_B_16 | C68: 935901054.4 | D68: 140000000 | E68: 513333333.3 | F68: 886666666.7 | G68: 1260000000 | H68: 1633333333 | I68: 2006666667 | J68: 2380000000 | K68: 2753333333 | L68: 3126666667 | M68: 3500000000 | O68: -691877835.3 | P68: -691857883.4 | Q68: -691837931.6 | R68: -691817979.7 | S68: -691798027.8 | T68: -691778076 | U68: -691758124.1 | V68: -691738172.2 | W68: -691718220.4 | X68: -691698268.5
B69: c_EMZ_B_17 | C69: 992412825.2 | D69: 140000000 | E69: 513333333.3 | F69: 886666666.7 | G69: 1260000000 | H69: 1633333333 | I69: 2006666667 | J69: 2380000000 | K69: 2753333333 | L69: 3126666667 | M69: 3500000000 | O69: -691881326.6 | P69: -691861168.4 | Q69: -691841010.1 | R69: -691820851.9 | S69: -691800693.7 | T69: -691780535.5 | U69: -691760377.3 | V69: -691740219 | W69: -691720060.8 | X69: -691699902.6
B70: c_EMZ_B_18 | C70: 1024877034 | D70: 140000000 | E70: 513333333.3 | F70: 886666666.7 | G70: 1260000000 | H70: 1633333333 | I70: 2006666667 | J70: 2380000000 | K70: 2753333333 | L70: 3126666667 | M70: 3500000000 | O70: -691883406.7 | P70: -691863110.4 | Q70: -691842814.1 | R70: -691822517.9 | S70: -691802221.6 | T70: -691781925.4 | U70: -691761629.1 | V70: -691741332.9 | W70: -691721036.6 | X70: -691700740.4
B71: c_ACCP_A_02 | C71: 455033790.1 | D71: 140000000 | E71: 513333333.3 | F71: 886666666.7 | G71: 1260000000 | H71: 1633333333 | I71: 2006666667 | J71: 2380000000 | K71: 2753333333 | L71: 3126666667 | M71: 3500000000 | O71: -650606516.1 | P71: -699465019.3 | Q71: -748323522.6 | R71: -797182025.8 | S71: -846040529 | T71: -894899032.2 | U71: -943757535.4 | V71: -992616038.6 | W71: -1041474542 | X71: -1090333045
B72: c_ACCP_A_03 | C72: 531708775.2 | D72: 140000000 | E72: 513333333.3 | F72: 886666666.7 | G72: 1260000000 | H72: 1633333333 | I72: 2006666667 | J72: 2380000000 | K72: 2753333333 | L72: 3126666667 | M72: 3500000000 | O72: -676834409.5 | P72: -691131593.9 | Q72: -705428778.3 | R72: -719725962.6 | S72: -734023147 | T72: -748320331.4 | U72: -762617515.8 | V72: -776914700.2 | W72: -791211884.6 | X72: -805509068.9
B73: c_ACCP_A_04 | C73: 605517405.7 | D73: 140000000 | E73: 513333333.3 | F73: 886666666.7 | G73: 1260000000 | H73: 1633333333 | I73: 2006666667 | J73: 2380000000 | K73: 2753333333 | L73: 3126666667 | M73: 3500000000 | O73: -675037185.3 | P73: -688508854 | Q73: -701980522.8 | R73: -715452191.5 | S73: -728923860.3 | T73: -742395529 | U73: -755867197.7 | V73: -769338866.5 | W73: -782810535.2 | X73: -796282203.9
B74: c_ACCP_A_05 | C74: 682908979.4 | D74: 140000000 | E74: 513333333.3 | F74: 886666666.7 | G74: 1260000000 | H74: 1633333333 | I74: 2006666667 | J74: 2380000000 | K74: 2753333333 | L74: 3126666667 | M74: 3500000000 | O74: -673344347.9 | P74: -686059718.6 | Q74: -698775089.3 | R74: -711490459.9 | S74: -724205830.6 | T74: -736921201.3 | U74: -749636572 | V74: -762351942.7 | W74: -775067313.4 | X74: -787782684.1
B75: c_ACCP_A_06 | C75: 766749851 | D75: 140000000 | E75: 513333333.3 | F75: 886666666.7 | G75: 1260000000 | H75: 1633333333 | I75: 2006666667 | J75: 2380000000 | K75: 2753333333 | L75: 3126666667 | M75: 3500000000 | O75: -671663148.2 | P75: -683679005.5 | Q75: -695694862.9 | R75: -707710720.3 | S75: -719726577.6 | T75: -731742435 | U75: -743758292.3 | V75: -755774149.7 | W75: -767790007.1 | X75: -779805864.4
B76: c_ACCP_A_07 | C76: 833392595 | D76: 140000000 | E76: 513333333.3 | F76: 886666666.7 | G76: 1260000000 | H76: 1633333333 | I76: 2006666667 | J76: 2380000000 | K76: 2753333333 | L76: 3126666667 | M76: 3500000000 | O76: -670728306.3 | P76: -682092639.4 | Q76: -693456972.6 | R76: -704821305.7 | S76: -716185638.9 | T76: -727549972.1 | U76: -738914305.2 | V76: -750278638.4 | W76: -761642971.6 | X76: -773007304.7
B77: c_ACCP_A_08 | C77: 918666643.9 | D77: 140000000 | E77: 513333333.3 | F77: 886666666.7 | G77: 1260000000 | H77: 1633333333 | I77: 2006666667 | J77: 2380000000 | K77: 2753333333 | L77: 3126666667 | M77: 3500000000 | O77: -669404618.4 | P77: -680159055.2 | Q77: -690913492.1 | R77: -701667929 | S77: -712422365.9 | T77: -723176802.8 | U77: -733931239.7 | V77: -744685676.6 | W77: -755440113.4 | X77: -766194550.3
B78: c_ACCP_A_09 | C78: 1024721763 | D78: 140000000 | E78: 513333333.3 | F78: 886666666.7 | G78: 1260000000 | H78: 1633333333 | I78: 2006666667 | J78: 2380000000 | K78: 2753333333 | L78: 3126666667 | M78: 3500000000 | O78: -667707409.3 | P78: -677888854.3 | Q78: -688070299.3 | R78: -698251744.3 | S78: -708433189.3 | T78: -718614634.4 | U78: -728796079.4 | V78: -738977524.4 | W78: -749158969.4 | X78: -759340414.4
B79: c_ACCP_A_10 | C79: 1154424308 | D79: 140000000 | E79: 513333333.3 | F79: 886666666.7 | G79: 1260000000 | H79: 1633333333 | I79: 2006666667 | J79: 2380000000 | K79: 2753333333 | L79: 3126666667 | M79: 3500000000 | O79: -665636677.8 | P79: -675278421.4 | Q79: -684920165 | R79: -694561908.6 | S79: -704203652.2 | T79: -713845395.8 | U79: -723487139.5 | V79: -733128883.1 | W79: -742770626.7 | X79: -752412370.3
B80: c_ACCP_A_11 | C80: 1154424308 | D80: 140000000 | E80: 513333333.3 | F80: 886666666.7 | G80: 1260000000 | H80: 1633333333 | I80: 2006666667 | J80: 2380000000 | K80: 2753333333 | L80: 3126666667 | M80: 3500000000 | O80: -667020458.3 | P80: -676152936.3 | Q80: -685285414.4 | R80: -694417892.4 | S80: -703550370.4 | T80: -712682848.4 | U80: -721815326.4 | V80: -730947804.4 | W80: -740080282.4 | X80: -749212760.4
B81: c_ACCP_A_12 | C81: 1482621908 | D81: 140000000 | E81: 513333333.3 | F81: 886666666.7 | G81: 1260000000 | H81: 1633333333 | I81: 2006666667 | J81: 2380000000 | K81: 2753333333 | L81: 3126666667 | M81: 3500000000 | O81: -660722484.4 | P81: -669373804.1 | Q81: -678025123.7 | R81: -686676443.3 | S81: -695327763 | T81: -703979082.6 | U81: -712630402.2 | V81: -721281721.9 | W81: -729933041.5 | X81: -738584361.1
B82: c_ACCP_A_13 | C82: 1672517899 | D82: 140000000 | E82: 513333333.3 | F82: 886666666.7 | G82: 1260000000 | H82: 1633333333 | I82: 2006666667 | J82: 2380000000 | K82: 2753333333 | L82: 3126666667 | M82: 3500000000 | O82: -658189783 | P82: -666386093.9 | Q82: -674582404.8 | R82: -682778715.7 | S82: -690975026.6 | T82: -699171337.5 | U82: -707367648.4 | V82: -715563959.3 | W82: -723760270.2 | X82: -731956581.1
B83: c_ACCP_A_14 | C83: 1868504894 | D83: 140000000 | E83: 513333333.3 | F83: 886666666.7 | G83: 1260000000 | H83: 1633333333 | I83: 2006666667 | J83: 2380000000 | K83: 2753333333 | L83: 3126666667 | M83: 3500000000 | O83: -655880417.2 | P83: -663646178.4 | Q83: -671411939.7 | R83: -679177701 | S83: -686943462.3 | T83: -694709223.6 | U83: -702474984.9 | V83: -710240746.2 | W83: -718006507.5 | X83: -725772268.8
B84: c_ACCP_A_15 | C84: 1952345765 | D84: 140000000 | E84: 513333333.3 | F84: 886666666.7 | G84: 1260000000 | H84: 1633333333 | I84: 2006666667 | J84: 2380000000 | K84: 2753333333 | L84: 3126666667 | M84: 3500000000 | O84: -656115045 | P84: -663473222.6 | Q84: -670831400.2 | R84: -678189577.8 | S84: -685547755.4 | T84: -692905933 | U84: -700264110.5 | V84: -707622288.1 | W84: -714980465.7 | X84: -722338643.3
B85: c_ACCP_A_16 | C85: 2231098749 | D85: 140000000 | E85: 513333333.3 | F85: 886666666.7 | G85: 1260000000 | H85: 1633333333 | I85: 2006666667 | J85: 2380000000 | K85: 2753333333 | L85: 3126666667 | M85: 3500000000 | O85: -652782817.5 | P85: -659755034.2 | Q85: -666727250.9 | R85: -673699467.6 | S85: -680671684.3 | T85: -687643901 | U85: -694616117.6 | V85: -701588334.3 | W85: -708560551 | X85: -715532767.7
B86: c_ACCP_A_17 | C86: 2365817414 | D86: 140000000 | E86: 513333333.3 | F86: 886666666.7 | G86: 1260000000 | H86: 1633333333 | I86: 2006666667 | J86: 2380000000 | K86: 2753333333 | L86: 3126666667 | M86: 3500000000 | O86: -652446360.9 | P86: -659053014.2 | Q86: -665659667.6 | R86: -672266320.9 | S86: -678872974.3 | T86: -685479627.6 | U86: -692086281 | V86: -698692934.3 | W86: -705299587.7 | X86: -711906241
B87: c_ACCP_A_18 | C87: 2443208988 | D87: 140000000 | E87: 513333333.3 | F87: 886666666.7 | G87: 1260000000 | H87: 1633333333 | I87: 2006666667 | J87: 2380000000 | K87: 2753333333 | L87: 3126666667 | M87: 3500000000 | O87: -653213213 | P87: -659473570.9 | Q87: -665733928.8 | R87: -671994286.8 | S87: -678254644.7 | T87: -684515002.6 | U87: -690775360.5 | V87: -697035718.4 | W87: -703296076.3 | X87: -709556434.2
B88: c_ACCP_B_02 | C88: 456032010.1 | D88: 140000000 | E88: 513333333.3 | F88: 886666666.7 | G88: 1260000000 | H88: 1633333333 | I88: 2006666667 | J88: 2380000000 | K88: 2753333333 | L88: 3126666667 | M88: 3500000000 | O88: -691249373.7 | P88: -691941537.6 | Q88: -692633701.5 | R88: -693325865.4 | S88: -694018029.2 | T88: -694710193.1 | U88: -695402357 | V88: -696094520.9 | W88: -696786684.8 | X88: -697478848.6
B89: c_ACCP_B_03 | C89: 532875199.2 | D89: 140000000 | E89: 513333333.3 | F89: 886666666.7 | G89: 1260000000 | H89: 1633333333 | I89: 2006666667 | J89: 2380000000 | K89: 2753333333 | L89: 3126666667 | M89: 3500000000 | O89: -691287680.1 | P89: -691808061.4 | Q89: -692328442.6 | R89: -692848823.9 | S89: -693369205.2 | T89: -693889586.4 | U89: -694409967.7 | V89: -694930349 | W89: -695450730.2 | X89: -695971111.5
B90: c_ACCP_B_04 | C90: 606845745.7 | D90: 140000000 | E90: 513333333.3 | F90: 886666666.7 | G90: 1260000000 | H90: 1633333333 | I90: 2006666667 | J90: 2380000000 | K90: 2753333333 | L90: 3126666667 | M90: 3500000000 | O90: -691122853.7 | P90: -691692592.4 | Q90: -692262331.1 | R90: -692832069.8 | S90: -693401808.5 | T90: -693971547.2 | U90: -694541286 | V90: -695111024.7 | W90: -695680763.4 | X90: -696250502.1
B91: c_ACCP_B_05 | C91: 684407095.4 | D91: 140000000 | E91: 513333333.3 | F91: 886666666.7 | G91: 1260000000 | H91: 1633333333 | I91: 2006666667 | J91: 2380000000 | K91: 2753333333 | L91: 3126666667 | M91: 3500000000 | O91: -690974163.3 | P91: -691564697.8 | Q91: -692155232.3 | R91: -692745766.7 | S91: -693336301.2 | T91: -693926835.7 | U91: -694517370.1 | V91: -695107904.6 | W91: -695698439 | X91: -696288973.5
B92: c_ACCP_B_06 | C92: 768431891 | D92: 140000000 | E92: 513333333.3 | F92: 886666666.7 | G92: 1260000000 | H92: 1633333333 | I92: 2006666667 | J92: 2380000000 | K92: 2753333333 | L92: 3126666667 | M92: 3500000000 | O92: -690836982.7 | P92: -691430054.6 | Q92: -692023126.4 | R92: -692616198.2 | S92: -693209270 | T92: -693802341.8 | U92: -694395413.6 | V92: -694988485.4 | W92: -695581557.2 | X92: -696174629
B93: c_ACCP_B_07 | C93: 835220831 | D93: 140000000 | E93: 513333333.3 | F93: 886666666.7 | G93: 1260000000 | H93: 1633333333 | I93: 2006666667 | J93: 2380000000 | K93: 2753333333 | L93: 3126666667 | M93: 3500000000 | O93: -690747537.4 | P93: -691331665.7 | Q93: -691915794 | R93: -692499922.3 | S93: -693084050.6 | T93: -693668178.9 | U93: -694252307.2 | V93: -694836435.5 | W93: -695420563.7 | X93: -696004692
B94: c_ACCP_B_08 | C94: 920681947.9 | D94: 140000000 | E94: 513333333.3 | F94: 886666666.7 | G94: 1260000000 | H94: 1633333333 | I94: 2006666667 | J94: 2380000000 | K94: 2753333333 | L94: 3126666667 | M94: 3500000000 | O94: -690647229.1 | P94: -691215381.8 | Q94: -691783534.6 | R94: -692351687.4 | S94: -692919840.2 | T94: -693487992.9 | U94: -694056145.7 | V94: -694624298.5 | W94: -695192451.3 | X94: -695760604
B95: c_ACCP_B_09 | C95: 1026969723 | D95: 140000000 | E95: 513333333.3 | F95: 886666666.7 | G95: 1260000000 | H95: 1633333333 | I95: 2006666667 | J95: 2380000000 | K95: 2753333333 | L95: 3126666667 | M95: 3500000000 | O95: -690533221 | P95: -691081277.6 | Q95: -691629334.2 | R95: -692177390.9 | S95: -692725447.5 | T95: -693273504.1 | U95: -693821560.7 | V95: -694369617.4 | W95: -694917674 | X95: -695465730.6
B96: c_ACCP_B_10 | C96: 1156956800 | D96: 140000000 | E96: 513333333.3 | F96: 886666666.7 | G96: 1260000000 | H96: 1633333333 | I96: 2006666667 | J96: 2380000000 | K96: 2753333333 | L96: 3126666667 | M96: 3500000000 | O96: -690403198.6 | P96: -690928935.1 | Q96: -691454671.6 | R96: -691980408.1 | S96: -692506144.6 | T96: -693031881.1 | U96: -693557617.6 | V96: -694083354.1 | W96: -694609090.6 | X96: -695134827.1
B97: c_ACCP_B_11 | C97: 1156956800 | D97: 140000000 | E97: 513333333.3 | F97: 886666666.7 | G97: 1260000000 | H97: 1633333333 | I97: 2006666667 | J97: 2380000000 | K97: 2753333333 | L97: 3126666667 | M97: 3500000000 | O97: -690466713.1 | P97: -690969132.9 | Q97: -691471552.7 | R97: -691973972.5 | S97: -692476392.3 | T97: -692978812.2 | U97: -693481232 | V97: -693983651.8 | W97: -694486071.6 | X97: -694988491.5
B98: c_ACCP_B_12 | C98: 1485874376 | D98: 140000000 | E98: 513333333.3 | F98: 886666666.7 | G98: 1260000000 | H98: 1633333333 | I98: 2006666667 | J98: 2380000000 | K98: 2753333333 | L98: 3126666667 | M98: 3500000000 | O98: -690108880.9 | P98: -690587774 | Q98: -691066667.1 | R98: -691545560.2 | S98: -692024453.2 | T98: -692503346.3 | U98: -692982239.4 | V98: -693461132.4 | W98: -693940025.5 | X98: -694418918.6
B99: c_ACCP_B_13 | C99: 1676186947 | D99: 140000000 | E99: 513333333.3 | F99: 886666666.7 | G99: 1260000000 | H99: 1633333333 | I99: 2006666667 | J99: 2380000000 | K99: 2753333333 | L99: 3126666667 | M99: 3500000000 | O99: -689960387.3 | P99: -690416039.9 | Q99: -690871692.5 | R99: -691327345 | S99: -691782997.6 | T99: -692238650.2 | U99: -692694302.7 | V99: -693149955.3 | W99: -693605607.9 | X99: -694061260.4
B100: c_ACCP_B_14 | C100: 1872603884 | D100: 140000000 | E100: 513333333.3 | F100: 886666666.7 | G100: 1260000000 | H100: 1633333333 | I100: 2006666667 | J100: 2380000000 | K100: 2753333333 | L100: 3126666667 | M100: 3500000000 | O100: -689825770.3 | P100: -690258774.3 | Q100: -690691778.4 | R100: -691124782.5 | S100: -691557786.6 | T100: -691990790.7 | U100: -692423794.8 | V100: -692856798.9 | W100: -693289803 | X100: -693722807.1
B101: c_ACCP_B_15 | C101: 1956628679 | D101: 140000000 | E101: 513333333.3 | F101: 886666666.7 | G101: 1260000000 | H101: 1633333333 | I101: 2006666667 | J101: 2380000000 | K101: 2753333333 | L101: 3126666667 | M101: 3500000000 | O101: -689834760.8 | P101: -690245889.4 | Q101: -690657018.1 | R101: -691068146.7 | S101: -691479275.4 | T101: -691890404.1 | U101: -692301532.7 | V101: -692712661.4 | W101: -693123790 | X101: -693534918.7
B102: c_ACCP_B_16 | C102: 2235993171 | D102: 140000000 | E102: 513333333.3 | F102: 886666666.7 | G102: 1260000000 | H102: 1633333333 | I102: 2006666667 | J102: 2380000000 | K102: 2753333333 | L102: 3126666667 | M102: 3500000000 | O102: -689645029.3 | P102: -690035155.2 | Q102: -690425281.1 | R102: -690815406.9 | S102: -691205532.8 | T102: -691595658.7 | U102: -691985784.6 | V102: -692375910.5 | W102: -692766036.4 | X102: -693156162.3
B103: c_ACCP_B_17 | C103: 2371007372 | D103: 140000000 | E103: 513333333.3 | F103: 886666666.7 | G103: 1260000000 | H103: 1633333333 | I103: 2006666667 | J103: 2380000000 | K103: 2753333333 | L103: 3126666667 | M103: 3500000000 | O103: -689623957.4 | P103: -689994000.1 | Q103: -690364042.9 | R103: -690734085.6 | S103: -691104128.3 | T103: -691474171 | U103: -691844213.7 | V103: -692214256.4 | W103: -692584299.1 | X103: -692954341.9
B104: c_ACCP_B_18 | C104: 2448568722 | D104: 140000000 | E104: 513333333.3 | F104: 886666666.7 | G104: 1260000000 | H104: 1633333333 | I104: 2006666667 | J104: 2380000000 | K104: 2753333333 | L104: 3126666667 | M104: 3500000000 | O104: -689665500.3 | P104: -690016392.5 | Q104: -690367284.6 | R104: -690718176.8 | S104: -691069069 | T104: -691419961.1 | U104: -691770853.3 | V104: -692121745.5 | W104: -692472637.7 | X104: -692823529.8

Sheet Simulaciones de Montecarlo
A5: ANÁLISIS DE SENSIBILIDAD PROBABILÍSTICO
A7: Estimación Montecarlo | B7: =+#REF! ->  | D7: =+#REF! ->  | F7: RICE
A8: Valor simulación | B8: Costos | C8: Hospitalizaciones | D8: Costos | E8: Hospitalizaciones
A9: Valor simulación | B9: =+#REF! ->  | C9: =+#REF! ->  | D9: =+#REF! ->  | E9: =+#REF! ->  | F9: =+#REF! -> 
A10: 1 | B10: 2117358710 | C10: 0.79963673 | D10: 895495712.3 | E10: 0.9888313574 | F10: 6458233061
A11: 2 | B11: 2415704363 | C11: 0.95132125 | D11: 965208113.3 | E11: 0.9918167975 | F11: 3.581866003e+10
A12: 3 | B12: 3100604068 | C12: 0.99847414 | D12: 1107969657 | E12: 0.9916176387 | F12: -2.906197069e+11
A13: 4 | B13: 2378031732 | C13: 0.91121358 | D13: 943039548.9 | E13: 0.988036002 | F13: 1.867934057e+10
A14: 5 | B14: 2090012976 | C14: 0.91606122 | D14: 1327167530 | E14: 0.989229165 | F14: 1.04259515e+10
A15: 6 | B15: 2537062498 | C15: 1.004555 | D15: 1016046454 | E15: 0.9920160013 | F15: -1.213028312e+11
A16: 7 | B16: 2397883013 | C16: 0.84229117 | D16: 1249621997 | E16: 0.9914184898 | F16: 7699870267
A17: 8 | B17: 2413237211 | C17: 0.90716306 | D17: 1068519740 | E17: 0.9882348092 | F17: 1.658675783e+10
A18: 9 | B18: 2172372457 | C18: 0.8790454 | D18: 982903966.7 | E18: 0.9886325055 | F18: 1.085409168e+10
A19: 10 | B19: 2431046659 | C19: 0.84820714 | D19: 1015078506 | E19: 0.98863249 | F19: 1.008342264e+10
A20: 11 | B20: 2304892625 | C20: 0.75027627 | D20: 1224597935 | E20: 0.9880360092 | F20: 4543640120
A21: 12 | B21: 2959560565 | C21: 0.98615176 | D21: 1284156286 | E21: 0.9900249988 | F21: 4.3255899e+11
A22: 13 | B22: 2109238475 | C22: 0.880164 | D22: 1188725485 | E22: 0.9888313658 | F22: 8470923935
A23: 14 | B23: 2481093983 | C23: 0.98913205 | D23: 1161621156 | E23: 0.9878372141 | F23: -1.019027049e+12
A24: 15 | B24: 2215735394 | C24: 0.9036366 | D24: 1124858896 | E24: 0.9878372142 | F24: 1.295568338e+10
A25: 16 | B25: 3077640548 | C25: 0.9859473 | D25: 874753692.6 | E25: 0.9898260112 | F25: 5.679430021e+11
A26: 17 | B26: 2925500722 | C26: 0.97555486 | D26: 1113157658 | E26: 0.9924144371 | F26: 1.074963541e+11
A27: 18 | B27: 1998754252 | C27: 0.81933462 | D27: 1199913599 | E27: 0.9916176367 | F27: 4636792808
A28: 19 | B28: 2587919042 | C28: 0.94475125 | D28: 888054520 | E28: 0.9918168108 | F28: 3.61169503e+10
A29: 20 | B29: 2302751139 | C29: 0.76987013 | D29: 1025617777 | E29: 0.9894280905 | F29: 5816839250
A30: 21 | B30: 2670348355 | C30: 0.96671533 | D30: 1209649142 | E30: 0.99102025 | F30: 6.009891052e+10
A31: 22 | B31: 2692976650 | C31: 0.9770011 | D31: 1168598104 | E31: 0.9892291637 | F31: 1.246623001e+11
A32: 23 | B32: 2433113051 | C32: 0.84621228 | D32: 977593654.4 | E32: 0.9918168014 | F32: 9996388724
A33: 24 | B33: 2010450791 | C33: 0.85246122 | D33: 1209242147 | E33: 0.9902240084 | F33: 5815856751
A34: 25 | B34: 2906689143 | C34: 0.98592594 | D34: 1271009213 | E34: 0.9888313692 | F34: 5.629736015e+11
A35: 26 | B35: 2154601793 | C35: 0.84162 | D35: 1082781477 | E35: 0.9918167959 | F35: 7136106397
A36: 27 | B36: 1986004606 | C36: 0.80920442 | D36: 1114311540 | E36: 0.9878372188 | F36: 4879804111
A37: 28 | B37: 2673091479 | C37: 0.97347043 | D37: 1184510146 | E37: 0.9898260021 | F37: 9.101371215e+10
A38: 29 | B38: 1972317517 | C38: 0.81055477 | D38: 865233181.3 | E38: 0.9898260096 | F38: 6175470973
A39: 30 | B39: 2435487234 | C39: 0.90943578 | D39: 1357064995 | E39: 0.9900249963 | F39: 1.33817189e+10
A40: 31 | B40: 2274167396 | C40: 0.7873975 | D40: 1134593752 | E40: 0.9918168094 | F40: 5574686890
A41: 32 | B41: 2345322501 | C41: 0.88425884 | D41: 1061300186 | E41: 0.9924144395 | F41: 1.18719911e+10
A42: 33 | B42: 2453773565 | C42: 0.82219834 | D42: 1087791300 | E42: 0.9902240055 | F42: 8129604846
A43: 34 | B43: 2504530226 | C43: 0.9809872 | D43: 965516505.7 | E43: 0.9876384512 | F43: 2.313870996e+11
A44: 35 | B44: 2589681627 | C44: 0.98792778 | D44: 1166693473 | E44: 0.9912193639 | F44: 4.323110735e+11
A45: 36 | B45: 2269548319 | C45: 0.81802931 | D45: 932602137.9 | E45: 0.9906220861 | F45: 7746246464
A46: 37 | B46: 2312519115 | C46: 0.7940467 | D46: 899364841.7 | E46: 0.9886324942 | F46: 7262371228
A47: 38 | B47: 2368072065 | C47: 0.888461 | D47: 906335653.5 | E47: 0.9910202476 | F47: 1.425260467e+10
A48: 39 | B48: 2137077941 | C48: 0.87772777 | D48: 1167743936 | E48: 0.9894280868 | F48: 8677987963
A49: 40 | B49: 2678411581 | C49: 0.98036732 | D49: 1162445282 | E49: 0.9896270397 | F49: 1.637162187e+11
A50: 41 | B50: 2630331776 | C50: 0.89415656 | D50: 1026694798 | E50: 0.9904230379 | F50: 1.665831152e+10
A51: 42 | B51: 1868773010 | C51: 0.77691026 | D51: 1127334573 | E51: 0.9920159959 | F51: 3446855723
A52: 43 | B52: 2140823508 | C52: 0.87814458 | D52: 1005872275 | E52: 0.99121936 | F52: 1.003717393e+10
A53: 44 | B53: 2171759377 | C53: 0.77282781 | D53: 1300705360 | E53: 0.9882348088 | F53: 4043759126
A54: 45 | B54: 2356306341 | C54: 0.8009775 | D54: 1113480987 | E54: 0.9914184904 | F54: 6526039126
A55: 46 | B55: 2725763461 | C55: 0.91047449 | D55: 1258439199 | E55: 0.9888313593 | F55: 1.872617265e+10
A56: 47 | B56: 2305033840 | C56: 0.95266905 | D56: 1322226433 | E56: 0.9906220895 | F56: 2.589535435e+10
A57: 48 | B57: 2532517142 | C57: 0.98146425 | D57: 1221450612 | E57: 0.9918168001 | F57: 1.266418917e+11
A58: 49 | B58: 2622037896 | C58: 0.98136506 | D58: 1201953918 | E58: 0.9918168108 | F58: 1.3587044e+11
A59: 50 | B59: 2660457682 | C59: 0.87288512 | D59: 1164060681 | E59: 0.9888313607 | F59: 1.290595531e+10
